Department,Entity,Date of Payment,Expense type,Expense Area,Suppliers,Transaction Number,Amount
United Kingdom Atomic Energy Authority,United Kingdom Atomic Energy Authority,26/01/2015,HIRED STAFF,FUSION,RULLION ENGINEERING PERSONNEL LTD,5100316078,854148.16
United Kingdom Atomic Energy Authority,United Kingdom Atomic Energy Authority,09/02/2015,UNIVERSITY PLACEMENT,FUSION,STRATHCLYDE UNIVERSITY,5100316155,12189.5
United Kingdom Atomic Energy Authority,United Kingdom Atomic Energy Authority,09/02/2015,HIRED STAFF,FUSION,RULLION ENGINEERING PERSONNEL LTD,5100316274,1457.16
United Kingdom Atomic Energy Authority,United Kingdom Atomic Energy Authority,11/02/2015,HIRED STAFF,FUSION,TRASYS,5100316578,6240.15
United Kingdom Atomic Energy Authority,United Kingdom Atomic Energy Authority,18/02/2015,HIRED STAFF,FUSION,TRASYS,5100316579,6276.38
United Kingdom Atomic Energy Authority,United Kingdom Atomic Energy Authority,11/02/2015,HIRED STAFF,FUSION,TRASYS,5100316580,6246.46
United Kingdom Atomic Energy Authority,United Kingdom Atomic Energy Authority,11/02/2015,TRAVEL,TRAVEL,Hogg Robinson(Travel)Ltd T/A HRG UK,5100316761,15011.38
United Kingdom Atomic Energy Authority,United Kingdom Atomic Energy Authority,18/02/2015,HIRED STAFF,FUSION,TESSELLA PLC,5100316854,9578.47
United Kingdom Atomic Energy Authority,United Kingdom Atomic Energy Authority,18/02/2015,HIRED STAFF,FUSION,BLACK DIAMOND UMBRELLA LTD,5100316961,1196.63
United Kingdom Atomic Energy Authority,United Kingdom Atomic Energy Authority,18/02/2015,HIRED STAFF,FUSION,BLACK DIAMOND UMBRELLA LTD,5100316962,1196.63
United Kingdom Atomic Energy Authority,United Kingdom Atomic Energy Authority,18/02/2015,HIRED STAFF,FUSION,BLACK DIAMOND UMBRELLA LTD,5100316963,1196.63
United Kingdom Atomic Energy Authority,United Kingdom Atomic Energy Authority,18/02/2015,HIRED STAFF,FUSION,BLACK DIAMOND UMBRELLA LTD,5100316965,1196.63
United Kingdom Atomic Energy Authority,United Kingdom Atomic Energy Authority,18/02/2015,HIRED STAFF,FUSION,BLACK DIAMOND UMBRELLA LTD,5100316967,4060.9
United Kingdom Atomic Energy Authority,United Kingdom Atomic Energy Authority,18/02/2015,HIRED STAFF,FUSION,GENTLE ASSOCIATES LTD,5100316968,3313.75
United Kingdom Atomic Energy Authority,United Kingdom Atomic Energy Authority,18/02/2015,HIRED STAFF,FUSION,BLACK DIAMOND UMBRELLA LTD,5100316970,4623.82
United Kingdom Atomic Energy Authority,United Kingdom Atomic Energy Authority,18/02/2015,HIRED STAFF,FUSION,BLACK DIAMOND UMBRELLA LTD,5100316972,851.63
United Kingdom Atomic Energy Authority,United Kingdom Atomic Energy Authority,18/02/2015,HIRED STAFF,FUSION,BLACK DIAMOND UMBRELLA LTD,5100316973,851.63
United Kingdom Atomic Energy Authority,United Kingdom Atomic Energy Authority,18/02/2015,HIRED STAFF,FUSION,BLACK DIAMOND UMBRELLA LTD,5100316974,851.63
United Kingdom Atomic Energy Authority,United Kingdom Atomic Energy Authority,18/02/2015,HIRED STAFF,FUSION,BLACK DIAMOND UMBRELLA LTD,5100316975,851.63
United Kingdom Atomic Energy Authority,United Kingdom Atomic Energy Authority,26/01/2015,PROFESSIONAL SERVICES,SUPPORT SERVICES,ONE FIX RECRUITMENT,5100315968,455
United Kingdom Atomic Energy Authority,United Kingdom Atomic Energy Authority,26/01/2015,MATERIALS & SPARES,SUPPORT SERVICES,The Internet Corporation Ltd,5100316044,4500
United Kingdom Atomic Energy Authority,United Kingdom Atomic Energy Authority,04/02/2015,PROFESSIONAL SERVICES,SUPPORT SERVICES,FAITHFUL & GOULD,5100316230,9152
United Kingdom Atomic Energy Authority,United Kingdom Atomic Energy Authority,18/02/2015,PROFESSIONAL SERVICES,SUPPORT SERVICES,LOGICA CMG UK LTD,5100316520,2629.93
United Kingdom Atomic Energy Authority,United Kingdom Atomic Energy Authority,18/02/2015,COMPENSATION AND LEGAL FEES,SUPPORT SERVICES,CATER LEYDON MILLARD LTD,5100316877,667
United Kingdom Atomic Energy Authority,United Kingdom Atomic Energy Authority,18/02/2015,COMPENSATION AND LEGAL FEES,SUPPORT SERVICES,CATER LEYDON MILLARD LTD,5100316878,245
United Kingdom Atomic Energy Authority,United Kingdom Atomic Energy Authority,18/02/2015,PROFESSIONAL SERVICES,SUPPORT SERVICES,BDO LLP,5100316910,2392.5
United Kingdom Atomic Energy Authority,United Kingdom Atomic Energy Authority,18/02/2015,PROFESSIONAL SERVICES,SUPPORT SERVICES,ONE FIX RECRUITMENT,5100317142,1100
United Kingdom Atomic Energy Authority,United Kingdom Atomic Energy Authority,31/01/2015,TAXIS,SUPPORT SERVICES,EMPLOYEE EXPENSES,100754917,10
United Kingdom Atomic Energy Authority,United Kingdom Atomic Energy Authority,31/01/2015,SUBSISTENCE,SUPPORT SERVICES,EMPLOYEE EXPENSES,100754917,1.92
United Kingdom Atomic Energy Authority,United Kingdom Atomic Energy Authority,31/01/2015,ROAD TRAVEL,SUPPORT SERVICES,EMPLOYEE EXPENSES,100754917,6
United Kingdom Atomic Energy Authority,United Kingdom Atomic Energy Authority,26/01/2015,TRAINING COURSE FEES,SUPPORT SERVICES,PETER METCALF MANAGEMENT COACH,5100315110,550
United Kingdom Atomic Energy Authority,United Kingdom Atomic Energy Authority,28/01/2015,PROFESSIONAL SERVICES,SUPPORT SERVICES,CSS WORKSAFE,5100315630,1590
United Kingdom Atomic Energy Authority,United Kingdom Atomic Energy Authority,26/01/2015,PROFESSIONAL SERVICES,SUPPORT SERVICES,CSC COMPUTER SERVICES,5100315658,17161.6
United Kingdom Atomic Energy Authority,United Kingdom Atomic Energy Authority,26/01/2015,PROFESSIONAL SERVICES,SUPPORT SERVICES,CSC COMPUTER SERVICES,5100315660,30570.29
United Kingdom Atomic Energy Authority,United Kingdom Atomic Energy Authority,09/02/2015,SECURITY & EMERGENCY,SUPPORT SERVICES,SMARTWATER TECHNOLOGY LTD,5100315802,3010
United Kingdom Atomic Energy Authority,United Kingdom Atomic Energy Authority,26/01/2015,PROFESSIONAL SERVICES,SUPPORT SERVICES,CSC COMPUTER SERVICES,5100315853,2877.45
United Kingdom Atomic Energy Authority,United Kingdom Atomic Energy Authority,04/02/2015,PROFESSIONAL SERVICES,SUPPORT SERVICES,CSS WORKSAFE,5100315858,795
United Kingdom Atomic Energy Authority,United Kingdom Atomic Energy Authority,28/01/2015,PROFESSIONAL SERVICES,SUPPORT SERVICES,CSS WORKSAFE,5100315859,795
United Kingdom Atomic Energy Authority,United Kingdom Atomic Energy Authority,28/01/2015,CONSUMABLES,SUPPORT SERVICES,ABLOY SECURITY,5100315866,216.9
United Kingdom Atomic Energy Authority,United Kingdom Atomic Energy Authority,26/01/2015,BUILDING REPAIRS,SUPPORT SERVICES,KNOWLES & SONS (OXFORD) LTD,5100315876,25
United Kingdom Atomic Energy Authority,United Kingdom Atomic Energy Authority,26/01/2015,BUILDING REPAIRS,SUPPORT SERVICES,KNOWLES & SONS (OXFORD) LTD,5100315886,36.54
United Kingdom Atomic Energy Authority,United Kingdom Atomic Energy Authority,26/01/2015,PERSONAL PROTECTIVE EQUIPMENT,SUPPORT SERVICES,ARCO LTD,5100315990,261.2
United Kingdom Atomic Energy Authority,United Kingdom Atomic Energy Authority,26/01/2015,PERSONAL PROTECTIVE EQUIPMENT,SUPPORT SERVICES,ARCO LTD,5100315993,9.12
United Kingdom Atomic Energy Authority,United Kingdom Atomic Energy Authority,26/01/2015,PERSONAL PROTECTIVE EQUIPMENT,SUPPORT SERVICES,ARCO LTD,5100316001,11.9
United Kingdom Atomic Energy Authority,United Kingdom Atomic Energy Authority,28/01/2015,PROFESSIONAL SERVICES,SUPPORT SERVICES,U H VENTURES LTD - CIMTECH,5100316049,720
United Kingdom Atomic Energy Authority,United Kingdom Atomic Energy Authority,26/01/2015,CONSUMABLES,SUPPORT SERVICES,VenusWorks Ltd,5100316065,800
United Kingdom Atomic Energy Authority,United Kingdom Atomic Energy Authority,02/02/2015,F&F,SUPPORT SERVICES,EFG MATTHEWS OFFICE FURNITURE LTD,5100316113,352.5
United Kingdom Atomic Energy Authority,United Kingdom Atomic Energy Authority,02/02/2015,PERSONAL PROTECTIVE EQUIPMENT,SUPPORT SERVICES,ARCO LTD,5100316181,466.22
United Kingdom Atomic Energy Authority,United Kingdom Atomic Energy Authority,02/02/2015,PROFESSIONAL SERVICES,SUPPORT SERVICES,DISCLOSURE SCOTLAND,5100316275,25
United Kingdom Atomic Energy Authority,United Kingdom Atomic Energy Authority,04/02/2015,ARCHIVING & RECORDS,SUPPORT SERVICES,BOX-IT UK LTD,5100316285,1891.81
United Kingdom Atomic Energy Authority,United Kingdom Atomic Energy Authority,02/02/2015,STATIONERY,SUPPORT SERVICES,LYRECO UK LIMITED,5100316430,120.84
United Kingdom Atomic Energy Authority,United Kingdom Atomic Energy Authority,09/02/2015,PERSONAL PROTECTIVE EQUIPMENT,SUPPORT SERVICES,ARCO LTD,5100316576,265.45
United Kingdom Atomic Energy Authority,United Kingdom Atomic Energy Authority,09/02/2015,PERSONAL PROTECTIVE EQUIPMENT,SUPPORT SERVICES,ARCO LTD,5100316577,34.11
United Kingdom Atomic Energy Authority,United Kingdom Atomic Energy Authority,09/02/2015,BOOKS & PUBLICATIONS,SUPPORT SERVICES,THE BRITISH LIBRARY,5100316662,27.9
United Kingdom Atomic Energy Authority,United Kingdom Atomic Energy Authority,09/02/2015,STATIONERY,SUPPORT SERVICES,LYRECO UK LIMITED,5100316671,88.7
United Kingdom Atomic Energy Authority,United Kingdom Atomic Energy Authority,09/02/2015,MATERIALS & SPARES,SUPPORT SERVICES,FARNELL ELECTRONIC,5100316804,234.34
United Kingdom Atomic Energy Authority,United Kingdom Atomic Energy Authority,18/02/2015,F&F,SUPPORT SERVICES,EFG MATTHEWS OFFICE FURNITURE LTD,5100316872,369.5
United Kingdom Atomic Energy Authority,United Kingdom Atomic Energy Authority,18/02/2015,F&F,SUPPORT SERVICES,EFG MATTHEWS OFFICE FURNITURE LTD,5100316873,281.5
United Kingdom Atomic Energy Authority,United Kingdom Atomic Energy Authority,18/02/2015,MATERIALS & SPARES,SUPPORT SERVICES,Medley business solution Ltd,5100316901,487.82
United Kingdom Atomic Energy Authority,United Kingdom Atomic Energy Authority,18/02/2015,CAR HIRE,SUPPORT SERVICES,LEASEDRIVE VELO,5100316915,63.24
United Kingdom Atomic Energy Authority,United Kingdom Atomic Energy Authority,18/02/2015,BUILDING REPAIRS,SUPPORT SERVICES,KNOWLES & SONS (OXFORD) LTD,5100317110,65.61
United Kingdom Atomic Energy Authority,United Kingdom Atomic Energy Authority,18/02/2015,CAR HIRE,SUPPORT SERVICES,LEASEDRIVE VELO,5100317144,31.62
United Kingdom Atomic Energy Authority,United Kingdom Atomic Energy Authority,18/02/2015,CAR HIRE,SUPPORT SERVICES,LEASEDRIVE VELO,5100317146,31.62
United Kingdom Atomic Energy Authority,United Kingdom Atomic Energy Authority,18/02/2015,CATERING SUPPLIES,SUPPORT SERVICES,BWT UK LTD,5100317185,183.6
United Kingdom Atomic Energy Authority,United Kingdom Atomic Energy Authority,18/02/2015,CATERING SUPPLIES,SUPPORT SERVICES,BWT UK LTD,5100317186,798.81
United Kingdom Atomic Energy Authority,United Kingdom Atomic Energy Authority,31/01/2015,MILEAGE ALLOWANCE,SUPPORT SERVICES,EMPLOYEE EXPENSES,100754941,99
United Kingdom Atomic Energy Authority,United Kingdom Atomic Energy Authority,31/01/2015,PROFESSIONAL SUBSCRIPTION,SUPPORT SERVICES,EMPLOYEE EXPENSES,100754942,144
United Kingdom Atomic Energy Authority,United Kingdom Atomic Energy Authority,07/02/2015,PROFESSIONAL SUBSCRIPTION,SUPPORT SERVICES,EMPLOYEE EXPENSES,100755031,283
United Kingdom Atomic Energy Authority,United Kingdom Atomic Energy Authority,12/02/2015,PROFESSIONAL SUBSCRIPTION,SUPPORT SERVICES,EMPLOYEE EXPENSES,100755068,164
United Kingdom Atomic Energy Authority,United Kingdom Atomic Energy Authority,12/02/2015,MILEAGE ALLOWANCE,SUPPORT SERVICES,EMPLOYEE EXPENSES,100755083,13.5
United Kingdom Atomic Energy Authority,United Kingdom Atomic Energy Authority,12/02/2015,MILEAGE ALLOWANCE,SUPPORT SERVICES,EMPLOYEE EXPENSES,100755084,13.5
United Kingdom Atomic Energy Authority,United Kingdom Atomic Energy Authority,12/02/2015,MILEAGE ALLOWANCE,SUPPORT SERVICES,EMPLOYEE EXPENSES,100755085,13.5
United Kingdom Atomic Energy Authority,United Kingdom Atomic Energy Authority,12/02/2015,MILEAGE ALLOWANCE,SUPPORT SERVICES,EMPLOYEE EXPENSES,100755086,13.5
United Kingdom Atomic Energy Authority,United Kingdom Atomic Energy Authority,19/02/2015,PROFESSIONAL SUBSCRIPTION,SUPPORT SERVICES,EMPLOYEE EXPENSES,100758003,160.7
United Kingdom Atomic Energy Authority,United Kingdom Atomic Energy Authority,18/02/2015,STATIONERY,FUSION,FLAPS ENVELOPES LTD,5100314623,489.52
United Kingdom Atomic Energy Authority,United Kingdom Atomic Energy Authority,28/01/2015,STATIONERY,FUSION,PREMIER PAPER GROUP LTD,5100315205,755.63
United Kingdom Atomic Energy Authority,United Kingdom Atomic Energy Authority,28/01/2015,STATIONERY,FUSION,FINE PRINT SERVICES,5100315278,796
United Kingdom Atomic Energy Authority,United Kingdom Atomic Energy Authority,28/01/2015,STATIONERY,FUSION,FINE PRINT SERVICES,5100315279,466.02
United Kingdom Atomic Energy Authority,United Kingdom Atomic Energy Authority,09/02/2015,OPERATING LEASE,FUSION,ANNODATA BUSINESS COMMUNICATIONS,5100315761,1380
United Kingdom Atomic Energy Authority,United Kingdom Atomic Energy Authority,28/01/2015,STATIONERY,FUSION,HOBS REPROGRAPHICS PLC,5100315773,2.22
United Kingdom Atomic Energy Authority,United Kingdom Atomic Energy Authority,28/01/2015,STATIONERY,FUSION,HOBS REPROGRAPHICS PLC,5100315774,2.22
United Kingdom Atomic Energy Authority,United Kingdom Atomic Energy Authority,26/01/2015,STATIONERY,FUSION,PREMIER PAPER GROUP LTD,5100316014,423
United Kingdom Atomic Energy Authority,United Kingdom Atomic Energy Authority,09/02/2015,STATIONERY,FUSION,FINE PRINT SERVICES,5100316271,590
United Kingdom Atomic Energy Authority,United Kingdom Atomic Energy Authority,02/02/2015,STATIONERY,FUSION,HOBS REPROGRAPHICS PLC,5100316333,3.13
United Kingdom Atomic Energy Authority,United Kingdom Atomic Energy Authority,02/02/2015,STATIONERY,FUSION,HOBS REPROGRAPHICS PLC,5100316334,7.22
United Kingdom Atomic Energy Authority,United Kingdom Atomic Energy Authority,02/02/2015,STATIONERY,FUSION,HOBS REPROGRAPHICS PLC,5100316335,122.74
United Kingdom Atomic Energy Authority,United Kingdom Atomic Energy Authority,18/02/2015,STATIONERY,FUSION,HOBS REPROGRAPHICS PLC,5100316336,2.54
United Kingdom Atomic Energy Authority,United Kingdom Atomic Energy Authority,18/02/2015,STATIONERY,FUSION,HOBS REPROGRAPHICS PLC,5100316337,709
United Kingdom Atomic Energy Authority,United Kingdom Atomic Energy Authority,18/02/2015,STATIONERY,FUSION,VIVID LAMINATING TECHNOLOGIES,5100316366,831.23
United Kingdom Atomic Energy Authority,United Kingdom Atomic Energy Authority,18/02/2015,STATIONERY,FUSION,PREMIER PAPER GROUP LTD,5100316701,205.53
United Kingdom Atomic Energy Authority,United Kingdom Atomic Energy Authority,18/02/2015,STATIONERY,FUSION,HOBS REPROGRAPHICS PLC,5100316739,45
United Kingdom Atomic Energy Authority,United Kingdom Atomic Energy Authority,18/02/2015,STATIONERY,FUSION,HOBS REPROGRAPHICS PLC,5100316740,7.5
United Kingdom Atomic Energy Authority,United Kingdom Atomic Energy Authority,09/02/2015,STATIONERY,FUSION,ARTISAN LITHO PRINT  DESIGN,5100316743,130
United Kingdom Atomic Energy Authority,United Kingdom Atomic Energy Authority,18/02/2015,STATIONERY,FUSION,FINE PRINT SERVICES,5100317046,178
United Kingdom Atomic Energy Authority,United Kingdom Atomic Energy Authority,18/02/2015,STATIONERY,FUSION,FINE PRINT SERVICES,5100317048,80
United Kingdom Atomic Energy Authority,United Kingdom Atomic Energy Authority,18/02/2015,STATIONERY,FUSION,FINE PRINT SERVICES,5100317049,190
United Kingdom Atomic Energy Authority,United Kingdom Atomic Energy Authority,18/02/2015,STATIONERY,FUSION,MPS SERVICES LTD,5100317366,341
United Kingdom Atomic Energy Authority,United Kingdom Atomic Energy Authority,04/02/2015,PRINTING & GRAPHICS,FUSION,PRINTING & GRAPHICS,1900060706,90
United Kingdom Atomic Energy Authority,United Kingdom Atomic Energy Authority,09/02/2015,TAXIS,FUSION,HAROLDS CARS,5100316624,3329.06
United Kingdom Atomic Energy Authority,United Kingdom Atomic Energy Authority,09/02/2015,ELECTRICITY,FUSION,NATIONAL GRID TRANSCO,5100316623,3786.94
United Kingdom Atomic Energy Authority,United Kingdom Atomic Energy Authority,18/02/2015,COMPENSATION AND LEGAL FEES,FUSION,MORGAN COLE,5100317368,780
United Kingdom Atomic Energy Authority,United Kingdom Atomic Energy Authority,28/01/2015,MATERIALS & SPARES,FUSION,WELLINGTON TUBE SUPPLIES LTD,5100312864,562.5
United Kingdom Atomic Energy Authority,United Kingdom Atomic Energy Authority,09/02/2015,PERSONAL PROTECTIVE EQUIPMENT,FUSION,BUCK & HICKMAN LTD,5100316331,131.99
United Kingdom Atomic Energy Authority,United Kingdom Atomic Energy Authority,09/02/2015,PERSONAL PROTECTIVE EQUIPMENT,FUSION,BUCK & HICKMAN LTD,5100316657,-131.99
United Kingdom Atomic Energy Authority,United Kingdom Atomic Energy Authority,26/01/2015,MATERIALS & SPARES,FUSION,FORGEWELD LTD,5100311899,707.35
United Kingdom Atomic Energy Authority,United Kingdom Atomic Energy Authority,18/02/2015,REPAIRS & MAINTENANCE,FUSION,BEAVER 84 LIMITED,5100315087,2314.5
United Kingdom Atomic Energy Authority,United Kingdom Atomic Energy Authority,28/01/2015,REPAIRS & MAINTENANCE,FUSION,FARO EUROPE GMBH CO KG,5100315253,1875.69
United Kingdom Atomic Energy Authority,United Kingdom Atomic Energy Authority,18/02/2015,HIRED STAFF,FUSION,MORSON INTERNATIONAL,5100315671,367.81
United Kingdom Atomic Energy Authority,United Kingdom Atomic Energy Authority,02/02/2015,GASES,FUSION,BOC LTD,5100315788,41.44
United Kingdom Atomic Energy Authority,United Kingdom Atomic Energy Authority,26/01/2015,PROFESSIONAL SERVICES,FUSION,BNS NUCLEAR SERVICES,5100315791,43404.45
United Kingdom Atomic Energy Authority,United Kingdom Atomic Energy Authority,26/01/2015,MATERIALS & SPARES,FUSION,CROMWELL LTD,5100315820,219.36
United Kingdom Atomic Energy Authority,United Kingdom Atomic Energy Authority,26/01/2015,MATERIALS & SPARES,FUSION,CROMWELL LTD,5100315827,955.62
United Kingdom Atomic Energy Authority,United Kingdom Atomic Energy Authority,11/02/2015,REPAIRS & MAINTENANCE,FUSION,FARO EUROPE GMBH CO KG,5100315945,2831.42
United Kingdom Atomic Energy Authority,United Kingdom Atomic Energy Authority,26/01/2015,CLEANING,FUSION,OCS CLEANING & SUPPORT SERVICES,5100315958,1969.07
United Kingdom Atomic Energy Authority,United Kingdom Atomic Energy Authority,26/01/2015,CLEANING,FUSION,OCS CLEANING & SUPPORT SERVICES,5100315971,1470.59
United Kingdom Atomic Energy Authority,United Kingdom Atomic Energy Authority,28/01/2015,MATERIALS & SPARES,FUSION,OXFORD BOLTS & BEARINGS,5100315985,181.34
United Kingdom Atomic Energy Authority,United Kingdom Atomic Energy Authority,26/01/2015,MATERIALS & SPARES,FUSION,CROMWELL LTD,5100316007,215.18
United Kingdom Atomic Energy Authority,United Kingdom Atomic Energy Authority,26/01/2015,HIRED STAFF,FUSION,MORSON INTERNATIONAL,5100316066,4826.6
United Kingdom Atomic Energy Authority,United Kingdom Atomic Energy Authority,02/02/2015,MATERIALS & SPARES,FUSION,TVH,5100316158,365.5
United Kingdom Atomic Energy Authority,United Kingdom Atomic Energy Authority,28/01/2015,IT EQUIPMENT NON CAPITAL,FUSION,ORACLE,5100316169,3161.64
United Kingdom Atomic Energy Authority,United Kingdom Atomic Energy Authority,02/02/2015,REPAIRS & MAINTENANCE,FUSION,BSA MACHINE TOOLS LTD,5100316176,392
United Kingdom Atomic Energy Authority,United Kingdom Atomic Energy Authority,02/02/2015,MATERIALS & SPARES,FUSION,BUDGET FORKTRUCKS LTD,5100316244,390
United Kingdom Atomic Energy Authority,United Kingdom Atomic Energy Authority,02/02/2015,MATERIALS & SPARES,FUSION,BUDGET FORKTRUCKS LTD,5100316245,793
United Kingdom Atomic Energy Authority,United Kingdom Atomic Energy Authority,02/02/2015,PLANT SPARES,FUSION,Beacon Group International Ltd,5100316250,281.83
United Kingdom Atomic Energy Authority,United Kingdom Atomic Energy Authority,02/02/2015,PROFESSIONAL SERVICES,FUSION,BNS NUCLEAR SERVICES,5100316318,42117
United Kingdom Atomic Energy Authority,United Kingdom Atomic Energy Authority,02/02/2015,HIRED STAFF,FUSION,MORSON INTERNATIONAL,5100316361,13122.72
United Kingdom Atomic Energy Authority,United Kingdom Atomic Energy Authority,02/02/2015,PERSONAL PROTECTIVE EQUIPMENT,FUSION,ARCO LTD,5100316452,96.7
United Kingdom Atomic Energy Authority,United Kingdom Atomic Energy Authority,02/02/2015,MATERIALS & SPARES,FUSION,RS COMPONENTS LTD,5100316476,140.02
United Kingdom Atomic Energy Authority,United Kingdom Atomic Energy Authority,09/02/2015,HIRED STAFF,FUSION,MORSON INTERNATIONAL,5100316530,36.58
United Kingdom Atomic Energy Authority,United Kingdom Atomic Energy Authority,09/02/2015,HIRED STAFF,FUSION,MORSON INTERNATIONAL,5100316532,169.13
United Kingdom Atomic Energy Authority,United Kingdom Atomic Energy Authority,09/02/2015,HIRED STAFF,FUSION,MORSON INTERNATIONAL,5100316533,40.73
United Kingdom Atomic Energy Authority,United Kingdom Atomic Energy Authority,09/02/2015,HIRED STAFF,FUSION,MORSON INTERNATIONAL,5100316535,37.65
United Kingdom Atomic Energy Authority,United Kingdom Atomic Energy Authority,09/02/2015,HIRED STAFF,FUSION,MORSON INTERNATIONAL,5100316536,121.4
United Kingdom Atomic Energy Authority,United Kingdom Atomic Energy Authority,09/02/2015,HIRED STAFF,FUSION,MORSON INTERNATIONAL,5100316538,19.01
United Kingdom Atomic Energy Authority,United Kingdom Atomic Energy Authority,09/02/2015,HIRED STAFF,FUSION,MORSON INTERNATIONAL,5100316539,-6645.79
United Kingdom Atomic Energy Authority,United Kingdom Atomic Energy Authority,09/02/2015,MATERIALS & SPARES,FUSION,B&M Engineering Ltd,5100316603,195
United Kingdom Atomic Energy Authority,United Kingdom Atomic Energy Authority,09/02/2015,HIRED STAFF,FUSION,MORSON INTERNATIONAL,5100316607,376715.62
United Kingdom Atomic Energy Authority,United Kingdom Atomic Energy Authority,18/02/2015,HIRED STAFF,FUSION,MORSON INTERNATIONAL,5100316781,214.92
United Kingdom Atomic Energy Authority,United Kingdom Atomic Energy Authority,18/02/2015,MATERIALS & SPARES,FUSION,RS COMPONENTS LTD,5100316862,41.79
United Kingdom Atomic Energy Authority,United Kingdom Atomic Energy Authority,18/02/2015,PROFESSIONAL SERVICES,FUSION,BNS NUCLEAR SERVICES,5100316909,43422.42
United Kingdom Atomic Energy Authority,United Kingdom Atomic Energy Authority,18/02/2015,PROFESSIONAL SERVICES,FUSION,BNS NUCLEAR SERVICES,5100316982,36848.25
United Kingdom Atomic Energy Authority,United Kingdom Atomic Energy Authority,18/02/2015,GASES,FUSION,BOC LTD,5100317195,60
United Kingdom Atomic Energy Authority,United Kingdom Atomic Energy Authority,18/02/2015,GASES,FUSION,BOC LTD,5100317198,40.56
United Kingdom Atomic Energy Authority,United Kingdom Atomic Energy Authority,18/02/2015,HIRED STAFF,FUSION,MORSON INTERNATIONAL,5100317203,-270.5
United Kingdom Atomic Energy Authority,United Kingdom Atomic Energy Authority,18/02/2015,MATERIALS & SPARES,FUSION,CROMWELL LTD,5100317264,404.03
United Kingdom Atomic Energy Authority,United Kingdom Atomic Energy Authority,18/02/2015,GASES,FUSION,BOC LTD,5100317271,-9.86
United Kingdom Atomic Energy Authority,United Kingdom Atomic Energy Authority,18/02/2015,GASES,FUSION,BOC LTD,5100317281,9.86
United Kingdom Atomic Energy Authority,United Kingdom Atomic Energy Authority,18/02/2015,MATERIALS & SPARES,FUSION,ALPHA ENGINEERING SUPPLIES,5100317284,46.34
United Kingdom Atomic Energy Authority,United Kingdom Atomic Energy Authority,18/02/2015,CLEANING,FUSION,OCS CLEANING & SUPPORT SERVICES,5100317358,1570.27
United Kingdom Atomic Energy Authority,United Kingdom Atomic Energy Authority,18/02/2015,REPAIRS & MAINTENANCE,FUSION,BEAVER 84 LIMITED,5100317360,-60
United Kingdom Atomic Energy Authority,United Kingdom Atomic Energy Authority,18/02/2015,PLANT & EQUIPMENT,FUSION,TACKLESTORE LTD,5100317438,759.05
United Kingdom Atomic Energy Authority,United Kingdom Atomic Energy Authority,09/02/2015,MATERIALS & SPARES,FUSION,CROMWELL LTD,5100313948,518.3
United Kingdom Atomic Energy Authority,United Kingdom Atomic Energy Authority,26/01/2015,MATERIALS & SPARES,FUSION,HIDEN ANALYTICAL LTD,5100314774,1920
United Kingdom Atomic Energy Authority,United Kingdom Atomic Energy Authority,04/02/2015,PERSONAL PROTECTIVE EQUIPMENT,FUSION,BUCK & HICKMAN LTD,5100315132,137.23
United Kingdom Atomic Energy Authority,United Kingdom Atomic Energy Authority,04/02/2015,PERSONAL PROTECTIVE EQUIPMENT,FUSION,BUCK & HICKMAN LTD,5100315133,3.51
United Kingdom Atomic Energy Authority,United Kingdom Atomic Energy Authority,04/02/2015,PERSONAL PROTECTIVE EQUIPMENT,FUSION,BUCK & HICKMAN LTD,5100315134,21.82
United Kingdom Atomic Energy Authority,United Kingdom Atomic Energy Authority,04/02/2015,PERSONAL PROTECTIVE EQUIPMENT,FUSION,BUCK & HICKMAN LTD,5100315172,17.55
United Kingdom Atomic Energy Authority,United Kingdom Atomic Energy Authority,04/02/2015,PERSONAL PROTECTIVE EQUIPMENT,FUSION,BUCK & HICKMAN LTD,5100315173,27.94
United Kingdom Atomic Energy Authority,United Kingdom Atomic Energy Authority,04/02/2015,PERSONAL PROTECTIVE EQUIPMENT,FUSION,BUCK & HICKMAN LTD,5100315192,103.23
United Kingdom Atomic Energy Authority,United Kingdom Atomic Energy Authority,04/02/2015,PERSONAL PROTECTIVE EQUIPMENT,FUSION,BUCK & HICKMAN LTD,5100315194,7.02
United Kingdom Atomic Energy Authority,United Kingdom Atomic Energy Authority,04/02/2015,PERSONAL PROTECTIVE EQUIPMENT,FUSION,BUCK & HICKMAN LTD,5100315195,92.8
United Kingdom Atomic Energy Authority,United Kingdom Atomic Energy Authority,26/01/2015,MATERIALS & SPARES,FUSION,RS COMPONENTS LTD,5100315914,212.27
United Kingdom Atomic Energy Authority,United Kingdom Atomic Energy Authority,11/02/2015,PLANT & EQUIPMENT,FUSION,GALVANO T GMBH,5100315942,53639.85
United Kingdom Atomic Energy Authority,United Kingdom Atomic Energy Authority,26/01/2015,MATERIALS & SPARES,FUSION,RS COMPONENTS LTD,5100316043,155.63
United Kingdom Atomic Energy Authority,United Kingdom Atomic Energy Authority,26/01/2015,MATERIALS & SPARES,FUSION,CROMWELL LTD,5100316056,-296.24
United Kingdom Atomic Energy Authority,United Kingdom Atomic Energy Authority,02/02/2015,PERSONAL PROTECTIVE EQUIPMENT,FUSION,ARCO LTD,5100316185,74.1
United Kingdom Atomic Energy Authority,United Kingdom Atomic Energy Authority,02/02/2015,PLANT SPARES,FUSION,CONDEC INDUSTRIAL MAINTENANCE,5100316238,1920
United Kingdom Atomic Energy Authority,United Kingdom Atomic Energy Authority,02/02/2015,MATERIALS & SPARES,FUSION,RS COMPONENTS LTD,5100316243,13.93
United Kingdom Atomic Energy Authority,United Kingdom Atomic Energy Authority,02/02/2015,MATERIALS & SPARES,FUSION,RS COMPONENTS LTD,5100316252,603.91
United Kingdom Atomic Energy Authority,United Kingdom Atomic Energy Authority,02/02/2015,MATERIALS & SPARES,FUSION,RS COMPONENTS LTD,5100316286,42.73
United Kingdom Atomic Energy Authority,United Kingdom Atomic Energy Authority,02/02/2015,MATERIALS & SPARES,FUSION,METALFAST (A DIVISION OF,5100316485,39.93
United Kingdom Atomic Energy Authority,United Kingdom Atomic Energy Authority,11/02/2015,INSPECTION SERVICES,FUSION,ASHDALE ENGINEERING,5100316552,9208.54
United Kingdom Atomic Energy Authority,United Kingdom Atomic Energy Authority,09/02/2015,PERSONAL PROTECTIVE EQUIPMENT,FUSION,BUCK & HICKMAN LTD,5100316651,45.63
United Kingdom Atomic Energy Authority,United Kingdom Atomic Energy Authority,09/02/2015,PERSONAL PROTECTIVE EQUIPMENT,FUSION,BUCK & HICKMAN LTD,5100316652,10.53
United Kingdom Atomic Energy Authority,United Kingdom Atomic Energy Authority,09/02/2015,PERSONAL PROTECTIVE EQUIPMENT,FUSION,BUCK & HICKMAN LTD,5100316653,212.27
United Kingdom Atomic Energy Authority,United Kingdom Atomic Energy Authority,09/02/2015,PERSONAL PROTECTIVE EQUIPMENT,FUSION,BUCK & HICKMAN LTD,5100316654,157.96
United Kingdom Atomic Energy Authority,United Kingdom Atomic Energy Authority,05/02/2015,MATERIALS & SPARES,FUSION,CROMWELL LTD,5100316756,296.24
United Kingdom Atomic Energy Authority,United Kingdom Atomic Energy Authority,05/02/2015,MATERIALS & SPARES,FUSION,CROMWELL LTD,5100316757,-296.24
United Kingdom Atomic Energy Authority,United Kingdom Atomic Energy Authority,05/02/2015,MATERIALS & SPARES,FUSION,CROMWELL LTD,5100316758,-518.3
United Kingdom Atomic Energy Authority,United Kingdom Atomic Energy Authority,05/02/2015,MATERIALS & SPARES,FUSION,CROMWELL LTD,5100316759,518.3
United Kingdom Atomic Energy Authority,United Kingdom Atomic Energy Authority,09/02/2015,MATERIALS & SPARES,FUSION,METALFAST (A DIVISION OF,5100316769,86.43
United Kingdom Atomic Energy Authority,United Kingdom Atomic Energy Authority,18/02/2015,PLANT & EQUIPMENT,FUSION,MILLHILL TOOLS LTD,5100316885,20.1
United Kingdom Atomic Energy Authority,United Kingdom Atomic Energy Authority,18/02/2015,PLANT & EQUIPMENT,FUSION,MILLHILL TOOLS LTD,5100316887,82.82
United Kingdom Atomic Energy Authority,United Kingdom Atomic Energy Authority,18/02/2015,MATERIALS & SPARES,FUSION,METALFAST (A DIVISION OF,5100317045,31.84
United Kingdom Atomic Energy Authority,United Kingdom Atomic Energy Authority,18/02/2015,PLANT SPARES,FUSION,CUTWEL LTD,5100317230,416.8
United Kingdom Atomic Energy Authority,United Kingdom Atomic Energy Authority,18/02/2015,GASES,FUSION,BOC LTD,5100317254,61.11
United Kingdom Atomic Energy Authority,United Kingdom Atomic Energy Authority,26/01/2015,BUILDING REPAIRS,FUSION,KNOWLES & SONS (OXFORD) LTD,5100315893,26.71
United Kingdom Atomic Energy Authority,United Kingdom Atomic Energy Authority,26/01/2015,BUILDING REPAIRS,FUSION,KNOWLES & SONS (OXFORD) LTD,5100315897,42.37
United Kingdom Atomic Energy Authority,United Kingdom Atomic Energy Authority,18/02/2015,BUILDING REPAIRS,FUSION,LORNE STEWART PLC,5100317082,354.92
United Kingdom Atomic Energy Authority,United Kingdom Atomic Energy Authority,22/02/2015,OTHER TRAINING COSTS,FUSION,NUCOPLUS.COM,100758892,1074
United Kingdom Atomic Energy Authority,United Kingdom Atomic Energy Authority,11/02/2015,MATERIALS & SPARES,FUSION,RITTAL,5100312545,198.14
United Kingdom Atomic Energy Authority,United Kingdom Atomic Energy Authority,26/01/2015,MATERIALS & SPARES,FUSION,RS COMPONENTS LTD,5100313004,21.57
United Kingdom Atomic Energy Authority,United Kingdom Atomic Energy Authority,18/02/2015,MATERIALS & SPARES,FUSION,RS COMPONENTS LTD,5100313876,83.88
United Kingdom Atomic Energy Authority,United Kingdom Atomic Energy Authority,26/01/2015,MATERIALS & SPARES,FUSION,RS COMPONENTS LTD,5100314227,587.47
United Kingdom Atomic Energy Authority,United Kingdom Atomic Energy Authority,11/02/2015,MATERIALS & SPARES,FUSION,RITTAL,5100315681,20.27
United Kingdom Atomic Energy Authority,United Kingdom Atomic Energy Authority,26/01/2015,MATERIALS & SPARES,FUSION,OXFORD BOLTS & BEARINGS,5100315764,45.7
United Kingdom Atomic Energy Authority,United Kingdom Atomic Energy Authority,26/01/2015,MATERIALS & SPARES,FUSION,Marker Tech ltd,5100315800,42.93
United Kingdom Atomic Energy Authority,United Kingdom Atomic Energy Authority,26/01/2015,MATERIALS & SPARES,FUSION,CROMWELL LTD,5100315824,68.7
United Kingdom Atomic Energy Authority,United Kingdom Atomic Energy Authority,26/01/2015,MATERIALS & SPARES,FUSION,CROMWELL LTD,5100315825,230.01
United Kingdom Atomic Energy Authority,United Kingdom Atomic Energy Authority,26/01/2015,MATERIALS & SPARES,FUSION,RS COMPONENTS LTD,5100315919,140.99
United Kingdom Atomic Energy Authority,United Kingdom Atomic Energy Authority,26/01/2015,MATERIALS & SPARES,FUSION,RS COMPONENTS LTD,5100315924,24.06
United Kingdom Atomic Energy Authority,United Kingdom Atomic Energy Authority,26/01/2015,MATERIALS & SPARES,FUSION,RS COMPONENTS LTD,5100315926,-18.66
United Kingdom Atomic Energy Authority,United Kingdom Atomic Energy Authority,26/01/2015,MATERIALS & SPARES,FUSION,RS COMPONENTS LTD,5100315927,-21.57
United Kingdom Atomic Energy Authority,United Kingdom Atomic Energy Authority,26/01/2015,MATERIALS & SPARES,FUSION,RS COMPONENTS LTD,5100316016,51.77
United Kingdom Atomic Energy Authority,United Kingdom Atomic Energy Authority,09/02/2015,MATERIALS & SPARES,FUSION,RS COMPONENTS LTD,5100316042,319.97
United Kingdom Atomic Energy Authority,United Kingdom Atomic Energy Authority,26/01/2015,MATERIALS & SPARES,FUSION,RS COMPONENTS LTD,5100316045,478.49
United Kingdom Atomic Energy Authority,United Kingdom Atomic Energy Authority,02/02/2015,MATERIALS & SPARES,FUSION,FARNELL ELECTRONIC,5100316083,313.5
United Kingdom Atomic Energy Authority,United Kingdom Atomic Energy Authority,02/02/2015,MATERIALS & SPARES,FUSION,THE BARCODE WAREHOUSE LTD,5100316116,1312.5
United Kingdom Atomic Energy Authority,United Kingdom Atomic Energy Authority,02/02/2015,MATERIALS & SPARES,FUSION,RS COMPONENTS LTD,5100316128,7.86
United Kingdom Atomic Energy Authority,United Kingdom Atomic Energy Authority,02/02/2015,MATERIALS & SPARES,FUSION,Marker Tech ltd,5100316180,30.91
United Kingdom Atomic Energy Authority,United Kingdom Atomic Energy Authority,02/02/2015,MATERIALS & SPARES,FUSION,RS COMPONENTS LTD,5100316251,162.34
United Kingdom Atomic Energy Authority,United Kingdom Atomic Energy Authority,02/02/2015,PLANT SPARES,FUSION,BECKHOFF AUTOMATION LTD,5100316312,1845.4
United Kingdom Atomic Energy Authority,United Kingdom Atomic Energy Authority,02/02/2015,MATERIALS & SPARES,FUSION,RS COMPONENTS LTD,5100316319,65.92
United Kingdom Atomic Energy Authority,United Kingdom Atomic Energy Authority,09/02/2015,SOFTWARE,FUSION,ADRIS LTD,5100316348,495
United Kingdom Atomic Energy Authority,United Kingdom Atomic Energy Authority,02/02/2015,MATERIALS & SPARES,FUSION,FARNELL ELECTRONIC,5100316372,42.7
United Kingdom Atomic Energy Authority,United Kingdom Atomic Energy Authority,02/02/2015,MATERIALS & SPARES,FUSION,CROMWELL LTD,5100316399,69.86
United Kingdom Atomic Energy Authority,United Kingdom Atomic Energy Authority,04/02/2015,MATERIALS & SPARES,FUSION,RS COMPONENTS LTD,5100316470,747.01
United Kingdom Atomic Energy Authority,United Kingdom Atomic Energy Authority,02/02/2015,MATERIALS & SPARES,FUSION,FARNELL ELECTRONIC,5100316510,140.35
United Kingdom Atomic Energy Authority,United Kingdom Atomic Energy Authority,09/02/2015,PLANT & EQUIPMENT,FUSION,LEMO UK LTD,5100316531,141.04
United Kingdom Atomic Energy Authority,United Kingdom Atomic Energy Authority,09/02/2015,PROFESSIONAL SERVICES,FUSION,METRO ENGINEERING AND PLATING WORKS,5100316543,200
United Kingdom Atomic Energy Authority,United Kingdom Atomic Energy Authority,09/02/2015,MATERIALS & SPARES,FUSION,B&M Engineering Ltd,5100316601,500
United Kingdom Atomic Energy Authority,United Kingdom Atomic Energy Authority,09/02/2015,MATERIALS & SPARES,FUSION,BUDGET FORKTRUCKS LTD,5100316613,90
United Kingdom Atomic Energy Authority,United Kingdom Atomic Energy Authority,09/02/2015,MATERIALS & SPARES,FUSION,BUDGET FORKTRUCKS LTD,5100316615,100
United Kingdom Atomic Energy Authority,United Kingdom Atomic Energy Authority,09/02/2015,MATERIALS & SPARES,FUSION,OXFORD BOLTS & BEARINGS,5100316679,272.19
United Kingdom Atomic Energy Authority,United Kingdom Atomic Energy Authority,09/02/2015,PROFESSIONAL SERVICES,FUSION,SCIENTIFIC MANUFACTURING,5100316741,803
United Kingdom Atomic Energy Authority,United Kingdom Atomic Energy Authority,09/02/2015,MATERIALS & SPARES,FUSION,RS COMPONENTS LTD,5100316821,-319.97
United Kingdom Atomic Energy Authority,United Kingdom Atomic Energy Authority,09/02/2015,MATERIALS & SPARES,FUSION,RS COMPONENTS LTD,5100316844,1186.01
United Kingdom Atomic Energy Authority,United Kingdom Atomic Energy Authority,18/02/2015,MATERIALS & SPARES,FUSION,RS COMPONENTS LTD,5100316896,117.52
United Kingdom Atomic Energy Authority,United Kingdom Atomic Energy Authority,18/02/2015,MATERIALS & SPARES,FUSION,RS COMPONENTS LTD,5100316934,6597.9
United Kingdom Atomic Energy Authority,United Kingdom Atomic Energy Authority,11/02/2015,MATERIALS & SPARES,FUSION,RITTAL,5100317105,-20.54
United Kingdom Atomic Energy Authority,United Kingdom Atomic Energy Authority,18/02/2015,PROFESSIONAL SERVICES,FUSION,SCIENTIFIC MANUFACTURING,5100317167,765
United Kingdom Atomic Energy Authority,United Kingdom Atomic Energy Authority,18/02/2015,PLANT SPARES,FUSION,MOTION CONTROL PRODUCTS,5100317194,1165.56
United Kingdom Atomic Energy Authority,United Kingdom Atomic Energy Authority,18/02/2015,SOFTWARE,FUSION,IGE+XAO LTD,5100317201,3195.1
United Kingdom Atomic Energy Authority,United Kingdom Atomic Energy Authority,18/02/2015,SOFTWARE,FUSION,IGE+XAO LTD,5100317202,3487.73
United Kingdom Atomic Energy Authority,United Kingdom Atomic Energy Authority,18/02/2015,MATERIALS & SPARES,FUSION,FARNELL ELECTRONIC,5100317277,229.14
United Kingdom Atomic Energy Authority,United Kingdom Atomic Energy Authority,18/02/2015,MATERIALS & SPARES,FUSION,IS RAYFAST LTD,5100317283,208.6
United Kingdom Atomic Energy Authority,United Kingdom Atomic Energy Authority,18/02/2015,MATERIALS & SPARES,FUSION,RS COMPONENTS LTD,5100317329,35.45
United Kingdom Atomic Energy Authority,United Kingdom Atomic Energy Authority,18/02/2015,MATERIALS & SPARES,FUSION,RS COMPONENTS LTD,5100317379,153.16
United Kingdom Atomic Energy Authority,United Kingdom Atomic Energy Authority,18/02/2015,MATERIALS & SPARES,FUSION,RS COMPONENTS LTD,5100317411,22.85
United Kingdom Atomic Energy Authority,United Kingdom Atomic Energy Authority,18/02/2015,MATERIALS & SPARES,FUSION,FARNELL ELECTRONIC,5100317492,-21.18
United Kingdom Atomic Energy Authority,United Kingdom Atomic Energy Authority,18/02/2015,MATERIALS & SPARES,FUSION,FARNELL ELECTRONIC,5100317493,21.18
United Kingdom Atomic Energy Authority,United Kingdom Atomic Energy Authority,20/02/2015,MATERIALS & SPARES,FUSION,RS COMPONENTS LTD,5100317577,64.53
United Kingdom Atomic Energy Authority,United Kingdom Atomic Energy Authority,20/02/2015,MATERIALS & SPARES,FUSION,RS COMPONENTS LTD,5100317578,-64.53
United Kingdom Atomic Energy Authority,United Kingdom Atomic Energy Authority,28/01/2015,OTHER EXTERNAL COSTS,FUSION,Delta Tau UK Ltd,1900060693,3325
United Kingdom Atomic Energy Authority,United Kingdom Atomic Energy Authority,26/01/2015,PLANT & EQUIPMENT,FUSION,Trustco Plc ,5100315775,3700.05
United Kingdom Atomic Energy Authority,United Kingdom Atomic Energy Authority,26/01/2015,SOFTWARE,FUSION,APPLIED CAE,5100315843,1453
United Kingdom Atomic Energy Authority,United Kingdom Atomic Energy Authority,02/02/2015,STATIONERY,FUSION,HOBS REPROGRAPHICS PLC,5100316508,7.51
United Kingdom Atomic Energy Authority,United Kingdom Atomic Energy Authority,26/01/2015,BUILDING REPAIRS,FUSION,KNOWLES & SONS (OXFORD) LTD,5100315874,25
United Kingdom Atomic Energy Authority,United Kingdom Atomic Energy Authority,28/01/2015,TRAINING COURSE FEES,FUSION,INSTITUTE OF MECHANICAL ENGINEERS,5100315944,998
United Kingdom Atomic Energy Authority,United Kingdom Atomic Energy Authority,26/01/2015,TRAINING COURSE FEES,FUSION,NAFEMS LTD,5100316037,152
United Kingdom Atomic Energy Authority,United Kingdom Atomic Energy Authority,09/02/2015,MATERIALS & SPARES,FUSION,ANIXTER (UK) LTD,5100315772,744
United Kingdom Atomic Energy Authority,United Kingdom Atomic Energy Authority,26/01/2015,PLANT & EQUIPMENT,FUSION,EDMUNDSON ELECTRICALS LTD,5100315793,1187.28
United Kingdom Atomic Energy Authority,United Kingdom Atomic Energy Authority,26/01/2015,IT EQUIPMENT NON CAPITAL,FUSION,DASSAULT SYSTEMES SIMULIA LTD,5100316063,23263.19
United Kingdom Atomic Energy Authority,United Kingdom Atomic Energy Authority,02/02/2015,PLANT & EQUIPMENT,FUSION,EDMUNDSON ELECTRICALS LTD,5100316167,661.49
United Kingdom Atomic Energy Authority,United Kingdom Atomic Energy Authority,18/02/2015,MATERIALS & SPARES,FUSION,FARNELL ELECTRONIC,5100316971,453.12
United Kingdom Atomic Energy Authority,United Kingdom Atomic Energy Authority,18/02/2015,PLANT & EQUIPMENT,FUSION,EDMUNDSON ELECTRICALS LTD,5100317340,1117.37
United Kingdom Atomic Energy Authority,United Kingdom Atomic Energy Authority,18/02/2015,MATERIALS & SPARES,FUSION,MOUSER ELECTRONICS,5100317375,205.8
United Kingdom Atomic Energy Authority,United Kingdom Atomic Energy Authority,26/01/2015,TRAINING COURSE FEES,FUSION,OXFORD BROOKES UNIVERSITY,5100316021,4000
United Kingdom Atomic Energy Authority,United Kingdom Atomic Energy Authority,18/02/2015,MATERIALS & SPARES,FUSION,KEY INDUSTRIAL EQUIPMENT LTD,5100316954,203.3
United Kingdom Atomic Energy Authority,United Kingdom Atomic Energy Authority,18/02/2015,PLANT & EQUIPMENT,FUSION,REECE SAFETY PRODUCTS LTD,5100317338,450.19
United Kingdom Atomic Energy Authority,United Kingdom Atomic Energy Authority,18/02/2015,TRAINING COURSE FEES,FUSION,BOISWOOD LLP,1900060737,2200
United Kingdom Atomic Energy Authority,United Kingdom Atomic Energy Authority,31/01/2015,MILEAGE ALLOWANCE,FUSION,EMPLOYEE EXPENSES,100754934,66.6
United Kingdom Atomic Energy Authority,United Kingdom Atomic Energy Authority,31/01/2015,MILEAGE ALLOWANCE,FUSION,EMPLOYEE EXPENSES,100754935,66.6
United Kingdom Atomic Energy Authority,United Kingdom Atomic Energy Authority,31/01/2015,MILEAGE ALLOWANCE,FUSION,EMPLOYEE EXPENSES,100754936,66.6
United Kingdom Atomic Energy Authority,United Kingdom Atomic Energy Authority,31/01/2015,OTHER EMPLOYEE EXPENSES,FUSION,EMPLOYEE EXPENSES,100754937,89.3
United Kingdom Atomic Energy Authority,United Kingdom Atomic Energy Authority,31/01/2015,MILEAGE ALLOWANCE,FUSION,EMPLOYEE EXPENSES,100754957,69.75
United Kingdom Atomic Energy Authority,United Kingdom Atomic Energy Authority,31/01/2015,ROAD TRAVEL,FUSION,EMPLOYEE EXPENSES,100754957,3
United Kingdom Atomic Energy Authority,United Kingdom Atomic Energy Authority,07/02/2015,MILEAGE ALLOWANCE,FUSION,EMPLOYEE EXPENSES,100755037,69.75
United Kingdom Atomic Energy Authority,United Kingdom Atomic Energy Authority,07/02/2015,ROAD TRAVEL,FUSION,EMPLOYEE EXPENSES,100755037,3
United Kingdom Atomic Energy Authority,United Kingdom Atomic Energy Authority,12/02/2015,MILEAGE ALLOWANCE,FUSION,EMPLOYEE EXPENSES,100755078,66.6
United Kingdom Atomic Energy Authority,United Kingdom Atomic Energy Authority,12/02/2015,MILEAGE ALLOWANCE,FUSION,EMPLOYEE EXPENSES,100755079,58.5
United Kingdom Atomic Energy Authority,United Kingdom Atomic Energy Authority,12/02/2015,MILEAGE ALLOWANCE,FUSION,EMPLOYEE EXPENSES,100755080,58.5
United Kingdom Atomic Energy Authority,United Kingdom Atomic Energy Authority,12/02/2015,MILEAGE ALLOWANCE,FUSION,EMPLOYEE EXPENSES,100755081,58.5
United Kingdom Atomic Energy Authority,United Kingdom Atomic Energy Authority,19/02/2015,MILEAGE ALLOWANCE,FUSION,EMPLOYEE EXPENSES,100758015,69.75
United Kingdom Atomic Energy Authority,United Kingdom Atomic Energy Authority,19/02/2015,ROAD TRAVEL,FUSION,EMPLOYEE EXPENSES,100758015,3
United Kingdom Atomic Energy Authority,United Kingdom Atomic Energy Authority,19/02/2015,MILEAGE ALLOWANCE,FUSION,EMPLOYEE EXPENSES,100758016,69.75
United Kingdom Atomic Energy Authority,United Kingdom Atomic Energy Authority,19/02/2015,ROAD TRAVEL,FUSION,EMPLOYEE EXPENSES,100758016,3
United Kingdom Atomic Energy Authority,United Kingdom Atomic Energy Authority,19/02/2015,MILEAGE ALLOWANCE,FUSION,EMPLOYEE EXPENSES,100758018,50.4
United Kingdom Atomic Energy Authority,United Kingdom Atomic Energy Authority,26/01/2015,MATERIALS & SPARES,FUSION,RS COMPONENTS LTD,5100315360,26.23
United Kingdom Atomic Energy Authority,United Kingdom Atomic Energy Authority,26/01/2015,MATERIALS & SPARES,FUSION,RS COMPONENTS LTD,5100315382,26.23
United Kingdom Atomic Energy Authority,United Kingdom Atomic Energy Authority,26/01/2015,MATERIALS & SPARES,FUSION,METALFAST (A DIVISION OF,5100315776,107.9
United Kingdom Atomic Energy Authority,United Kingdom Atomic Energy Authority,26/01/2015,MATERIALS & SPARES,FUSION,RS COMPONENTS LTD,5100315921,79.96
United Kingdom Atomic Energy Authority,United Kingdom Atomic Energy Authority,26/01/2015,MATERIALS & SPARES,FUSION,RS COMPONENTS LTD,5100316055,4.23
United Kingdom Atomic Energy Authority,United Kingdom Atomic Energy Authority,02/02/2015,MATERIALS & SPARES,FUSION,RS COMPONENTS LTD,5100316161,143.07
United Kingdom Atomic Energy Authority,United Kingdom Atomic Energy Authority,02/02/2015,MATERIALS & SPARES,FUSION,Rapied Electronics Ltd,5100316192,270
United Kingdom Atomic Energy Authority,United Kingdom Atomic Energy Authority,02/02/2015,MATERIALS & SPARES,FUSION,SMITHS METAL CENTRES LTD,5100316234,402.88
United Kingdom Atomic Energy Authority,United Kingdom Atomic Energy Authority,02/02/2015,MATERIALS & SPARES,FUSION,FARNELL ELECTRONIC,5100316376,188.29
United Kingdom Atomic Energy Authority,United Kingdom Atomic Energy Authority,02/02/2015,MATERIALS & SPARES,FUSION,RS COMPONENTS LTD,5100316473,234.68
United Kingdom Atomic Energy Authority,United Kingdom Atomic Energy Authority,09/02/2015,MATERIALS & SPARES,FUSION,RS COMPONENTS LTD,5100316690,133.72
United Kingdom Atomic Energy Authority,United Kingdom Atomic Energy Authority,09/02/2015,MATERIALS & SPARES,FUSION,RS COMPONENTS LTD,5100316724,44
United Kingdom Atomic Energy Authority,United Kingdom Atomic Energy Authority,09/02/2015,MATERIALS & SPARES,FUSION,RS COMPONENTS LTD,5100316725,45.86
United Kingdom Atomic Energy Authority,United Kingdom Atomic Energy Authority,09/02/2015,MATERIALS & SPARES,FUSION,RS COMPONENTS LTD,5100316732,52.46
United Kingdom Atomic Energy Authority,United Kingdom Atomic Energy Authority,11/02/2015,MATERIALS & SPARES,FUSION,OXFORD BOLTS & BEARINGS,5100316745,218
United Kingdom Atomic Energy Authority,United Kingdom Atomic Energy Authority,09/02/2015,MATERIALS & SPARES,FUSION,RS COMPONENTS LTD,5100316845,210.61
United Kingdom Atomic Energy Authority,United Kingdom Atomic Energy Authority,11/02/2015,PLANT & EQUIPMENT,FUSION,MILLHILL TOOLS LTD,5100316891,18.5
United Kingdom Atomic Energy Authority,United Kingdom Atomic Energy Authority,18/02/2015,MATERIALS & SPARES,FUSION,RS COMPONENTS LTD,5100316928,1.28
United Kingdom Atomic Energy Authority,United Kingdom Atomic Energy Authority,18/02/2015,MATERIALS & SPARES,FUSION,TVH,5100317034,243.7
United Kingdom Atomic Energy Authority,United Kingdom Atomic Energy Authority,18/02/2015,MATERIALS & SPARES,FUSION,WELLINGTON ENGINEERING,5100317036,1595
United Kingdom Atomic Energy Authority,United Kingdom Atomic Energy Authority,18/02/2015,CONSUMABLES,FUSION,SIP ANALYTICAL LTD,5100317141,3308
United Kingdom Atomic Energy Authority,United Kingdom Atomic Energy Authority,18/02/2015,MATERIALS & SPARES,FUSION,METALFAST (A DIVISION OF,5100317216,174.5
United Kingdom Atomic Energy Authority,United Kingdom Atomic Energy Authority,18/02/2015,MATERIALS & SPARES,FUSION,RS COMPONENTS LTD,5100317285,213.2
United Kingdom Atomic Energy Authority,United Kingdom Atomic Energy Authority,18/02/2015,MATERIALS & SPARES,FUSION,RS COMPONENTS LTD,5100317427,218.91
United Kingdom Atomic Energy Authority,United Kingdom Atomic Energy Authority,02/02/2015,MATERIALS & SPARES,FUSION,NEWBURY ELECTRONICS,5100315969,190.11
United Kingdom Atomic Energy Authority,United Kingdom Atomic Energy Authority,26/01/2015,MATERIALS & SPARES,FUSION,CROMWELL LTD,5100315994,65.42
United Kingdom Atomic Energy Authority,United Kingdom Atomic Energy Authority,26/01/2015,MATERIALS & SPARES,FUSION,RS COMPONENTS LTD,5100316054,4.46
United Kingdom Atomic Energy Authority,United Kingdom Atomic Energy Authority,26/01/2015,MATERIALS & SPARES,FUSION,FARNELL ELECTRONIC,5100316069,225.36
United Kingdom Atomic Energy Authority,United Kingdom Atomic Energy Authority,02/02/2015,MATERIALS & SPARES,FUSION,FARNELL ELECTRONIC,5100316355,114.18
United Kingdom Atomic Energy Authority,United Kingdom Atomic Energy Authority,02/02/2015,MATERIALS & SPARES,FUSION,RS COMPONENTS LTD,5100316436,336.86
United Kingdom Atomic Energy Authority,United Kingdom Atomic Energy Authority,04/02/2015,MATERIALS & SPARES,FUSION,TA Savery & co,5100316487,15685
United Kingdom Atomic Energy Authority,United Kingdom Atomic Energy Authority,09/02/2015,PROFESSIONAL SERVICES,FUSION,MACHINING TECHNOLOGY (MACH-TECH),5100316598,558.15
United Kingdom Atomic Energy Authority,United Kingdom Atomic Energy Authority,09/02/2015,MATERIALS & SPARES,FUSION,RS COMPONENTS LTD,5100316661,742
United Kingdom Atomic Energy Authority,United Kingdom Atomic Energy Authority,09/02/2015,MATERIALS & SPARES,FUSION,RS COMPONENTS LTD,5100316840,157.79
United Kingdom Atomic Energy Authority,United Kingdom Atomic Energy Authority,18/02/2015,MATERIALS & SPARES,FUSION,RS COMPONENTS LTD,5100316850,23.15
United Kingdom Atomic Energy Authority,United Kingdom Atomic Energy Authority,18/02/2015,MATERIALS & SPARES,FUSION,NEWBURY ELECTRONICS,5100316851,312.38
United Kingdom Atomic Energy Authority,United Kingdom Atomic Energy Authority,18/02/2015,MATERIALS & SPARES,FUSION,MOUSER ELECTRONICS,5100316960,836.8
United Kingdom Atomic Energy Authority,United Kingdom Atomic Energy Authority,18/02/2015,MATERIALS & SPARES,FUSION,FARNELL ELECTRONIC,5100317133,71
United Kingdom Atomic Energy Authority,United Kingdom Atomic Energy Authority,18/02/2015,MATERIALS & SPARES,FUSION,FARNELL ELECTRONIC,5100317134,51.9
United Kingdom Atomic Energy Authority,United Kingdom Atomic Energy Authority,18/02/2015,MATERIALS & SPARES,FUSION,FARNELL ELECTRONIC,5100317137,195.42
United Kingdom Atomic Energy Authority,United Kingdom Atomic Energy Authority,18/02/2015,MATERIALS & SPARES,FUSION,FARNELL ELECTRONIC,5100317272,207.26
United Kingdom Atomic Energy Authority,United Kingdom Atomic Energy Authority,26/01/2015,MATERIALS & SPARES,FUSION,UNDERWOODS ELECTRICAL DISTRIBUTORS,5100315813,257.59
United Kingdom Atomic Energy Authority,United Kingdom Atomic Energy Authority,28/01/2015,MATERIALS & SPARES,FUSION,RS COMPONENTS LTD,5100316015,76.65
United Kingdom Atomic Energy Authority,United Kingdom Atomic Energy Authority,28/01/2015,MATERIALS & SPARES,FUSION,RS COMPONENTS LTD,5100316034,79.07
United Kingdom Atomic Energy Authority,United Kingdom Atomic Energy Authority,02/02/2015,PERSONAL PROTECTIVE EQUIPMENT,FUSION,ARCO LTD,5100316173,149.97
United Kingdom Atomic Energy Authority,United Kingdom Atomic Energy Authority,02/02/2015,PERSONAL PROTECTIVE EQUIPMENT,FUSION,ARCO LTD,5100316215,60.96
United Kingdom Atomic Energy Authority,United Kingdom Atomic Energy Authority,02/02/2015,MATERIALS & SPARES,FUSION,RS COMPONENTS LTD,5100316288,107.71
United Kingdom Atomic Energy Authority,United Kingdom Atomic Energy Authority,02/02/2015,PLANT SPARES,FUSION,DRAWTREND LTD,5100316332,1715
United Kingdom Atomic Energy Authority,United Kingdom Atomic Energy Authority,09/02/2015,MATERIALS & SPARES,FUSION,RS COMPONENTS LTD,5100316435,26.08
United Kingdom Atomic Energy Authority,United Kingdom Atomic Energy Authority,02/02/2015,MATERIALS & SPARES,FUSION,RS COMPONENTS LTD,5100316477,64.84
United Kingdom Atomic Energy Authority,United Kingdom Atomic Energy Authority,09/02/2015,MATERIALS & SPARES,FUSION,RS COMPONENTS LTD,5100316660,34.18
United Kingdom Atomic Energy Authority,United Kingdom Atomic Energy Authority,18/02/2015,MATERIALS & SPARES,FUSION,RS COMPONENTS LTD,5100317326,43.59
United Kingdom Atomic Energy Authority,United Kingdom Atomic Energy Authority,18/02/2015,MATERIALS & SPARES,FUSION,RS COMPONENTS LTD,5100317385,102.2
United Kingdom Atomic Energy Authority,United Kingdom Atomic Energy Authority,18/02/2015,MATERIALS & SPARES,FUSION,RS COMPONENTS LTD,5100317414,14.14
United Kingdom Atomic Energy Authority,United Kingdom Atomic Energy Authority,18/02/2015,GASES,FUSION,BOC LTD,5100315315,4729.71
United Kingdom Atomic Energy Authority,United Kingdom Atomic Energy Authority,18/02/2015,GASES,FUSION,BOC LTD,5100315565,332.4
United Kingdom Atomic Energy Authority,United Kingdom Atomic Energy Authority,11/02/2015,MATERIALS & SPARES,FUSION,WEKA AG,5100315933,6629.01
United Kingdom Atomic Energy Authority,United Kingdom Atomic Energy Authority,26/01/2015,FUEL OIL,FUSION,EMO OILS LTD,5100315975,553.85
United Kingdom Atomic Energy Authority,United Kingdom Atomic Energy Authority,28/01/2015,MATERIALS & SPARES,FUSION,RS COMPONENTS LTD,5100316029,457.29
United Kingdom Atomic Energy Authority,United Kingdom Atomic Energy Authority,26/01/2015,MATERIALS & SPARES,FUSION,RS COMPONENTS LTD,5100316051,30.97
United Kingdom Atomic Energy Authority,United Kingdom Atomic Energy Authority,18/02/2015,GASES,FUSION,BOC LTD,5100316133,5108.4
United Kingdom Atomic Energy Authority,United Kingdom Atomic Energy Authority,18/02/2015,GASES,FUSION,BOC LTD,5100316162,321.32
United Kingdom Atomic Energy Authority,United Kingdom Atomic Energy Authority,02/02/2015,MATERIALS & SPARES,FUSION,Marker Tech ltd,5100316190,68.72
United Kingdom Atomic Energy Authority,United Kingdom Atomic Energy Authority,02/02/2015,MATERIALS & SPARES,FUSION,RS COMPONENTS LTD,5100316291,101.95
United Kingdom Atomic Energy Authority,United Kingdom Atomic Energy Authority,18/02/2015,GASES,FUSION,BOC LTD,5100316396,159.41
United Kingdom Atomic Energy Authority,United Kingdom Atomic Energy Authority,09/02/2015,MATERIALS & SPARES,FUSION,OERLIKON LEYBOLD VACUUM UK LTD,5100316582,6216
United Kingdom Atomic Energy Authority,United Kingdom Atomic Energy Authority,09/02/2015,GASES,FUSION,BOC LTD,5100316636,162.44
United Kingdom Atomic Energy Authority,United Kingdom Atomic Energy Authority,11/02/2015,GASES,FUSION,BOC LTD,5100316648,603.86
United Kingdom Atomic Energy Authority,United Kingdom Atomic Energy Authority,18/02/2015,GASES,FUSION,BOC LTD,5100316649,4788.48
United Kingdom Atomic Energy Authority,United Kingdom Atomic Energy Authority,09/02/2015,MATERIALS & SPARES,FUSION,RS COMPONENTS LTD,5100316822,233.19
United Kingdom Atomic Energy Authority,United Kingdom Atomic Energy Authority,18/02/2015,MATERIALS & SPARES,FUSION,OERLIKON LEYBOLD VACUUM UK LTD,5100316894,3306.68
United Kingdom Atomic Energy Authority,United Kingdom Atomic Energy Authority,18/02/2015,GASES,FUSION,BOC LTD,5100316916,3241.59
United Kingdom Atomic Energy Authority,United Kingdom Atomic Energy Authority,18/02/2015,GASES,FUSION,BOC LTD,5100316919,771.85
United Kingdom Atomic Energy Authority,United Kingdom Atomic Energy Authority,18/02/2015,PLANT & EQUIPMENT,FUSION,ROUTECO,5100316951,1857.16
United Kingdom Atomic Energy Authority,United Kingdom Atomic Energy Authority,18/02/2015,PROFESSIONAL SERVICES,FUSION,HPC ENGINEERING PLC,5100316986,965.13
United Kingdom Atomic Energy Authority,United Kingdom Atomic Energy Authority,18/02/2015,PLANT & EQUIPMENT,FUSION,OMEGA ENGINEERING LTD,5100316998,409.66
United Kingdom Atomic Energy Authority,United Kingdom Atomic Energy Authority,16/02/2015,MATERIALS & SPARES,FUSION,Marker Tech ltd,5100317350,130.43
United Kingdom Atomic Energy Authority,United Kingdom Atomic Energy Authority,16/02/2015,MATERIALS & SPARES,FUSION,Marker Tech ltd,5100317353,-130.43
United Kingdom Atomic Energy Authority,United Kingdom Atomic Energy Authority,18/02/2015,MATERIALS & SPARES,FUSION,Marker Tech ltd,5100317356,130.43
United Kingdom Atomic Energy Authority,United Kingdom Atomic Energy Authority,26/01/2015,MATERIALS & SPARES,FUSION,FARNELL ELECTRONIC,5100315637,19.59
United Kingdom Atomic Energy Authority,United Kingdom Atomic Energy Authority,26/01/2015,PERSONAL PROTECTIVE EQUIPMENT,FUSION,BUCK & HICKMAN LTD,5100315867,308.59
United Kingdom Atomic Energy Authority,United Kingdom Atomic Energy Authority,26/01/2015,MATERIALS & SPARES,FUSION,OXFORD BOLTS & BEARINGS,5100315984,77.64
United Kingdom Atomic Energy Authority,United Kingdom Atomic Energy Authority,02/02/2015,PLANT & EQUIPMENT,FUSION,EDMUNDSON ELECTRICALS LTD,5100316324,255.36
United Kingdom Atomic Energy Authority,United Kingdom Atomic Energy Authority,02/02/2015,MATERIALS & SPARES,FUSION,SANDVIK MATERIALS TECHNOLOGY EMEA A,5100316379,380
United Kingdom Atomic Energy Authority,United Kingdom Atomic Energy Authority,02/02/2015,PLANT & EQUIPMENT,FUSION,EDMUNDSON ELECTRICALS LTD,5100316407,26.63
United Kingdom Atomic Energy Authority,United Kingdom Atomic Energy Authority,02/02/2015,MATERIALS & SPARES,FUSION,METALFAST (A DIVISION OF,5100316420,482.92
United Kingdom Atomic Energy Authority,United Kingdom Atomic Energy Authority,28/01/2015,GASES,FUSION,BOC LTD,5100315063,12295.54
United Kingdom Atomic Energy Authority,United Kingdom Atomic Energy Authority,26/01/2015,PLANT SPARES,FUSION,A D INSTALLATION LTD,5100315687,650
United Kingdom Atomic Energy Authority,United Kingdom Atomic Energy Authority,26/01/2015,MATERIALS & SPARES,FUSION,Marker Tech ltd,5100315799,52.73
United Kingdom Atomic Energy Authority,United Kingdom Atomic Energy Authority,26/01/2015,MATERIALS & SPARES,FUSION,UNDERWOODS ELECTRICAL DISTRIBUTORS,5100315814,37.75
United Kingdom Atomic Energy Authority,United Kingdom Atomic Energy Authority,26/01/2015,MATERIALS & SPARES,FUSION,UNDERWOODS ELECTRICAL DISTRIBUTORS,5100315988,56
United Kingdom Atomic Energy Authority,United Kingdom Atomic Energy Authority,02/02/2015,MATERIALS & SPARES,FUSION,TVH,5100316157,870.06
United Kingdom Atomic Energy Authority,United Kingdom Atomic Energy Authority,02/02/2015,PLANT & EQUIPMENT,FUSION,DATA TRACK PROCESS INSTRUMENTS LIM,5100316280,1643
United Kingdom Atomic Energy Authority,United Kingdom Atomic Energy Authority,02/02/2015,GASES,FUSION,BOC LTD,5100316293,-320.32
United Kingdom Atomic Energy Authority,United Kingdom Atomic Energy Authority,28/01/2015,GASES,FUSION,BOC LTD,5100316294,-12295.54
United Kingdom Atomic Energy Authority,United Kingdom Atomic Energy Authority,02/02/2015,GASES,FUSION,BOC LTD,5100316295,12295.54
United Kingdom Atomic Energy Authority,United Kingdom Atomic Energy Authority,02/02/2015,MATERIALS & SPARES,FUSION,RS COMPONENTS LTD,5100316315,215.52
United Kingdom Atomic Energy Authority,United Kingdom Atomic Energy Authority,02/02/2015,MATERIALS & SPARES,FUSION,RS COMPONENTS LTD,5100316329,30.99
United Kingdom Atomic Energy Authority,United Kingdom Atomic Energy Authority,02/02/2015,MATERIALS & SPARES,FUSION,RS COMPONENTS LTD,5100316388,253.75
United Kingdom Atomic Energy Authority,United Kingdom Atomic Energy Authority,02/02/2015,MATERIALS & SPARES,FUSION,WOLSELEY UK LIMITED,5100316403,376.35
United Kingdom Atomic Energy Authority,United Kingdom Atomic Energy Authority,18/02/2015,TREATED WATER,FUSION,B & V WATER TREATMENT,5100316495,1185.81
United Kingdom Atomic Energy Authority,United Kingdom Atomic Energy Authority,09/02/2015,MATERIALS & SPARES,FUSION,OBART PUMPS LTD,5100316525,140.6
United Kingdom Atomic Energy Authority,United Kingdom Atomic Energy Authority,09/02/2015,MATERIALS & SPARES,FUSION,WOLSELEY UK LIMITED,5100316557,107.92
United Kingdom Atomic Energy Authority,United Kingdom Atomic Energy Authority,09/02/2015,MATERIALS & SPARES,FUSION,The Valve and Actuator Ltd,5100316697,9887
United Kingdom Atomic Energy Authority,United Kingdom Atomic Energy Authority,11/02/2015,REPAIRS & MAINTENANCE,FUSION,BEAVER 84 LIMITED,5100316712,810.52
United Kingdom Atomic Energy Authority,United Kingdom Atomic Energy Authority,09/02/2015,MATERIALS & SPARES,FUSION,FARNELL ELECTRONIC,5100316721,331.6
United Kingdom Atomic Energy Authority,United Kingdom Atomic Energy Authority,09/02/2015,PLANT SPARES,FUSION,A D INSTALLATION LTD,5100316818,6500
United Kingdom Atomic Energy Authority,United Kingdom Atomic Energy Authority,09/02/2015,GASES,FUSION,BOC LTD,5100316853,198.56
United Kingdom Atomic Energy Authority,United Kingdom Atomic Energy Authority,18/02/2015,MATERIALS & SPARES,FUSION,RS COMPONENTS LTD,5100316889,55.63
United Kingdom Atomic Energy Authority,United Kingdom Atomic Energy Authority,18/02/2015,MATERIALS & SPARES,FUSION,RS COMPONENTS LTD,5100316920,24.83
United Kingdom Atomic Energy Authority,United Kingdom Atomic Energy Authority,18/02/2015,PLANT & EQUIPMENT,FUSION,NEW PIG LTD,5100317004,313.5
United Kingdom Atomic Energy Authority,United Kingdom Atomic Energy Authority,18/02/2015,PLANT & EQUIPMENT,FUSION,SM GAUGE COMPANY LIMITED,5100317171,392.7
United Kingdom Atomic Energy Authority,United Kingdom Atomic Energy Authority,18/02/2015,MATERIALS & SPARES,FUSION,WOLSELEY UK LIMITED,5100317184,68.31
United Kingdom Atomic Energy Authority,United Kingdom Atomic Energy Authority,18/02/2015,MATERIALS & SPARES,FUSION,RS COMPONENTS LTD,5100317334,164.33
United Kingdom Atomic Energy Authority,United Kingdom Atomic Energy Authority,18/02/2015,MATERIALS & SPARES,FUSION,RS COMPONENTS LTD,5100317433,75.9
United Kingdom Atomic Energy Authority,United Kingdom Atomic Energy Authority,26/01/2015,MATERIALS & SPARES,FUSION,CROMWELL LTD,5100315832,591.8
United Kingdom Atomic Energy Authority,United Kingdom Atomic Energy Authority,26/01/2015,BUILDING REPAIRS,FUSION,KNOWLES & SONS (OXFORD) LTD,5100315889,34.58
United Kingdom Atomic Energy Authority,United Kingdom Atomic Energy Authority,26/01/2015,SECURITY & EMERGENCY,FUSION,TRINITY PROTETION SYSTEMS,5100315941,225.01
United Kingdom Atomic Energy Authority,United Kingdom Atomic Energy Authority,26/01/2015,SECURITY & EMERGENCY,FUSION,TRINITY PROTETION SYSTEMS,5100315956,84.38
United Kingdom Atomic Energy Authority,United Kingdom Atomic Energy Authority,26/01/2015,MATERIALS & SPARES,FUSION,CROMWELL LTD,5100316008,237.25
United Kingdom Atomic Energy Authority,United Kingdom Atomic Energy Authority,26/01/2015,SECURITY & EMERGENCY,FUSION,TRINITY PROTETION SYSTEMS,5100316017,56.25
United Kingdom Atomic Energy Authority,United Kingdom Atomic Energy Authority,26/01/2015,MATERIALS & SPARES,FUSION,RS COMPONENTS LTD,5100316048,61.59
United Kingdom Atomic Energy Authority,United Kingdom Atomic Energy Authority,02/02/2015,PERSONAL PROTECTIVE EQUIPMENT,FUSION,ARCO LTD,5100316209,275.78
United Kingdom Atomic Energy Authority,United Kingdom Atomic Energy Authority,02/02/2015,MATERIALS & SPARES,FUSION,OXFORD BOLTS & BEARINGS,5100316229,86
United Kingdom Atomic Energy Authority,United Kingdom Atomic Energy Authority,02/02/2015,SECURITY & EMERGENCY,FUSION,TRINITY PROTETION SYSTEMS,5100316278,1153.13
United Kingdom Atomic Energy Authority,United Kingdom Atomic Energy Authority,02/02/2015,MATERIALS & SPARES,FUSION,RS COMPONENTS LTD,5100316279,81.51
United Kingdom Atomic Energy Authority,United Kingdom Atomic Energy Authority,02/02/2015,MATERIALS & SPARES,FUSION,RS COMPONENTS LTD,5100316301,70.29
United Kingdom Atomic Energy Authority,United Kingdom Atomic Energy Authority,02/02/2015,MATERIALS & SPARES,FUSION,OXFORD BOLTS & BEARINGS,5100316425,75.2
United Kingdom Atomic Energy Authority,United Kingdom Atomic Energy Authority,09/02/2015,SECURITY & EMERGENCY,FUSION,TRINITY PROTETION SYSTEMS,5100316521,1500
United Kingdom Atomic Energy Authority,United Kingdom Atomic Energy Authority,09/02/2015,REGULATORY COSTS,FUSION,OFCOM,5100316619,675
United Kingdom Atomic Energy Authority,United Kingdom Atomic Energy Authority,11/02/2015,DESIGN & CONSTRUCTION,FUSION,PIPAWAY ENGINEERING LTD,5100316696,2495
United Kingdom Atomic Energy Authority,United Kingdom Atomic Energy Authority,18/02/2015,MATERIALS & SPARES,FUSION,ALPHA ENGINEERING SUPPLIES,5100316733,252.12
United Kingdom Atomic Energy Authority,United Kingdom Atomic Energy Authority,09/02/2015,PERSONAL PROTECTIVE EQUIPMENT,FUSION,ARCO LTD,5100316748,53.76
United Kingdom Atomic Energy Authority,United Kingdom Atomic Energy Authority,11/02/2015,MATERIALS & SPARES,FUSION,FARNELL ELECTRONIC,5100316791,90.02
United Kingdom Atomic Energy Authority,United Kingdom Atomic Energy Authority,11/02/2015,MATERIALS & SPARES,FUSION,FARNELL ELECTRONIC,5100316805,116.75
United Kingdom Atomic Energy Authority,United Kingdom Atomic Energy Authority,11/02/2015,MATERIALS & SPARES,FUSION,RS COMPONENTS LTD,5100316846,1442.18
United Kingdom Atomic Energy Authority,United Kingdom Atomic Energy Authority,18/02/2015,SECURITY & EMERGENCY,FUSION,TRINITY PROTETION SYSTEMS,5100316870,180.01
United Kingdom Atomic Energy Authority,United Kingdom Atomic Energy Authority,18/02/2015,MATERIALS & SPARES,FUSION,RS COMPONENTS LTD,5100316888,991.12
United Kingdom Atomic Energy Authority,United Kingdom Atomic Energy Authority,18/02/2015,MATERIALS & SPARES,FUSION,RS COMPONENTS LTD,5100316895,11.68
United Kingdom Atomic Energy Authority,United Kingdom Atomic Energy Authority,18/02/2015,MATERIALS & SPARES,FUSION,RS COMPONENTS LTD,5100316897,123.34
United Kingdom Atomic Energy Authority,United Kingdom Atomic Energy Authority,18/02/2015,SECURITY & EMERGENCY,FUSION,TRINITY PROTETION SYSTEMS,5100317038,1291.67
United Kingdom Atomic Energy Authority,United Kingdom Atomic Energy Authority,18/02/2015,MATERIALS & SPARES,FUSION,GUNNEBO UK LTD,5100317139,3723
United Kingdom Atomic Energy Authority,United Kingdom Atomic Energy Authority,18/02/2015,MATERIALS & SPARES,FUSION,CROMWELL LTD,5100317263,251.97
United Kingdom Atomic Energy Authority,United Kingdom Atomic Energy Authority,18/02/2015,MATERIALS & SPARES,FUSION,RS COMPONENTS LTD,5100317302,124.42
United Kingdom Atomic Energy Authority,United Kingdom Atomic Energy Authority,18/02/2015,CATERING,FUSION,AVENANCE PLC,5100317315,474.69
United Kingdom Atomic Energy Authority,United Kingdom Atomic Energy Authority,18/02/2015,MATERIALS & SPARES,FUSION,ALPHA ENGINEERING SUPPLIES,5100317361,115.3
United Kingdom Atomic Energy Authority,United Kingdom Atomic Energy Authority,26/01/2015,TRAINING COURSE FEES,FUSION,OXFORD BROOKES UNIVERSITY,5100316022,820
United Kingdom Atomic Energy Authority,United Kingdom Atomic Energy Authority,28/01/2015,TRAINING COURSE FEES,FUSION,OXFORD BROOKES UNIVERSITY,5100316024,820
United Kingdom Atomic Energy Authority,United Kingdom Atomic Energy Authority,28/01/2015,TRAINING COURSE FEES,FUSION,OXFORD BROOKES UNIVERSITY,5100316268,-820
United Kingdom Atomic Energy Authority,United Kingdom Atomic Energy Authority,28/01/2015,TRAINING COURSE FEES,FUSION,OXFORD BROOKES UNIVERSITY,5100316269,820
United Kingdom Atomic Energy Authority,United Kingdom Atomic Energy Authority,02/02/2015,UNIVERSITY PLACEMENT,FUSION,CRANFIELD UNIVERSITY,5100316514,3945
United Kingdom Atomic Energy Authority,United Kingdom Atomic Energy Authority,18/02/2015,TRAINING COURSE FEES,FUSION,OXFORD BROOKES UNIVERSITY,5100317364,820
United Kingdom Atomic Energy Authority,United Kingdom Atomic Energy Authority,31/01/2015,PROFESSIONAL SUBSCRIPTION,FUSION,EMPLOYEE EXPENSES,100754913,137
United Kingdom Atomic Energy Authority,United Kingdom Atomic Energy Authority,07/02/2015,PROFESSIONAL SUBSCRIPTION,FUSION,EMPLOYEE EXPENSES,100755026,105
United Kingdom Atomic Energy Authority,United Kingdom Atomic Energy Authority,19/02/2015,SUBSISTENCE,FUSION,EMPLOYEE EXPENSES,100758011,10
United Kingdom Atomic Energy Authority,United Kingdom Atomic Energy Authority,19/02/2015,RAIL TRAVEL,FUSION,EMPLOYEE EXPENSES,100758011,37.5
United Kingdom Atomic Energy Authority,United Kingdom Atomic Energy Authority,19/02/2015,ROAD TRAVEL,FUSION,EMPLOYEE EXPENSES,100758011,5.21
United Kingdom Atomic Energy Authority,United Kingdom Atomic Energy Authority,19/02/2015,SUBSISTENCE,FUSION,EMPLOYEE EXPENSES,100758012,10
United Kingdom Atomic Energy Authority,United Kingdom Atomic Energy Authority,19/02/2015,RAIL TRAVEL,FUSION,EMPLOYEE EXPENSES,100758012,37.5
United Kingdom Atomic Energy Authority,United Kingdom Atomic Energy Authority,19/02/2015,ROAD TRAVEL,FUSION,EMPLOYEE EXPENSES,100758012,5.21
United Kingdom Atomic Energy Authority,United Kingdom Atomic Energy Authority,19/02/2015,SUBSISTENCE,FUSION,EMPLOYEE EXPENSES,100758013,10
United Kingdom Atomic Energy Authority,United Kingdom Atomic Energy Authority,19/02/2015,RAIL TRAVEL,FUSION,EMPLOYEE EXPENSES,100758013,37.5
United Kingdom Atomic Energy Authority,United Kingdom Atomic Energy Authority,19/02/2015,ROAD TRAVEL,FUSION,EMPLOYEE EXPENSES,100758013,5.21
United Kingdom Atomic Energy Authority,United Kingdom Atomic Energy Authority,19/02/2015,PROFESSIONAL SUBSCRIPTION,FUSION,EMPLOYEE EXPENSES,100758019,54
United Kingdom Atomic Energy Authority,United Kingdom Atomic Energy Authority,04/02/2015,GASES,FUSION,BOC LTD,5100315020,115.76
United Kingdom Atomic Energy Authority,United Kingdom Atomic Energy Authority,26/01/2015,MATERIALS & SPARES,FUSION,ANIXTER (UK) LTD,5100315314,77.2
United Kingdom Atomic Energy Authority,United Kingdom Atomic Energy Authority,26/01/2015,MATERIALS & SPARES,FUSION,Specialist Power Engineering Contracts Ltd.,5100315455,3880
United Kingdom Atomic Energy Authority,United Kingdom Atomic Energy Authority,26/01/2015,PLANT SPARES,FUSION,AURIGA EUROPE PLC,5100315739,109.2
United Kingdom Atomic Energy Authority,United Kingdom Atomic Energy Authority,26/01/2015,MATERIALS & SPARES,FUSION,Rapied Electronics Ltd,5100315767,743.9
United Kingdom Atomic Energy Authority,United Kingdom Atomic Energy Authority,26/01/2015,PLANT & EQUIPMENT,FUSION,DATA TRACK PROCESS INSTRUMENTS LIM,5100315782,778
United Kingdom Atomic Energy Authority,United Kingdom Atomic Energy Authority,04/02/2015,GASES,FUSION,BOC LTD,5100315787,64.08
United Kingdom Atomic Energy Authority,United Kingdom Atomic Energy Authority,26/01/2015,MATERIALS & SPARES,FUSION,Specialist Power Engineering Contracts Ltd.,5100315790,-280
United Kingdom Atomic Energy Authority,United Kingdom Atomic Energy Authority,26/01/2015,TRAINING COURSE FEES,FUSION,MACGREGOR INDUSTRIES LTD,5100315792,99.5
United Kingdom Atomic Energy Authority,United Kingdom Atomic Energy Authority,26/01/2015,PLANT & EQUIPMENT,FUSION,EDMUNDSON ELECTRICALS LTD,5100315794,102.55
United Kingdom Atomic Energy Authority,United Kingdom Atomic Energy Authority,26/01/2015,PLANT & EQUIPMENT,FUSION,EDMUNDSON ELECTRICALS LTD,5100315797,254.22
United Kingdom Atomic Energy Authority,United Kingdom Atomic Energy Authority,04/02/2015,GASES,FUSION,BOC LTD,5100315860,1422.43
United Kingdom Atomic Energy Authority,United Kingdom Atomic Energy Authority,02/02/2015,MATERIALS & SPARES,FUSION,RS COMPONENTS LTD,5100315920,37.92
United Kingdom Atomic Energy Authority,United Kingdom Atomic Energy Authority,26/01/2015,BUILDING REPAIRS,FUSION,MCNAUGHTON BAILEY LTD,5100315930,870
United Kingdom Atomic Energy Authority,United Kingdom Atomic Energy Authority,26/01/2015,MATERIALS & SPARES,FUSION,RS COMPONENTS LTD,5100315949,35.87
United Kingdom Atomic Energy Authority,United Kingdom Atomic Energy Authority,26/01/2015,MATERIALS & SPARES,FUSION,RS COMPONENTS LTD,5100315950,30.01
United Kingdom Atomic Energy Authority,United Kingdom Atomic Energy Authority,26/01/2015,MATERIALS & SPARES,FUSION,RS COMPONENTS LTD,5100315953,76.4
United Kingdom Atomic Energy Authority,United Kingdom Atomic Energy Authority,26/01/2015,MATERIALS & SPARES,FUSION,FARNELL ELECTRONIC,5100315962,23.25
United Kingdom Atomic Energy Authority,United Kingdom Atomic Energy Authority,02/02/2015,PLANT & EQUIPMENT,FUSION,MR BOX LTD,5100315972,27.43
United Kingdom Atomic Energy Authority,United Kingdom Atomic Energy Authority,26/01/2015,MATERIALS & SPARES,FUSION,RS COMPONENTS LTD,5100316023,184.1
United Kingdom Atomic Energy Authority,United Kingdom Atomic Energy Authority,26/01/2015,MATERIALS & SPARES,FUSION,RS COMPONENTS LTD,5100316026,49.93
United Kingdom Atomic Energy Authority,United Kingdom Atomic Energy Authority,28/01/2015,MATERIALS & SPARES,FUSION,WOODSTOCK INDUSTRIAL SUPPLIES LTD,5100316032,42.28
United Kingdom Atomic Energy Authority,United Kingdom Atomic Energy Authority,02/02/2015,MATERIALS & SPARES,FUSION,FARNELL ELECTRONIC,5100316099,500.44
United Kingdom Atomic Energy Authority,United Kingdom Atomic Energy Authority,02/02/2015,MATERIALS & SPARES,FUSION,FARNELL ELECTRONIC,5100316101,54.85
United Kingdom Atomic Energy Authority,United Kingdom Atomic Energy Authority,02/02/2015,MATERIALS & SPARES,FUSION,FARNELL ELECTRONIC,5100316102,14.7
United Kingdom Atomic Energy Authority,United Kingdom Atomic Energy Authority,02/02/2015,PLANT & EQUIPMENT,FUSION,EDMUNDSON ELECTRICALS LTD,5100316109,17.23
United Kingdom Atomic Energy Authority,United Kingdom Atomic Energy Authority,02/02/2015,TRAINING COURSE FEES,FUSION,MACGREGOR INDUSTRIES LTD,5100316124,122.2
United Kingdom Atomic Energy Authority,United Kingdom Atomic Energy Authority,02/02/2015,PLANT & EQUIPMENT,FUSION,EDMUNDSON ELECTRICALS LTD,5100316138,55.39
United Kingdom Atomic Energy Authority,United Kingdom Atomic Energy Authority,02/02/2015,PLANT & EQUIPMENT,FUSION,EDMUNDSON ELECTRICALS LTD,5100316140,65.38
United Kingdom Atomic Energy Authority,United Kingdom Atomic Energy Authority,02/02/2015,PLANT & EQUIPMENT,FUSION,EDMUNDSON ELECTRICALS LTD,5100316144,68.43
United Kingdom Atomic Energy Authority,United Kingdom Atomic Energy Authority,02/02/2015,MATERIALS & SPARES,FUSION,RS COMPONENTS LTD,5100316178,107.97
United Kingdom Atomic Energy Authority,United Kingdom Atomic Energy Authority,02/02/2015,MATERIALS & SPARES,FUSION,Marker Tech ltd,5100316183,17.26
United Kingdom Atomic Energy Authority,United Kingdom Atomic Energy Authority,28/01/2015,MATERIALS & SPARES,FUSION,WAGO LTD,5100316232,573.6
United Kingdom Atomic Energy Authority,United Kingdom Atomic Energy Authority,02/02/2015,MATERIALS & SPARES,FUSION,RS COMPONENTS LTD,5100316246,216.44
United Kingdom Atomic Energy Authority,United Kingdom Atomic Energy Authority,04/02/2015,MATERIALS & SPARES,FUSION,ANIXTER (UK) LTD,5100316316,535.5
United Kingdom Atomic Energy Authority,United Kingdom Atomic Energy Authority,02/02/2015,MATERIALS & SPARES,FUSION,RS COMPONENTS LTD,5100316322,32.33
United Kingdom Atomic Energy Authority,United Kingdom Atomic Energy Authority,04/02/2015,MATERIALS & SPARES,FUSION,ANIXTER (UK) LTD,5100316327,246
United Kingdom Atomic Energy Authority,United Kingdom Atomic Energy Authority,02/02/2015,MATERIALS & SPARES,FUSION,FARNELL ELECTRONIC,5100316354,281.85
United Kingdom Atomic Energy Authority,United Kingdom Atomic Energy Authority,02/02/2015,MATERIALS & SPARES,FUSION,UNDERWOODS ELECTRICAL DISTRIBUTORS,5100316432,225.75
United Kingdom Atomic Energy Authority,United Kingdom Atomic Energy Authority,09/02/2015,SOFTWARE,FUSION,ABB LTD,5100316460,25246.8
United Kingdom Atomic Energy Authority,United Kingdom Atomic Energy Authority,02/02/2015,MATERIALS & SPARES,FUSION,RS COMPONENTS LTD,5100316462,-36.99
United Kingdom Atomic Energy Authority,United Kingdom Atomic Energy Authority,02/02/2015,MATERIALS & SPARES,FUSION,RS COMPONENTS LTD,5100316463,-53.94
United Kingdom Atomic Energy Authority,United Kingdom Atomic Energy Authority,02/02/2015,MATERIALS & SPARES,FUSION,RS COMPONENTS LTD,5100316481,20.53
United Kingdom Atomic Energy Authority,United Kingdom Atomic Energy Authority,02/02/2015,MATERIALS & SPARES,FUSION,RS COMPONENTS LTD,5100316484,173.82
United Kingdom Atomic Energy Authority,United Kingdom Atomic Energy Authority,04/02/2015,MATERIALS & SPARES,FUSION,Specialist Power Engineering Contracts Ltd.,5100316498,9064.75
United Kingdom Atomic Energy Authority,United Kingdom Atomic Energy Authority,09/02/2015,DESIGN & CONSTRUCTION,FUSION,LR ENGINEERING,5100316526,622
United Kingdom Atomic Energy Authority,United Kingdom Atomic Energy Authority,09/02/2015,PROFESSIONAL SERVICES,FUSION,TRITEC SYSTEMS ,5100316609,2000
United Kingdom Atomic Energy Authority,United Kingdom Atomic Energy Authority,09/02/2015,GASES,FUSION,BOC LTD,5100316633,301.47
United Kingdom Atomic Energy Authority,United Kingdom Atomic Energy Authority,09/02/2015,MATERIALS & SPARES,FUSION,Marker Tech ltd,5100316650,94.8
United Kingdom Atomic Energy Authority,United Kingdom Atomic Energy Authority,09/02/2015,PLANT & EQUIPMENT,FUSION,JOINTING TECHNOLOGIES,5100316676,261.6
United Kingdom Atomic Energy Authority,United Kingdom Atomic Energy Authority,09/02/2015,MATERIALS & SPARES,FUSION,RS COMPONENTS LTD,5100316728,140.99
United Kingdom Atomic Energy Authority,United Kingdom Atomic Energy Authority,09/02/2015,MATERIALS & SPARES,FUSION,Marker Tech ltd,5100316773,40.72
United Kingdom Atomic Energy Authority,United Kingdom Atomic Energy Authority,09/02/2015,MATERIALS & SPARES,FUSION,RS COMPONENTS LTD,5100316825,240.46
United Kingdom Atomic Energy Authority,United Kingdom Atomic Energy Authority,09/02/2015,MATERIALS & SPARES,FUSION,RS COMPONENTS LTD,5100316827,83.23
United Kingdom Atomic Energy Authority,United Kingdom Atomic Energy Authority,09/02/2015,MATERIALS & SPARES,FUSION,RS COMPONENTS LTD,5100316832,152.14
United Kingdom Atomic Energy Authority,United Kingdom Atomic Energy Authority,09/02/2015,MATERIALS & SPARES,FUSION,RS COMPONENTS LTD,5100316841,19.93
United Kingdom Atomic Energy Authority,United Kingdom Atomic Energy Authority,18/02/2015,MATERIALS & SPARES,FUSION,RS COMPONENTS LTD,5100316880,3.31
United Kingdom Atomic Energy Authority,United Kingdom Atomic Energy Authority,18/02/2015,MATERIALS & SPARES,FUSION,RS COMPONENTS LTD,5100316900,23.37
United Kingdom Atomic Energy Authority,United Kingdom Atomic Energy Authority,18/02/2015,MATERIALS & SPARES,FUSION,RS COMPONENTS LTD,5100316903,126.79
United Kingdom Atomic Energy Authority,United Kingdom Atomic Energy Authority,18/02/2015,MATERIALS & SPARES,FUSION,Cembre Ltd,5100316912,54.54
United Kingdom Atomic Energy Authority,United Kingdom Atomic Energy Authority,18/02/2015,MATERIALS & SPARES,FUSION,Cable Services Ltd,5100316948,181.25
United Kingdom Atomic Energy Authority,United Kingdom Atomic Energy Authority,18/02/2015,MATERIALS & SPARES,FUSION,WAGO LTD,5100316952,1051.6
United Kingdom Atomic Energy Authority,United Kingdom Atomic Energy Authority,18/02/2015,MATERIALS & SPARES,FUSION,Rapied Electronics Ltd,5100316969,64.02
United Kingdom Atomic Energy Authority,United Kingdom Atomic Energy Authority,18/02/2015,MATERIALS & SPARES,FUSION,ANIXTER (UK) LTD,5100316992,257.5
United Kingdom Atomic Energy Authority,United Kingdom Atomic Energy Authority,18/02/2015,MATERIALS & SPARES,FUSION,Cembre Ltd,5100317021,59.76
United Kingdom Atomic Energy Authority,United Kingdom Atomic Energy Authority,18/02/2015,PROFESSIONAL SERVICES,FUSION,TRITEC SYSTEMS ,5100317027,3600
United Kingdom Atomic Energy Authority,United Kingdom Atomic Energy Authority,18/02/2015,PROFESSIONAL SERVICES,FUSION,TRITEC SYSTEMS ,5100317029,690
United Kingdom Atomic Energy Authority,United Kingdom Atomic Energy Authority,18/02/2015,PROFESSIONAL SERVICES,FUSION,TRITEC SYSTEMS ,5100317032,690
United Kingdom Atomic Energy Authority,United Kingdom Atomic Energy Authority,18/02/2015,MATERIALS & SPARES,FUSION,FARNELL ELECTRONIC,5100317117,-22.8
United Kingdom Atomic Energy Authority,United Kingdom Atomic Energy Authority,18/02/2015,PLANT SPARES,FUSION,BATT CABLES PLC,5100317169,201
United Kingdom Atomic Energy Authority,United Kingdom Atomic Energy Authority,18/02/2015,PLANT & EQUIPMENT,FUSION,EDMUNDSON ELECTRICALS LTD,5100317180,161.16
United Kingdom Atomic Energy Authority,United Kingdom Atomic Energy Authority,18/02/2015,MATERIALS & SPARES,FUSION,GARNER OSBORNE CIRCUITS LTD,5100317200,240.2
United Kingdom Atomic Energy Authority,United Kingdom Atomic Energy Authority,18/02/2015,MATERIALS & SPARES,FUSION,WELDTEK ENGINEERING LTD,5100317235,140
United Kingdom Atomic Energy Authority,United Kingdom Atomic Energy Authority,18/02/2015,MATERIALS & SPARES,FUSION,CPC PLC,5100317248,36.27
United Kingdom Atomic Energy Authority,United Kingdom Atomic Energy Authority,18/02/2015,MATERIALS & SPARES,FUSION,CPC PLC,5100317250,101.58
United Kingdom Atomic Energy Authority,United Kingdom Atomic Energy Authority,18/02/2015,MATERIALS & SPARES,FUSION,RS COMPONENTS LTD,5100317314,145.58
United Kingdom Atomic Energy Authority,United Kingdom Atomic Energy Authority,18/02/2015,MATERIALS & SPARES,FUSION,RS COMPONENTS LTD,5100317331,101.79
United Kingdom Atomic Energy Authority,United Kingdom Atomic Energy Authority,18/02/2015,MATERIALS & SPARES,FUSION,MOUSER ELECTRONICS,5100317374,58
United Kingdom Atomic Energy Authority,United Kingdom Atomic Energy Authority,18/02/2015,MATERIALS & SPARES,FUSION,RS COMPONENTS LTD,5100317395,49.53
United Kingdom Atomic Energy Authority,United Kingdom Atomic Energy Authority,18/02/2015,MATERIALS & SPARES,FUSION,RS COMPONENTS LTD,5100317396,598.61
United Kingdom Atomic Energy Authority,United Kingdom Atomic Energy Authority,18/02/2015,MATERIALS & SPARES,FUSION,UNDERWOODS ELECTRICAL DISTRIBUTORS,5100317399,335.75
United Kingdom Atomic Energy Authority,United Kingdom Atomic Energy Authority,18/02/2015,MATERIALS & SPARES,FUSION,FARNELL ELECTRONIC,5100317405,110.45
United Kingdom Atomic Energy Authority,United Kingdom Atomic Energy Authority,18/02/2015,MATERIALS & SPARES,FUSION,FARNELL ELECTRONIC,5100317409,159.77
United Kingdom Atomic Energy Authority,United Kingdom Atomic Energy Authority,18/02/2015,MATERIALS & SPARES,FUSION,RS COMPONENTS LTD,5100317422,49.57
United Kingdom Atomic Energy Authority,United Kingdom Atomic Energy Authority,26/01/2015,MATERIALS & SPARES,FUSION,GARNER OSBORNE CIRCUITS LTD,5100315302,557.26
United Kingdom Atomic Energy Authority,United Kingdom Atomic Energy Authority,18/02/2015,BUILDING REPAIRS,FUSION,LORNE STEWART PLC,5100315536,4074
United Kingdom Atomic Energy Authority,United Kingdom Atomic Energy Authority,26/01/2015,MATERIALS & SPARES,FUSION,FARNELL ELECTRONIC,5100315636,114.33
United Kingdom Atomic Energy Authority,United Kingdom Atomic Energy Authority,26/01/2015,MATERIALS & SPARES,FUSION,FARNELL ELECTRONIC,5100315640,10.19
United Kingdom Atomic Energy Authority,United Kingdom Atomic Energy Authority,26/01/2015,MATERIALS & SPARES,FUSION,NEW FOREST INSTRUMENTS LTD,5100315750,350
United Kingdom Atomic Energy Authority,United Kingdom Atomic Energy Authority,26/01/2015,PROFESSIONAL SERVICES,FUSION,ENGINEERING SAFETY INSPECTION SERVICE,5100315838,650
United Kingdom Atomic Energy Authority,United Kingdom Atomic Energy Authority,26/01/2015,MATERIALS & SPARES,FUSION,RS COMPONENTS LTD,5100315915,52.69
United Kingdom Atomic Energy Authority,United Kingdom Atomic Energy Authority,26/01/2015,PROFESSIONAL SERVICES,FUSION,SWANSEA TRIBOLOGY SERVICE,5100315936,88
United Kingdom Atomic Energy Authority,United Kingdom Atomic Energy Authority,26/01/2015,MATERIALS & SPARES,FUSION,FARNELL ELECTRONIC,5100315965,316.22
United Kingdom Atomic Energy Authority,United Kingdom Atomic Energy Authority,26/01/2015,MATERIALS & SPARES,FUSION,FARNELL ELECTRONIC,5100315981,118.32
United Kingdom Atomic Energy Authority,United Kingdom Atomic Energy Authority,28/01/2015,MATERIALS & SPARES,FUSION,FARNELL ELECTRONIC,5100315991,229.43
United Kingdom Atomic Energy Authority,United Kingdom Atomic Energy Authority,28/01/2015,PLANT & EQUIPMENT,FUSION,FRANCIS WARD LTD,5100316038,1141
United Kingdom Atomic Energy Authority,United Kingdom Atomic Energy Authority,28/01/2015,MATERIALS & SPARES,FUSION,FARNELL ELECTRONIC,5100316057,77.68
United Kingdom Atomic Energy Authority,United Kingdom Atomic Energy Authority,02/02/2015,MATERIALS & SPARES,FUSION,FARNELL ELECTRONIC,5100316082,87.81
United Kingdom Atomic Energy Authority,United Kingdom Atomic Energy Authority,02/02/2015,MATERIALS & SPARES,FUSION,FARNELL ELECTRONIC,5100316094,85.21
United Kingdom Atomic Energy Authority,United Kingdom Atomic Energy Authority,02/02/2015,MATERIALS & SPARES,FUSION,WOLSELEY UK LIMITED,5100316151,28.14
United Kingdom Atomic Energy Authority,United Kingdom Atomic Energy Authority,02/02/2015,MATERIALS & SPARES,FUSION,WOLSELEY UK LIMITED,5100316153,2682.26
United Kingdom Atomic Energy Authority,United Kingdom Atomic Energy Authority,02/02/2015,MATERIALS & SPARES,FUSION,WOLSELEY UK LIMITED,5100316156,127.58
United Kingdom Atomic Energy Authority,United Kingdom Atomic Energy Authority,02/02/2015,PERSONAL PROTECTIVE EQUIPMENT,FUSION,ARCO LTD,5100316204,112.05
United Kingdom Atomic Energy Authority,United Kingdom Atomic Energy Authority,02/02/2015,MATERIALS & SPARES,FUSION,RS COMPONENTS LTD,5100316224,108.4
United Kingdom Atomic Energy Authority,United Kingdom Atomic Energy Authority,02/02/2015,MATERIALS & SPARES,FUSION,MOUSER ELECTRONICS,5100316283,94.79
United Kingdom Atomic Energy Authority,United Kingdom Atomic Energy Authority,02/02/2015,MATERIALS & SPARES,FUSION,RS COMPONENTS LTD,5100316304,178.21
United Kingdom Atomic Energy Authority,United Kingdom Atomic Energy Authority,02/02/2015,MATERIALS & SPARES,FUSION,FARNELL ELECTRONIC,5100316352,197.8
United Kingdom Atomic Energy Authority,United Kingdom Atomic Energy Authority,02/02/2015,MATERIALS & SPARES,FUSION,FARNELL ELECTRONIC,5100316375,227.98
United Kingdom Atomic Energy Authority,United Kingdom Atomic Energy Authority,02/02/2015,MATERIALS & SPARES,FUSION,SANDVIK MATERIALS TECHNOLOGY EMEA A,5100316378,377.36
United Kingdom Atomic Energy Authority,United Kingdom Atomic Energy Authority,02/02/2015,MATERIALS & SPARES,FUSION,WOLSELEY UK LIMITED,5100316410,21.88
United Kingdom Atomic Energy Authority,United Kingdom Atomic Energy Authority,02/02/2015,PLANT & EQUIPMENT,FUSION,MF HYDRAULICS LTD,5100316415,293.39
United Kingdom Atomic Energy Authority,United Kingdom Atomic Energy Authority,02/02/2015,MATERIALS & SPARES,FUSION,FARNELL ELECTRONIC,5100316511,1.26
United Kingdom Atomic Energy Authority,United Kingdom Atomic Energy Authority,09/02/2015,MATERIALS & SPARES,FUSION,Rapied Electronics Ltd,5100316529,5.69
United Kingdom Atomic Energy Authority,United Kingdom Atomic Energy Authority,09/02/2015,PLANT & EQUIPMENT,FUSION,SM GAUGE COMPANY LIMITED,5100316554,598
United Kingdom Atomic Energy Authority,United Kingdom Atomic Energy Authority,09/02/2015,MATERIALS & SPARES,FUSION,PIPELINE PEOPLE.COM,5100316558,38.08
United Kingdom Atomic Energy Authority,United Kingdom Atomic Energy Authority,09/02/2015,PERSONAL PROTECTIVE EQUIPMENT,FUSION,ARCO LTD,5100316565,165.57
United Kingdom Atomic Energy Authority,United Kingdom Atomic Energy Authority,18/02/2015,PERSONAL PROTECTIVE EQUIPMENT,FUSION,BUCK & HICKMAN LTD,5100316655,87.08
United Kingdom Atomic Energy Authority,United Kingdom Atomic Energy Authority,09/02/2015,MATERIALS & SPARES,FUSION,OXFORD BOLTS & BEARINGS,5100316682,218.8
United Kingdom Atomic Energy Authority,United Kingdom Atomic Energy Authority,09/02/2015,MATERIALS & SPARES,FUSION,FARNELL ELECTRONIC,5100316768,789.93
United Kingdom Atomic Energy Authority,United Kingdom Atomic Energy Authority,09/02/2015,MATERIALS & SPARES,FUSION,FARNELL ELECTRONIC,5100316770,4.9
United Kingdom Atomic Energy Authority,United Kingdom Atomic Energy Authority,09/02/2015,MATERIALS & SPARES,FUSION,FARNELL ELECTRONIC,5100316772,289.9
United Kingdom Atomic Energy Authority,United Kingdom Atomic Energy Authority,09/02/2015,MATERIALS & SPARES,FUSION,FARNELL ELECTRONIC,5100316774,2.23
United Kingdom Atomic Energy Authority,United Kingdom Atomic Energy Authority,09/02/2015,MATERIALS & SPARES,FUSION,FARNELL ELECTRONIC,5100316777,1.68
United Kingdom Atomic Energy Authority,United Kingdom Atomic Energy Authority,09/02/2015,MATERIALS & SPARES,FUSION,FARNELL ELECTRONIC,5100316794,136.3
United Kingdom Atomic Energy Authority,United Kingdom Atomic Energy Authority,09/02/2015,MATERIALS & SPARES,FUSION,FARNELL ELECTRONIC,5100316797,5.73
United Kingdom Atomic Energy Authority,United Kingdom Atomic Energy Authority,09/02/2015,MATERIALS & SPARES,FUSION,FARNELL ELECTRONIC,5100316801,139.75
United Kingdom Atomic Energy Authority,United Kingdom Atomic Energy Authority,11/02/2015,MATERIALS & SPARES,FUSION,FARNELL ELECTRONIC,5100316810,69.72
United Kingdom Atomic Energy Authority,United Kingdom Atomic Energy Authority,09/02/2015,MATERIALS & SPARES,FUSION,Rapid Racking Ltd,5100316836,358
United Kingdom Atomic Energy Authority,United Kingdom Atomic Energy Authority,09/02/2015,MATERIALS & SPARES,FUSION,RS COMPONENTS LTD,5100316838,70.29
United Kingdom Atomic Energy Authority,United Kingdom Atomic Energy Authority,09/02/2015,MATERIALS & SPARES,FUSION,RS COMPONENTS LTD,5100316847,82.77
United Kingdom Atomic Energy Authority,United Kingdom Atomic Energy Authority,11/02/2015,MATERIALS & SPARES,FUSION,SOUTHERN CALIBRATION LABORATORY,5100316875,80
United Kingdom Atomic Energy Authority,United Kingdom Atomic Energy Authority,18/02/2015,MATERIALS & SPARES,FUSION,WIKA INSTRUMENTS LTD,5100316979,35.15
United Kingdom Atomic Energy Authority,United Kingdom Atomic Energy Authority,11/02/2015,MATERIALS & SPARES,FUSION,FARNELL ELECTRONIC,5100316996,-8.82
United Kingdom Atomic Energy Authority,United Kingdom Atomic Energy Authority,18/02/2015,MATERIALS & SPARES,FUSION,GARNER OSBORNE CIRCUITS LTD,5100317009,258.24
United Kingdom Atomic Energy Authority,United Kingdom Atomic Energy Authority,18/02/2015,MATERIALS & SPARES,FUSION,GARNER OSBORNE CIRCUITS LTD,5100317011,290.98
United Kingdom Atomic Energy Authority,United Kingdom Atomic Energy Authority,18/02/2015,MATERIALS & SPARES,FUSION,TVH,5100317033,232
United Kingdom Atomic Energy Authority,United Kingdom Atomic Energy Authority,18/02/2015,MATERIALS & SPARES,FUSION,FARNELL ELECTRONIC,5100317116,-51.07
United Kingdom Atomic Energy Authority,United Kingdom Atomic Energy Authority,18/02/2015,MATERIALS & SPARES,FUSION,FARNELL ELECTRONIC,5100317132,300.2
United Kingdom Atomic Energy Authority,United Kingdom Atomic Energy Authority,18/02/2015,MATERIALS & SPARES,FUSION,FARNELL ELECTRONIC,5100317136,282.5
United Kingdom Atomic Energy Authority,United Kingdom Atomic Energy Authority,18/02/2015,PERSONAL PROTECTIVE EQUIPMENT,FUSION,ARCO LTD,5100317158,52.07
United Kingdom Atomic Energy Authority,United Kingdom Atomic Energy Authority,18/02/2015,MATERIALS & SPARES,FUSION,WIKA INSTRUMENTS LTD,5100317187,11.5
United Kingdom Atomic Energy Authority,United Kingdom Atomic Energy Authority,18/02/2015,MATERIALS & SPARES,FUSION,FARNELL ELECTRONIC,5100317275,199.49
United Kingdom Atomic Energy Authority,United Kingdom Atomic Energy Authority,18/02/2015,MATERIALS & SPARES,FUSION,FARNELL ELECTRONIC,5100317276,-136.3
United Kingdom Atomic Energy Authority,United Kingdom Atomic Energy Authority,18/02/2015,MATERIALS & SPARES,FUSION,RS COMPONENTS LTD,5100317322,35.17
United Kingdom Atomic Energy Authority,United Kingdom Atomic Energy Authority,18/02/2015,PLANT & EQUIPMENT,FUSION,EDMUNDSON ELECTRICALS LTD,5100317332,171.04
United Kingdom Atomic Energy Authority,United Kingdom Atomic Energy Authority,18/02/2015,MATERIALS & SPARES,FUSION,RS COMPONENTS LTD,5100317333,43.37
United Kingdom Atomic Energy Authority,United Kingdom Atomic Energy Authority,18/02/2015,MATERIALS & SPARES,FUSION,RS COMPONENTS LTD,5100317383,18.86
United Kingdom Atomic Energy Authority,United Kingdom Atomic Energy Authority,18/02/2015,MATERIALS & SPARES,FUSION,RS COMPONENTS LTD,5100317435,59.29
United Kingdom Atomic Energy Authority,United Kingdom Atomic Energy Authority,28/01/2015,PLANT & EQUIPMENT,FUSION,BOISWOOD LLP,1900060691,2538.58
United Kingdom Atomic Energy Authority,United Kingdom Atomic Energy Authority,06/02/2015,PLANT SPARES,FUSION,MIDLAND FILTRATION LTD,1900060719,155.76
United Kingdom Atomic Energy Authority,United Kingdom Atomic Energy Authority,16/02/2015,MATERIALS & SPARES,FUSION,CMS,1900060729,1042.38
United Kingdom Atomic Energy Authority,United Kingdom Atomic Energy Authority,18/02/2015,REPAIRS & MAINTENANCE,FUSION,CLEANLASER,5100314821,898.39
United Kingdom Atomic Energy Authority,United Kingdom Atomic Energy Authority,26/01/2015,PLANT SPARES,FUSION,AS SCIENTIFIC PRODUCTS LTD,5100315490,39240
United Kingdom Atomic Energy Authority,United Kingdom Atomic Energy Authority,09/02/2015,IT EQUIPMENT NON CAPITAL,FUSION,VIDEK LTD,5100315809,901.07
United Kingdom Atomic Energy Authority,United Kingdom Atomic Energy Authority,26/01/2015,MATERIALS & SPARES,FUSION,STEMMER IMAGING LTD,5100315857,222.2
United Kingdom Atomic Energy Authority,United Kingdom Atomic Energy Authority,26/01/2015,MATERIALS & SPARES,FUSION,NEWBURY ELECTRONICS,5100315868,87.16
United Kingdom Atomic Energy Authority,United Kingdom Atomic Energy Authority,26/01/2015,PLANT & EQUIPMENT,FUSION,PFEIFFER VACUUM UK,5100316009,5621.51
United Kingdom Atomic Energy Authority,United Kingdom Atomic Energy Authority,26/01/2015,MATERIALS & SPARES,FUSION,RS COMPONENTS LTD,5100316046,13.58
United Kingdom Atomic Energy Authority,United Kingdom Atomic Energy Authority,02/02/2015,MATERIALS & SPARES,FUSION,FARNELL ELECTRONIC,5100316100,34.39
United Kingdom Atomic Energy Authority,United Kingdom Atomic Energy Authority,02/02/2015,MATERIALS & SPARES,FUSION,THORLABS LTD,5100316105,426.49
United Kingdom Atomic Energy Authority,United Kingdom Atomic Energy Authority,02/02/2015,MATERIALS & SPARES,FUSION,RS COMPONENTS LTD,5100316123,13.41
United Kingdom Atomic Energy Authority,United Kingdom Atomic Energy Authority,02/02/2015,MATERIALS & SPARES,FUSION,RS COMPONENTS LTD,5100316125,27.02
United Kingdom Atomic Energy Authority,United Kingdom Atomic Energy Authority,02/02/2015,PLANT & EQUIPMENT,FUSION,OMEGA ENGINEERING LTD,5100316163,339
United Kingdom Atomic Energy Authority,United Kingdom Atomic Energy Authority,02/02/2015,MATERIALS & SPARES,FUSION,RS COMPONENTS LTD,5100316175,25.55
United Kingdom Atomic Energy Authority,United Kingdom Atomic Energy Authority,02/02/2015,MATERIALS & SPARES,FUSION,RS COMPONENTS LTD,5100316187,69.39
United Kingdom Atomic Energy Authority,United Kingdom Atomic Energy Authority,02/02/2015,REPAIRS & MAINTENANCE,FUSION,PRO-LITE TECHNOLOGY LLP,5100316195,4336
United Kingdom Atomic Energy Authority,United Kingdom Atomic Energy Authority,02/02/2015,MATERIALS & SPARES,FUSION,RS COMPONENTS LTD,5100316208,77.26
United Kingdom Atomic Energy Authority,United Kingdom Atomic Energy Authority,02/02/2015,BUILDING REPAIRS,FUSION,KNOWLES & SONS (OXFORD) LTD,5100316262,195.73
United Kingdom Atomic Energy Authority,United Kingdom Atomic Energy Authority,02/02/2015,MATERIALS & SPARES,FUSION,RS COMPONENTS LTD,5100316310,8.13
United Kingdom Atomic Energy Authority,United Kingdom Atomic Energy Authority,02/02/2015,MATERIALS & SPARES,FUSION,RS COMPONENTS LTD,5100316317,50.84
United Kingdom Atomic Energy Authority,United Kingdom Atomic Energy Authority,02/02/2015,MATERIALS & SPARES,FUSION,TVH,5100316325,43.2
United Kingdom Atomic Energy Authority,United Kingdom Atomic Energy Authority,09/02/2015,PROFESSIONAL SERVICES,FUSION,SWAGELOK LONDON,5100316371,1319.8
United Kingdom Atomic Energy Authority,United Kingdom Atomic Energy Authority,02/02/2015,MATERIALS & SPARES,FUSION,PDS (CNC) Engineering  LTD,5100316417,499.98
United Kingdom Atomic Energy Authority,United Kingdom Atomic Energy Authority,02/02/2015,MATERIALS & SPARES,FUSION,RS COMPONENTS LTD,5100316434,254.42
United Kingdom Atomic Energy Authority,United Kingdom Atomic Energy Authority,18/02/2015,MATERIALS & SPARES,FUSION,SmartDrive Ltd,5100316457,4823
United Kingdom Atomic Energy Authority,United Kingdom Atomic Energy Authority,02/02/2015,MATERIALS & SPARES,FUSION,RS COMPONENTS LTD,5100316464,25.51
United Kingdom Atomic Energy Authority,United Kingdom Atomic Energy Authority,02/02/2015,MATERIALS & SPARES,FUSION,RS COMPONENTS LTD,5100316480,93.15
United Kingdom Atomic Energy Authority,United Kingdom Atomic Energy Authority,02/02/2015,MATERIALS & SPARES,FUSION,RS COMPONENTS LTD,5100316482,16.33
United Kingdom Atomic Energy Authority,United Kingdom Atomic Energy Authority,02/02/2015,MATERIALS & SPARES,FUSION,RS COMPONENTS LTD,5100316483,54.36
United Kingdom Atomic Energy Authority,United Kingdom Atomic Energy Authority,04/02/2015,MATERIALS & SPARES,FUSION,BRIAN REECE SCIENTIFIC,5100316494,210
United Kingdom Atomic Energy Authority,United Kingdom Atomic Energy Authority,11/02/2015,PLANT & EQUIPMENT,FUSION,OCEAN OPTICS B.V,5100316534,5257
United Kingdom Atomic Energy Authority,United Kingdom Atomic Energy Authority,09/02/2015,MATERIALS & SPARES,FUSION,PDS (CNC) Engineering  LTD,5100316555,3071.19
United Kingdom Atomic Energy Authority,United Kingdom Atomic Energy Authority,09/02/2015,PLANT & EQUIPMENT,FUSION,INNOLAS UK LTD,5100316614,975
United Kingdom Atomic Energy Authority,United Kingdom Atomic Energy Authority,18/02/2015,GASES,FUSION,BOC LTD,5100316643,221.92
United Kingdom Atomic Energy Authority,United Kingdom Atomic Energy Authority,09/02/2015,MATERIALS & SPARES,FUSION,RS COMPONENTS LTD,5100316683,182.79
United Kingdom Atomic Energy Authority,United Kingdom Atomic Energy Authority,09/02/2015,MATERIALS & SPARES,FUSION,RS COMPONENTS LTD,5100316686,51.6
United Kingdom Atomic Energy Authority,United Kingdom Atomic Energy Authority,09/02/2015,MATERIALS & SPARES,FUSION,FARNELL ELECTRONIC,5100316766,56.11
United Kingdom Atomic Energy Authority,United Kingdom Atomic Energy Authority,09/02/2015,MATERIALS & SPARES,FUSION,FARNELL ELECTRONIC,5100316803,87.74
United Kingdom Atomic Energy Authority,United Kingdom Atomic Energy Authority,09/02/2015,MATERIALS & SPARES,FUSION,RS COMPONENTS LTD,5100316826,60.94
United Kingdom Atomic Energy Authority,United Kingdom Atomic Energy Authority,18/02/2015,PLANT & EQUIPMENT,FUSION,OMEGA ENGINEERING LTD,5100316947,167.4
United Kingdom Atomic Energy Authority,United Kingdom Atomic Energy Authority,18/02/2015,MATERIALS & SPARES,FUSION,Gear Cutting Ltd,5100316995,2270
United Kingdom Atomic Energy Authority,United Kingdom Atomic Energy Authority,18/02/2015,MATERIALS & SPARES,FUSION,UNDERWOODS ELECTRICAL DISTRIBUTORS,5100317028,1353.67
United Kingdom Atomic Energy Authority,United Kingdom Atomic Energy Authority,18/02/2015,BUILDING REPAIRS,FUSION,KNOWLES & SONS (OXFORD) LTD,5100317111,69.15
United Kingdom Atomic Energy Authority,United Kingdom Atomic Energy Authority,18/02/2015,MATERIALS & SPARES,FUSION,EDMUND OPTICS LTD,5100317192,772
United Kingdom Atomic Energy Authority,United Kingdom Atomic Energy Authority,18/02/2015,MATERIALS & SPARES,FUSION,FARNELL ELECTRONIC,5100317278,140.25
United Kingdom Atomic Energy Authority,United Kingdom Atomic Energy Authority,18/02/2015,PLANT & EQUIPMENT,FUSION,CSC SPA,5100317372,13461.68
United Kingdom Atomic Energy Authority,United Kingdom Atomic Energy Authority,18/02/2015,MATERIALS & SPARES,FUSION,RS COMPONENTS LTD,5100317425,73.27
United Kingdom Atomic Energy Authority,United Kingdom Atomic Energy Authority,18/02/2015,MATERIALS & SPARES,FUSION,RS COMPONENTS LTD,5100317437,48.78
United Kingdom Atomic Energy Authority,United Kingdom Atomic Energy Authority,29/01/2015,MATERIALS & SPARES,FUSION,ILF LTD,1900060695,567.6
United Kingdom Atomic Energy Authority,United Kingdom Atomic Energy Authority,29/01/2015,PLANT SPARES,FUSION,DICHTOMATIK LTD,1900060696,6908
United Kingdom Atomic Energy Authority,United Kingdom Atomic Energy Authority,31/01/2015,PROFESSIONAL SUBSCRIPTION,FUSION,EMPLOYEE EXPENSES,100754912,197.3
United Kingdom Atomic Energy Authority,United Kingdom Atomic Energy Authority,31/01/2015,PROFESSIONAL SUBSCRIPTION,FUSION,EMPLOYEE EXPENSES,100754929,125
United Kingdom Atomic Energy Authority,United Kingdom Atomic Energy Authority,22/02/2015,RAW MATERIALS & CONSUMABLES,FUSION,PURCHASECARDS,100758873,731.8
United Kingdom Atomic Energy Authority,United Kingdom Atomic Energy Authority,22/02/2015,MATERIALS & SPARES,FUSION,PURCHASECARDS,100758877,1262.32
United Kingdom Atomic Energy Authority,United Kingdom Atomic Energy Authority,26/01/2015,MATERIALS & SPARES,FUSION,SM System UK Ltd,5100315629,2689
United Kingdom Atomic Energy Authority,United Kingdom Atomic Energy Authority,26/01/2015,IT EQUIPMENT NON CAPITAL,FUSION,AZTEX SOLUTIONS LIMITED,5100315862,1111.56
United Kingdom Atomic Energy Authority,United Kingdom Atomic Energy Authority,02/02/2015,IT EQUIPMENT NON CAPITAL,FUSION,GIGASTREAM,5100316047,500
United Kingdom Atomic Energy Authority,United Kingdom Atomic Energy Authority,02/02/2015,PROFESSIONAL SERVICES,FUSION,VISTORM LTD,5100316166,6387
United Kingdom Atomic Energy Authority,United Kingdom Atomic Energy Authority,02/02/2015,SOFTWARE,FUSION,NOMINET UK,5100316349,80
United Kingdom Atomic Energy Authority,United Kingdom Atomic Energy Authority,11/02/2015,SOFTWARE,FUSION,Q ASSOCIATES LTD,5100316815,13011.17
United Kingdom Atomic Energy Authority,United Kingdom Atomic Energy Authority,02/02/2015,PROFESSIONAL SERVICES,FUSION,VISTORM LTD,5100310709,5410
United Kingdom Atomic Energy Authority,United Kingdom Atomic Energy Authority,09/02/2015,IT EQUIPMENT NON CAPITAL,FUSION,SCAN COMPUTERS INTERNATIONAL LTD,5100313125,1055.55
United Kingdom Atomic Energy Authority,United Kingdom Atomic Energy Authority,26/01/2015,IT EQUIPMENT NON CAPITAL,FUSION,ASHLYN COMPUTER SERVICES LTD,5100315828,250
United Kingdom Atomic Energy Authority,United Kingdom Atomic Energy Authority,28/01/2015,IT EQUIPMENT NON CAPITAL,FUSION,SCAN COMPUTERS INTERNATIONAL LTD,5100315839,2425.95
United Kingdom Atomic Energy Authority,United Kingdom Atomic Energy Authority,26/01/2015,MATERIALS & SPARES,FUSION,SAE-TECH LTD,5100315871,107
United Kingdom Atomic Energy Authority,United Kingdom Atomic Energy Authority,26/01/2015,MATERIALS & SPARES,FUSION,RS COMPONENTS LTD,5100315922,35.25
United Kingdom Atomic Energy Authority,United Kingdom Atomic Energy Authority,02/02/2015,PERSONAL PROTECTIVE EQUIPMENT,FUSION,ARCO LTD,5100316203,41.35
United Kingdom Atomic Energy Authority,United Kingdom Atomic Energy Authority,02/02/2015,MATERIALS & SPARES,FUSION,RS COMPONENTS LTD,5100316261,37.59
United Kingdom Atomic Energy Authority,United Kingdom Atomic Energy Authority,02/02/2015,MATERIALS & SPARES,FUSION,RS COMPONENTS LTD,5100316303,915
United Kingdom Atomic Energy Authority,United Kingdom Atomic Energy Authority,11/02/2015,PLANT & EQUIPMENT,FUSION,DIGIKEY CORPORATION,5100316350,459.44
United Kingdom Atomic Energy Authority,United Kingdom Atomic Energy Authority,02/02/2015,MATERIALS & SPARES,FUSION,FARNELL ELECTRONIC,5100316367,56
United Kingdom Atomic Energy Authority,United Kingdom Atomic Energy Authority,02/02/2015,PROFESSIONAL SERVICES,FUSION,VISTORM LTD,5100316406,-5410
United Kingdom Atomic Energy Authority,United Kingdom Atomic Energy Authority,02/02/2015,MATERIALS & SPARES,FUSION,FARNELL ELECTRONIC,5100316509,227.43
United Kingdom Atomic Energy Authority,United Kingdom Atomic Energy Authority,09/02/2015,PROFESSIONAL SERVICES,FUSION,VISTORM LTD,5100316594,5076
United Kingdom Atomic Energy Authority,United Kingdom Atomic Energy Authority,09/02/2015,SOFTWARE,FUSION,SOFTCAT PLC,5100316610,4951.26
United Kingdom Atomic Energy Authority,United Kingdom Atomic Energy Authority,09/02/2015,PLANT & EQUIPMENT,FUSION,EDMUNDSON ELECTRICALS LTD,5100316658,145.12
United Kingdom Atomic Energy Authority,United Kingdom Atomic Energy Authority,09/02/2015,IT EQUIPMENT NON CAPITAL,FUSION,SCAN COMPUTERS INTERNATIONAL LTD,5100316673,1409.71
United Kingdom Atomic Energy Authority,United Kingdom Atomic Energy Authority,09/02/2015,MATERIALS & SPARES,FUSION,INTERCOLE SUB-CONTRACT SYSTEMS,5100316687,470.7
United Kingdom Atomic Energy Authority,United Kingdom Atomic Energy Authority,09/02/2015,MATERIALS & SPARES,FUSION,RS COMPONENTS LTD,5100316695,358.33
United Kingdom Atomic Energy Authority,United Kingdom Atomic Energy Authority,09/02/2015,MATERIALS & SPARES,FUSION,SM System UK Ltd,5100316715,2889
United Kingdom Atomic Energy Authority,United Kingdom Atomic Energy Authority,09/02/2015,MATERIALS & SPARES,FUSION,FARNELL ELECTRONIC,5100316722,529.78
United Kingdom Atomic Energy Authority,United Kingdom Atomic Energy Authority,09/02/2015,PLANT & EQUIPMENT,FUSION,LEMO UK LTD,5100316744,90.37
United Kingdom Atomic Energy Authority,United Kingdom Atomic Energy Authority,11/02/2015,PLANT SPARES,FUSION,AURIGA EUROPE PLC,5100316785,197.89
United Kingdom Atomic Energy Authority,United Kingdom Atomic Energy Authority,11/02/2015,MATERIALS & SPARES,FUSION,SCHROFF UK LTD,5100316808,411.76
United Kingdom Atomic Energy Authority,United Kingdom Atomic Energy Authority,18/02/2015,MATERIALS & SPARES,FUSION,SAE-TECH LTD,5100316857,2000
United Kingdom Atomic Energy Authority,United Kingdom Atomic Energy Authority,18/02/2015,MATERIALS & SPARES,FUSION,SOUTHERN CALIBRATION LABORATORY,5100316876,545.55
United Kingdom Atomic Energy Authority,United Kingdom Atomic Energy Authority,18/02/2015,MATERIALS & SPARES,FUSION,FARNELL ELECTRONIC,5100316983,209.1
United Kingdom Atomic Energy Authority,United Kingdom Atomic Energy Authority,18/02/2015,PLANT SPARES,FUSION,AURIGA EUROPE PLC,5100317140,290
United Kingdom Atomic Energy Authority,United Kingdom Atomic Energy Authority,18/02/2015,MATERIALS & SPARES,FUSION,ALPHA ELECTRONICS (WALES) LTD,5100317148,4826.1
United Kingdom Atomic Energy Authority,United Kingdom Atomic Energy Authority,18/02/2015,PROFESSIONAL SERVICES,FUSION,EUROPEAN ELECTRONIQUE,5100317183,5753.6
United Kingdom Atomic Energy Authority,United Kingdom Atomic Energy Authority,18/02/2015,MATERIALS & SPARES,FUSION,XP PLC,5100317259,1720
United Kingdom Atomic Energy Authority,United Kingdom Atomic Energy Authority,18/02/2015,MATERIALS & SPARES,FUSION,SOUTHERN CALIBRATION LABORATORY,5100317260,353.8
United Kingdom Atomic Energy Authority,United Kingdom Atomic Energy Authority,18/02/2015,MATERIALS & SPARES,FUSION,SOUTHERN CALIBRATION LABORATORY,5100317261,909.62
United Kingdom Atomic Energy Authority,United Kingdom Atomic Energy Authority,18/02/2015,MATERIALS & SPARES,FUSION,RS COMPONENTS LTD,5100317316,34.04
United Kingdom Atomic Energy Authority,United Kingdom Atomic Energy Authority,18/02/2015,MATERIALS & SPARES,FUSION,RS COMPONENTS LTD,5100317321,41.83
United Kingdom Atomic Energy Authority,United Kingdom Atomic Energy Authority,18/02/2015,MATERIALS & SPARES,FUSION,RS COMPONENTS LTD,5100317430,121.9
United Kingdom Atomic Energy Authority,United Kingdom Atomic Energy Authority,26/01/2015,BUILDING REPAIRS,FUSION,KNOWLES & SONS (OXFORD) LTD,5100315885,36.54
United Kingdom Atomic Energy Authority,United Kingdom Atomic Energy Authority,09/02/2015,SOFTWARE,FUSION,SDC SYSTEMS LIMITED,5100316570,6766
United Kingdom Atomic Energy Authority,United Kingdom Atomic Energy Authority,04/02/2015,PROFESSIONAL SERVICES,FUSION,SWAGELOK LONDON,5100315163,3765.17
United Kingdom Atomic Energy Authority,United Kingdom Atomic Energy Authority,04/02/2015,MATERIALS & SPARES,FUSION,OERLIKON LEYBOLD VACUUM UK LTD,5100315434,1120.46
United Kingdom Atomic Energy Authority,United Kingdom Atomic Energy Authority,26/01/2015,MATERIALS & SPARES,FUSION,CPC PLC,5100315781,67.5
United Kingdom Atomic Energy Authority,United Kingdom Atomic Energy Authority,26/01/2015,COMPUTER REPAIRS,FUSION,BCAS LTD,5100315801,141.96
United Kingdom Atomic Energy Authority,United Kingdom Atomic Energy Authority,28/01/2015,PLANT & EQUIPMENT,FUSION,BLACK BOX UK LTD,5100315861,243.9
United Kingdom Atomic Energy Authority,United Kingdom Atomic Energy Authority,26/01/2015,GASES,FUSION,SCIENTIFIC & TECHNICAL GASES LTD,5100315901,2434
United Kingdom Atomic Energy Authority,United Kingdom Atomic Energy Authority,26/01/2015,MATERIALS & SPARES,FUSION,FARNELL ELECTRONIC,5100315909,85.36
United Kingdom Atomic Energy Authority,United Kingdom Atomic Energy Authority,26/01/2015,MATERIALS & SPARES,FUSION,RS COMPONENTS LTD,5100316050,52.5
United Kingdom Atomic Energy Authority,United Kingdom Atomic Energy Authority,02/02/2015,MATERIALS & SPARES,FUSION,FARNELL ELECTRONIC,5100316084,40.42
United Kingdom Atomic Energy Authority,United Kingdom Atomic Energy Authority,02/02/2015,GASES,FUSION,BOC LTD,5100316164,195.3
United Kingdom Atomic Energy Authority,United Kingdom Atomic Energy Authority,02/02/2015,MATERIALS & SPARES,FUSION,RS COMPONENTS LTD,5100316165,147.78
United Kingdom Atomic Energy Authority,United Kingdom Atomic Energy Authority,02/02/2015,MATERIALS & SPARES,FUSION,RS COMPONENTS LTD,5100316207,958.12
United Kingdom Atomic Energy Authority,United Kingdom Atomic Energy Authority,02/02/2015,MATERIALS & SPARES,FUSION,RS COMPONENTS LTD,5100316222,2.83
United Kingdom Atomic Energy Authority,United Kingdom Atomic Energy Authority,02/02/2015,MATERIALS & SPARES,FUSION,RS COMPONENTS LTD,5100316255,82.25
United Kingdom Atomic Energy Authority,United Kingdom Atomic Energy Authority,04/02/2015,PROFESSIONAL SERVICES,FUSION,SWAGELOK LONDON,5100316273,116.22
United Kingdom Atomic Energy Authority,United Kingdom Atomic Energy Authority,09/02/2015,MATERIALS & SPARES,FUSION,HIDEN ANALYTICAL LTD,5100316306,600
United Kingdom Atomic Energy Authority,United Kingdom Atomic Energy Authority,02/02/2015,PLANT & EQUIPMENT,FUSION,PFEIFFER VACUUM UK,5100316433,641.2
United Kingdom Atomic Energy Authority,United Kingdom Atomic Energy Authority,18/02/2015,MATERIALS & SPARES,FUSION,FORWARD 2000 LTD,5100316468,6136.36
United Kingdom Atomic Energy Authority,United Kingdom Atomic Energy Authority,02/02/2015,MATERIALS & SPARES,FUSION,RS COMPONENTS LTD,5100316474,29.56
United Kingdom Atomic Energy Authority,United Kingdom Atomic Energy Authority,09/02/2015,MATERIALS & SPARES,FUSION,RS COMPONENTS LTD,5100316478,68.87
United Kingdom Atomic Energy Authority,United Kingdom Atomic Energy Authority,02/02/2015,PLANT & EQUIPMENT,FUSION,PFEIFFER VACUUM UK,5100316504,701.16
United Kingdom Atomic Energy Authority,United Kingdom Atomic Energy Authority,02/02/2015,MATERIALS & SPARES,FUSION,FARNELL ELECTRONIC,5100316512,39.82
United Kingdom Atomic Energy Authority,United Kingdom Atomic Energy Authority,09/02/2015,SECURITY & EMERGENCY,FUSION,TRINITY PROTETION SYSTEMS,5100316519,2186.35
United Kingdom Atomic Energy Authority,United Kingdom Atomic Energy Authority,09/02/2015,GASES,FUSION,BOC LTD,5100316527,392.37
United Kingdom Atomic Energy Authority,United Kingdom Atomic Energy Authority,09/02/2015,GASES,FUSION,BOC LTD,5100316560,2388.22
United Kingdom Atomic Energy Authority,United Kingdom Atomic Energy Authority,09/02/2015,PLANT & EQUIPMENT,FUSION,PFEIFFER VACUUM UK,5100316593,578.43
United Kingdom Atomic Energy Authority,United Kingdom Atomic Energy Authority,09/02/2015,MATERIALS & SPARES,FUSION,B&M Engineering Ltd,5100316604,2685
United Kingdom Atomic Energy Authority,United Kingdom Atomic Energy Authority,09/02/2015,MATERIALS & SPARES,FUSION,B&M Engineering Ltd,5100316605,505
United Kingdom Atomic Energy Authority,United Kingdom Atomic Energy Authority,09/02/2015,GASES,FUSION,BOC LTD,5100316640,259.32
United Kingdom Atomic Energy Authority,United Kingdom Atomic Energy Authority,09/02/2015,MATERIALS & SPARES,FUSION,RS COMPONENTS LTD,5100316664,27.54
United Kingdom Atomic Energy Authority,United Kingdom Atomic Energy Authority,09/02/2015,PROFESSIONAL SERVICES,FUSION,SWAGELOK LONDON,5100316708,1469.31
United Kingdom Atomic Energy Authority,United Kingdom Atomic Energy Authority,09/02/2015,MATERIALS & SPARES,FUSION,FARNELL ELECTRONIC,5100316719,6
United Kingdom Atomic Energy Authority,United Kingdom Atomic Energy Authority,09/02/2015,MATERIALS & SPARES,FUSION,RS COMPONENTS LTD,5100316727,160.38
United Kingdom Atomic Energy Authority,United Kingdom Atomic Energy Authority,09/02/2015,PROFESSIONAL SERVICES,FUSION,SIGMA - ALDRICH CO LTD,5100316784,367
United Kingdom Atomic Energy Authority,United Kingdom Atomic Energy Authority,09/02/2015,MATERIALS & SPARES,FUSION,RS COMPONENTS LTD,5100316828,10.26
United Kingdom Atomic Energy Authority,United Kingdom Atomic Energy Authority,09/02/2015,MATERIALS & SPARES,FUSION,RS COMPONENTS LTD,5100316839,8.07
United Kingdom Atomic Energy Authority,United Kingdom Atomic Energy Authority,18/02/2015,MATERIALS & SPARES,FUSION,CPC PLC,5100316871,16.28
United Kingdom Atomic Energy Authority,United Kingdom Atomic Energy Authority,18/02/2015,PROFESSIONAL SERVICES,FUSION,SWAGELOK LONDON,5100316937,1177.18
United Kingdom Atomic Energy Authority,United Kingdom Atomic Energy Authority,18/02/2015,PLANT & EQUIPMENT,FUSION,PFEIFFER VACUUM UK,5100316964,1362.03
United Kingdom Atomic Energy Authority,United Kingdom Atomic Energy Authority,18/02/2015,PROFESSIONAL SERVICES,FUSION,SWAGELOK LONDON,5100316977,347.7
United Kingdom Atomic Energy Authority,United Kingdom Atomic Energy Authority,18/02/2015,MATERIALS & SPARES,FUSION,FARNELL ELECTRONIC,5100317135,11.76
United Kingdom Atomic Energy Authority,United Kingdom Atomic Energy Authority,18/02/2015,MATERIALS & SPARES,FUSION,CPC PLC,5100317245,33.71
United Kingdom Atomic Energy Authority,United Kingdom Atomic Energy Authority,18/02/2015,MATERIALS & SPARES,FUSION,OXFORD BOLTS & BEARINGS,5100317290,194.5
United Kingdom Atomic Energy Authority,United Kingdom Atomic Energy Authority,18/02/2015,MATERIALS & SPARES,FUSION,RS COMPONENTS LTD,5100317305,331.76
United Kingdom Atomic Energy Authority,United Kingdom Atomic Energy Authority,18/02/2015,MATERIALS & SPARES,FUSION,RS COMPONENTS LTD,5100317308,86.49
United Kingdom Atomic Energy Authority,United Kingdom Atomic Energy Authority,18/02/2015,PLANT & EQUIPMENT,FUSION,TC LTD,5100317349,105.9
United Kingdom Atomic Energy Authority,United Kingdom Atomic Energy Authority,18/02/2015,MATERIALS & SPARES,FUSION,OERLIKON LEYBOLD VACUUM UK LTD,5100317359,167.19
United Kingdom Atomic Energy Authority,United Kingdom Atomic Energy Authority,18/02/2015,MATERIALS & SPARES,FUSION,RS COMPONENTS LTD,5100317391,64.8
United Kingdom Atomic Energy Authority,United Kingdom Atomic Energy Authority,18/02/2015,MATERIALS & SPARES,FUSION,RS COMPONENTS LTD,5100317423,37.49
United Kingdom Atomic Energy Authority,United Kingdom Atomic Energy Authority,18/02/2015,MATERIALS & SPARES,FUSION,RS COMPONENTS LTD,5100317426,45.69
United Kingdom Atomic Energy Authority,United Kingdom Atomic Energy Authority,05/02/2015,INTERVIEW EXPENSES,FUSION,INTERVIEW EXPENSES,1900060708,22.5
United Kingdom Atomic Energy Authority,United Kingdom Atomic Energy Authority,05/02/2015,INTERVIEW EXPENSES,FUSION,INTERVIEW EXPENSES,1900060709,192.15
United Kingdom Atomic Energy Authority,United Kingdom Atomic Energy Authority,05/02/2015,INTERVIEW EXPENSES,FUSION,INTERVIEW EXPENSES,1900060710,167
United Kingdom Atomic Energy Authority,United Kingdom Atomic Energy Authority,05/02/2015,INTERVIEW EXPENSES,FUSION,INTERVIEW EXPENSES,1900060711,391.1
United Kingdom Atomic Energy Authority,United Kingdom Atomic Energy Authority,05/02/2015,PLANT & EQUIPMENT,FUSION,REFLEX ANALYTICAL CORP,1900060712,42.75
United Kingdom Atomic Energy Authority,United Kingdom Atomic Energy Authority,11/02/2015,PLANT & EQUIPMENT,FUSION,WATERLOO AIR PRODUCTS,1900060726,4863.97
United Kingdom Atomic Energy Authority,United Kingdom Atomic Energy Authority,16/02/2015,INTERVIEW EXPENSES,FUSION,INTERVIEW EXPENSES,1900060727,131.5
United Kingdom Atomic Energy Authority,United Kingdom Atomic Energy Authority,16/02/2015,INTERVIEW EXPENSES,FUSION,INTERVIEW EXPENSES,1900060728,32.4
United Kingdom Atomic Energy Authority,United Kingdom Atomic Energy Authority,31/01/2015,SUBSISTENCE,FUSION,EMPLOYEE EXPENSES,100754946,13.52
United Kingdom Atomic Energy Authority,United Kingdom Atomic Energy Authority,31/01/2015,PROFESSIONAL SUBSCRIPTION,FUSION,EMPLOYEE EXPENSES,100754951,74
United Kingdom Atomic Energy Authority,United Kingdom Atomic Energy Authority,19/02/2015,PROFESSIONAL SUBSCRIPTION,FUSION,EMPLOYEE EXPENSES,100758007,137
United Kingdom Atomic Energy Authority,United Kingdom Atomic Energy Authority,26/01/2015,PROFESSIONAL SERVICES,FUSION,INDUCTOTHERM HEATING & WELDING,5100314044,412
United Kingdom Atomic Energy Authority,United Kingdom Atomic Energy Authority,18/02/2015,MATERIALS: HAZARDOUS,FUSION,CHEMTECH WASTE MANAGEMENT,5100315633,4902.99
United Kingdom Atomic Energy Authority,United Kingdom Atomic Energy Authority,26/01/2015,PLANT & EQUIPMENT,FUSION,FISHER SCIENTIFIC UK LTD,5100315763,295.6
United Kingdom Atomic Energy Authority,United Kingdom Atomic Energy Authority,26/01/2015,PROFESSIONAL SERVICES,FUSION,OHES ENNVIRONMENTAL LTD,5100315771,1947.33
United Kingdom Atomic Energy Authority,United Kingdom Atomic Energy Authority,28/01/2015,PLANT & EQUIPMENT,FUSION,NEW PIG LTD,5100315808,158.04
United Kingdom Atomic Energy Authority,United Kingdom Atomic Energy Authority,28/01/2015,PLANT & EQUIPMENT,FUSION,NEW PIG LTD,5100315810,366.3
United Kingdom Atomic Energy Authority,United Kingdom Atomic Energy Authority,26/01/2015,PLANT & EQUIPMENT,FUSION,NEW PIG LTD,5100315811,526.34
United Kingdom Atomic Energy Authority,United Kingdom Atomic Energy Authority,26/01/2015,PLANT & EQUIPMENT,FUSION,NEW PIG LTD,5100315812,692.39
United Kingdom Atomic Energy Authority,United Kingdom Atomic Energy Authority,26/01/2015,PLANT & EQUIPMENT,FUSION,NEW PIG LTD,5100315880,608.96
United Kingdom Atomic Energy Authority,United Kingdom Atomic Energy Authority,26/01/2015,BUILDING REPAIRS,FUSION,KNOWLES & SONS (OXFORD) LTD,5100315906,2340.42
United Kingdom Atomic Energy Authority,United Kingdom Atomic Energy Authority,26/01/2015,PROFESSIONAL SERVICES,FUSION,INDUCTOTHERM HEATING & WELDING,5100315928,-1040
United Kingdom Atomic Energy Authority,United Kingdom Atomic Energy Authority,26/01/2015,PROFESSIONAL SERVICES,FUSION,INDUCTOTHERM HEATING & WELDING,5100315929,1040
United Kingdom Atomic Energy Authority,United Kingdom Atomic Energy Authority,04/02/2015,F&F,FUSION,POSTURITE UK LTD,5100315939,283.5
United Kingdom Atomic Energy Authority,United Kingdom Atomic Energy Authority,09/02/2015,PERSONAL PROTECTIVE EQUIPMENT,FUSION,ARCO LTD,5100315999,812
United Kingdom Atomic Energy Authority,United Kingdom Atomic Energy Authority,26/01/2015,MATERIALS & SPARES,FUSION,RS COMPONENTS LTD,5100316041,29.66
United Kingdom Atomic Energy Authority,United Kingdom Atomic Energy Authority,02/02/2015,PLANT & EQUIPMENT,FUSION,NEW PIG LTD,5100316196,693.4
United Kingdom Atomic Energy Authority,United Kingdom Atomic Energy Authority,04/02/2015,PLANT & EQUIPMENT,FUSION,NEW PIG LTD,5100316197,142.28
United Kingdom Atomic Energy Authority,United Kingdom Atomic Energy Authority,02/02/2015,PERSONAL PROTECTIVE EQUIPMENT,FUSION,ARCO LTD,5100316211,163.18
United Kingdom Atomic Energy Authority,United Kingdom Atomic Energy Authority,02/02/2015,PERSONAL PROTECTIVE EQUIPMENT,FUSION,ARCO LTD,5100316212,69.8
United Kingdom Atomic Energy Authority,United Kingdom Atomic Energy Authority,09/02/2015,MATERIALS & SPARES,FUSION,BUDGET FORKTRUCKS LTD,5100316241,390
United Kingdom Atomic Energy Authority,United Kingdom Atomic Energy Authority,09/02/2015,MATERIALS & SPARES,FUSION,BUDGET FORKTRUCKS LTD,5100316247,312
United Kingdom Atomic Energy Authority,United Kingdom Atomic Energy Authority,02/02/2015,MATERIALS & SPARES,FUSION,RS COMPONENTS LTD,5100316257,10.3
United Kingdom Atomic Energy Authority,United Kingdom Atomic Energy Authority,02/02/2015,BUILDING REPAIRS,FUSION,KNOWLES & SONS (OXFORD) LTD,5100316264,1097.73
United Kingdom Atomic Energy Authority,United Kingdom Atomic Energy Authority,02/02/2015,PERSONAL PROTECTIVE EQUIPMENT,FUSION,ARCO LTD,5100316267,52.12
United Kingdom Atomic Energy Authority,United Kingdom Atomic Energy Authority,02/02/2015,CONSUMABLES,FUSION,BERKSHIRE PALLETS LTD,5100316389,795
United Kingdom Atomic Energy Authority,United Kingdom Atomic Energy Authority,02/02/2015,MATERIALS & SPARES,FUSION,RADDEC LTD,5100316419,1430
United Kingdom Atomic Energy Authority,United Kingdom Atomic Energy Authority,02/02/2015,PERSONAL PROTECTIVE EQUIPMENT,FUSION,ARCO LTD,5100316450,233.4
United Kingdom Atomic Energy Authority,United Kingdom Atomic Energy Authority,04/02/2015,PLANT & EQUIPMENT,FUSION,FISHER SCIENTIFIC UK LTD,5100316455,124.45
United Kingdom Atomic Energy Authority,United Kingdom Atomic Energy Authority,02/02/2015,PERSONAL PROTECTIVE EQUIPMENT,FUSION,ARCO LTD,5100316461,176
United Kingdom Atomic Energy Authority,United Kingdom Atomic Energy Authority,18/02/2015,MATERIALS & SPARES,FUSION,OXFORD BOLTS & BEARINGS,5100316497,25
United Kingdom Atomic Energy Authority,United Kingdom Atomic Energy Authority,09/02/2015,PLANT & EQUIPMENT,FUSION,THAMES VALLEY SAW SERVICE LTD,5100316540,820.8
United Kingdom Atomic Energy Authority,United Kingdom Atomic Energy Authority,09/02/2015,PLANT & EQUIPMENT,FUSION,NEW PIG LTD,5100316541,146.33
United Kingdom Atomic Energy Authority,United Kingdom Atomic Energy Authority,09/02/2015,MATERIALS & SPARES,FUSION,FASTFIX,5100316549,159
United Kingdom Atomic Energy Authority,United Kingdom Atomic Energy Authority,09/02/2015,MATERIALS & SPARES,FUSION,T H WHITE LIMITED,5100316569,2200
United Kingdom Atomic Energy Authority,United Kingdom Atomic Energy Authority,09/02/2015,MATERIALS & SPARES,FUSION,T H WHITE LIMITED,5100316606,419.23
United Kingdom Atomic Energy Authority,United Kingdom Atomic Energy Authority,09/02/2015,GASES,FUSION,BOC LTD,5100316638,37.44
United Kingdom Atomic Energy Authority,United Kingdom Atomic Energy Authority,18/02/2015,PLANT & EQUIPMENT,FUSION,FISHER SCIENTIFIC UK LTD,5100316684,75.09
United Kingdom Atomic Energy Authority,United Kingdom Atomic Energy Authority,09/02/2015,PLANT & EQUIPMENT,FUSION,NEW PIG LTD,5100316691,129.29
United Kingdom Atomic Energy Authority,United Kingdom Atomic Energy Authority,18/02/2015,MATERIALS & SPARES,FUSION,YKK UK Ltd,5100316790,48.84
United Kingdom Atomic Energy Authority,United Kingdom Atomic Energy Authority,18/02/2015,MATERIALS & SPARES,FUSION,RS COMPONENTS LTD,5100316860,16.81
United Kingdom Atomic Energy Authority,United Kingdom Atomic Energy Authority,18/02/2015,CAR HIRE,FUSION,LEASEDRIVE VELO,5100316913,72.88
United Kingdom Atomic Energy Authority,United Kingdom Atomic Energy Authority,18/02/2015,MATERIALS & SPARES,FUSION,SCREWFIX DIRECT LTD,5100316938,49.99
United Kingdom Atomic Energy Authority,United Kingdom Atomic Energy Authority,18/02/2015,GASES,FUSION,BOC LTD,5100316943,20
United Kingdom Atomic Energy Authority,United Kingdom Atomic Energy Authority,18/02/2015,PLANT & EQUIPMENT,FUSION,NEW PIG LTD,5100317005,80.1
United Kingdom Atomic Energy Authority,United Kingdom Atomic Energy Authority,18/02/2015,PLANT & EQUIPMENT,FUSION,NEW PIG LTD,5100317007,301.6
United Kingdom Atomic Energy Authority,United Kingdom Atomic Energy Authority,18/02/2015,PLANT & EQUIPMENT,FUSION,FISHER SCIENTIFIC UK LTD,5100317030,75.09
United Kingdom Atomic Energy Authority,United Kingdom Atomic Energy Authority,18/02/2015,MATERIALS & SPARES,FUSION,Green Machine Computers Ltd,5100317115,1540
United Kingdom Atomic Energy Authority,United Kingdom Atomic Energy Authority,18/02/2015,PLANT & EQUIPMENT,FUSION,FISHER SCIENTIFIC UK LTD,5100317150,707.62
United Kingdom Atomic Energy Authority,United Kingdom Atomic Energy Authority,18/02/2015,PLANT & EQUIPMENT,FUSION,FISHER SCIENTIFIC UK LTD,5100317151,337.89
United Kingdom Atomic Energy Authority,United Kingdom Atomic Energy Authority,18/02/2015,PLANT & EQUIPMENT,FUSION,FISHER SCIENTIFIC UK LTD,5100317238,75.09
United Kingdom Atomic Energy Authority,United Kingdom Atomic Energy Authority,18/02/2015,PLANT & EQUIPMENT,FUSION,PATRICO LTD,5100317282,3885.6
United Kingdom Atomic Energy Authority,United Kingdom Atomic Energy Authority,18/02/2015,PLANT & EQUIPMENT,FUSION,PATRICO LTD,5100317402,2467.6
United Kingdom Atomic Energy Authority,United Kingdom Atomic Energy Authority,31/01/2015,SUBSISTENCE,FUSION,EMPLOYEE EXPENSES,100754922,5
United Kingdom Atomic Energy Authority,United Kingdom Atomic Energy Authority,31/01/2015,SUBSISTENCE,FUSION,EMPLOYEE EXPENSES,100754922,91.85
United Kingdom Atomic Energy Authority,United Kingdom Atomic Energy Authority,31/01/2015,ROAD TRAVEL,FUSION,EMPLOYEE EXPENSES,100754922,56.29
United Kingdom Atomic Energy Authority,United Kingdom Atomic Energy Authority,28/01/2015,MATERIALS & SPARES,FUSION,RS COMPONENTS LTD,5100314506,26.79
United Kingdom Atomic Energy Authority,United Kingdom Atomic Energy Authority,02/02/2015,HEALTH PHYSICS,FUSION,Technitics group Lts,5100315457,4357.1
United Kingdom Atomic Energy Authority,United Kingdom Atomic Energy Authority,26/01/2015,MATERIALS & SPARES,FUSION,FARNELL ELECTRONIC,5100315597,591.39
United Kingdom Atomic Energy Authority,United Kingdom Atomic Energy Authority,28/01/2015,MATERIALS & SPARES,FUSION,FARNELL ELECTRONIC,5100315602,25.39
United Kingdom Atomic Energy Authority,United Kingdom Atomic Energy Authority,26/01/2015,MATERIALS & SPARES,FUSION,RITTAL,5100315607,75.58
United Kingdom Atomic Energy Authority,United Kingdom Atomic Energy Authority,26/01/2015,PROFESSIONAL SERVICES,FUSION,SWAGELOK LONDON,5100315852,89.18
United Kingdom Atomic Energy Authority,United Kingdom Atomic Energy Authority,26/01/2015,MATERIALS & SPARES,FUSION,FARNELL ELECTRONIC,5100315908,810.42
United Kingdom Atomic Energy Authority,United Kingdom Atomic Energy Authority,26/01/2015,MATERIALS & SPARES,FUSION,FTI LTD,5100315916,233.7
United Kingdom Atomic Energy Authority,United Kingdom Atomic Energy Authority,26/01/2015,MATERIALS & SPARES,FUSION,RS COMPONENTS LTD,5100315923,41.75
United Kingdom Atomic Energy Authority,United Kingdom Atomic Energy Authority,26/01/2015,PLANT SPARES,FUSION,CSE INDUSTRIAL ELECTRICAL DISTRIBUT,5100315931,16.2
United Kingdom Atomic Energy Authority,United Kingdom Atomic Energy Authority,26/01/2015,MATERIALS & SPARES,FUSION,FARNELL ELECTRONIC,5100315997,183.6
United Kingdom Atomic Energy Authority,United Kingdom Atomic Energy Authority,26/01/2015,MATERIALS & SPARES,FUSION,CROMWELL LTD,5100316011,10.94
United Kingdom Atomic Energy Authority,United Kingdom Atomic Energy Authority,26/01/2015,PROFESSIONAL SERVICES,FUSION,SWAGELOK LONDON,5100316033,1899.63
United Kingdom Atomic Energy Authority,United Kingdom Atomic Energy Authority,26/01/2015,MATERIALS & SPARES,FUSION,RS COMPONENTS LTD,5100316052,161.7
United Kingdom Atomic Energy Authority,United Kingdom Atomic Energy Authority,26/01/2015,MATERIALS & SPARES,FUSION,FARNELL ELECTRONIC,5100316060,54.57
United Kingdom Atomic Energy Authority,United Kingdom Atomic Energy Authority,26/01/2015,MATERIALS & SPARES,FUSION,FARNELL ELECTRONIC,5100316067,449.18
United Kingdom Atomic Energy Authority,United Kingdom Atomic Energy Authority,02/02/2015,MATERIALS & SPARES,FUSION,FARNELL ELECTRONIC,5100316081,2.2
United Kingdom Atomic Energy Authority,United Kingdom Atomic Energy Authority,02/02/2015,MATERIALS & SPARES,FUSION,FARNELL ELECTRONIC,5100316096,249.4
United Kingdom Atomic Energy Authority,United Kingdom Atomic Energy Authority,02/02/2015,MATERIALS & SPARES,FUSION,RS COMPONENTS LTD,5100316143,307.43
United Kingdom Atomic Energy Authority,United Kingdom Atomic Energy Authority,02/02/2015,MATERIALS & SPARES,FUSION,RS COMPONENTS LTD,5100316177,76.38
United Kingdom Atomic Energy Authority,United Kingdom Atomic Energy Authority,02/02/2015,PERSONAL PROTECTIVE EQUIPMENT,FUSION,ARCO LTD,5100316205,79.9
United Kingdom Atomic Energy Authority,United Kingdom Atomic Energy Authority,02/02/2015,MATERIALS & SPARES,FUSION,FARNELL ELECTRONIC,5100316351,319.92
United Kingdom Atomic Energy Authority,United Kingdom Atomic Energy Authority,02/02/2015,MATERIALS & SPARES,FUSION,FARNELL ELECTRONIC,5100316353,109.14
United Kingdom Atomic Energy Authority,United Kingdom Atomic Energy Authority,09/02/2015,MATERIALS & SPARES,FUSION,RS COMPONENTS LTD,5100316395,674.15
United Kingdom Atomic Energy Authority,United Kingdom Atomic Energy Authority,02/02/2015,MATERIALS & SPARES,FUSION,KURT J LESKER,5100316426,475
United Kingdom Atomic Energy Authority,United Kingdom Atomic Energy Authority,09/02/2015,MATERIALS & SPARES,FUSION,RS COMPONENTS LTD,5100316469,143.86
United Kingdom Atomic Energy Authority,United Kingdom Atomic Energy Authority,02/02/2015,PLANT & EQUIPMENT,FUSION,PFEIFFER VACUUM UK,5100316503,766.9
United Kingdom Atomic Energy Authority,United Kingdom Atomic Energy Authority,02/02/2015,PLANT & EQUIPMENT,FUSION,PFEIFFER VACUUM UK,5100316505,687.02
United Kingdom Atomic Energy Authority,United Kingdom Atomic Energy Authority,09/02/2015,MATERIALS & SPARES,FUSION,CPC PLC,5100316567,62.84
United Kingdom Atomic Energy Authority,United Kingdom Atomic Energy Authority,09/02/2015,GASES,FUSION,BOC LTD,5100316642,226.72
United Kingdom Atomic Energy Authority,United Kingdom Atomic Energy Authority,09/02/2015,MATERIALS & SPARES,FUSION,RS COMPONENTS LTD,5100316647,-168.41
United Kingdom Atomic Energy Authority,United Kingdom Atomic Energy Authority,09/02/2015,PERSONAL PROTECTIVE EQUIPMENT,FUSION,BUCK & HICKMAN LTD,5100316656,163.32
United Kingdom Atomic Energy Authority,United Kingdom Atomic Energy Authority,11/02/2015,MATERIALS & SPARES,FUSION,SILGO LUBRICANTS,5100316668,40
United Kingdom Atomic Energy Authority,United Kingdom Atomic Energy Authority,09/02/2015,MATERIALS & SPARES,FUSION,SILGO LUBRICANTS,5100316669,2842.4
United Kingdom Atomic Energy Authority,United Kingdom Atomic Energy Authority,09/02/2015,MATERIALS & SPARES,FUSION,FARNELL ELECTRONIC,5100316718,18.78
United Kingdom Atomic Energy Authority,United Kingdom Atomic Energy Authority,09/02/2015,MATERIALS & SPARES,FUSION,FARNELL ELECTRONIC,5100316765,242.43
United Kingdom Atomic Energy Authority,United Kingdom Atomic Energy Authority,09/02/2015,MATERIALS & SPARES,FUSION,FARNELL ELECTRONIC,5100316776,606.48
United Kingdom Atomic Energy Authority,United Kingdom Atomic Energy Authority,09/02/2015,MATERIALS & SPARES,FUSION,FARNELL ELECTRONIC,5100316793,364.93
United Kingdom Atomic Energy Authority,United Kingdom Atomic Energy Authority,09/02/2015,MATERIALS & SPARES,FUSION,FARNELL ELECTRONIC,5100316814,102.7
United Kingdom Atomic Energy Authority,United Kingdom Atomic Energy Authority,09/02/2015,PLANT & EQUIPMENT,FUSION,AALCO LIMITED,5100316819,207.36
United Kingdom Atomic Energy Authority,United Kingdom Atomic Energy Authority,11/02/2015,MATERIALS & SPARES,FUSION,RS COMPONENTS LTD,5100316824,101.13
United Kingdom Atomic Energy Authority,United Kingdom Atomic Energy Authority,09/02/2015,MATERIALS & SPARES,FUSION,RS COMPONENTS LTD,5100316843,36.15
United Kingdom Atomic Energy Authority,United Kingdom Atomic Energy Authority,18/02/2015,MATERIALS & SPARES,FUSION,RS COMPONENTS LTD,5100316852,292.84
United Kingdom Atomic Energy Authority,United Kingdom Atomic Energy Authority,18/02/2015,MATERIALS & SPARES,FUSION,RS COMPONENTS LTD,5100316881,20.56
United Kingdom Atomic Energy Authority,United Kingdom Atomic Energy Authority,18/02/2015,PLANT & EQUIPMENT,FUSION,MILLHILL TOOLS LTD,5100316893,14
United Kingdom Atomic Energy Authority,United Kingdom Atomic Energy Authority,18/02/2015,MATERIALS & SPARES,FUSION,RS COMPONENTS LTD,5100316931,182.93
United Kingdom Atomic Energy Authority,United Kingdom Atomic Energy Authority,18/02/2015,PLANT & EQUIPMENT,FUSION,PFEIFFER VACUUM UK,5100316966,97.48
United Kingdom Atomic Energy Authority,United Kingdom Atomic Energy Authority,18/02/2015,PROFESSIONAL SERVICES,FUSION,HUTTON ENGINEERING (PRECISION) LTD,5100316994,290.7
United Kingdom Atomic Energy Authority,United Kingdom Atomic Energy Authority,18/02/2015,MATERIALS & SPARES,FUSION,FARNELL ELECTRONIC,5100317274,593.84
United Kingdom Atomic Energy Authority,United Kingdom Atomic Energy Authority,18/02/2015,MATERIALS & SPARES,FUSION,RS COMPONENTS LTD,5100317392,660.16
United Kingdom Atomic Energy Authority,United Kingdom Atomic Energy Authority,18/02/2015,MATERIALS & SPARES,FUSION,FARNELL ELECTRONIC,5100317410,505.71
United Kingdom Atomic Energy Authority,United Kingdom Atomic Energy Authority,18/02/2015,MATERIALS & SPARES,FUSION,RS COMPONENTS LTD,5100317412,168.41
United Kingdom Atomic Energy Authority,United Kingdom Atomic Energy Authority,18/02/2015,MATERIALS & SPARES,FUSION,RS COMPONENTS LTD,5100317431,744.9
United Kingdom Atomic Energy Authority,United Kingdom Atomic Energy Authority,18/02/2015,PLANT & EQUIPMENT,FUSION,PFEIFFER VACUUM UK,5100317448,290.15
United Kingdom Atomic Energy Authority,United Kingdom Atomic Energy Authority,11/02/2015,PROFESSIONAL SERVICES,FUSION,AMEC NUCLEAR UK LIMITED,5100316820,35076
United Kingdom Atomic Energy Authority,United Kingdom Atomic Energy Authority,19/02/2015,SUBSISTENCE,FUSION,EMPLOYEE EXPENSES,100758002,13.65
United Kingdom Atomic Energy Authority,United Kingdom Atomic Energy Authority,19/02/2015,ROAD TRAVEL,FUSION,EMPLOYEE EXPENSES,100758002,36.34
United Kingdom Atomic Energy Authority,United Kingdom Atomic Energy Authority,26/01/2015,MATERIALS & SPARES,FUSION,CITY ENGINEERING LTD,5100315977,718.57
United Kingdom Atomic Energy Authority,United Kingdom Atomic Energy Authority,04/02/2015,MATERIALS & SPARES,FUSION,CITY ENGINEERING LTD,5100315982,3492.28
United Kingdom Atomic Energy Authority,United Kingdom Atomic Energy Authority,02/02/2015,PROFESSIONAL SERVICES,FUSION,MACHINING TECHNOLOGY (MACH-TECH),5100316299,8695.42
United Kingdom Atomic Energy Authority,United Kingdom Atomic Energy Authority,09/02/2015,PLANT SPARES,FUSION,PRECISION CERAMICS,5100316380,987.7
United Kingdom Atomic Energy Authority,United Kingdom Atomic Energy Authority,09/02/2015,MATERIALS & SPARES,FUSION,PMD (UK) LTD,5100316689,84.9
United Kingdom Atomic Energy Authority,United Kingdom Atomic Energy Authority,10/02/2015,PLANT SPARES,FUSION,PRECISION CERAMICS,5100316955,-987.7
United Kingdom Atomic Energy Authority,United Kingdom Atomic Energy Authority,10/02/2015,PLANT SPARES,FUSION,PRECISION CERAMICS,5100316956,987.7
United Kingdom Atomic Energy Authority,United Kingdom Atomic Energy Authority,28/01/2015,PERSONAL PROTECTIVE EQUIPMENT,FUSION,ARCO LTD,5100313378,228.5
United Kingdom Atomic Energy Authority,United Kingdom Atomic Energy Authority,26/01/2015,MATERIALS & SPARES,FUSION,ANIXTER (UK) LTD,5100315491,469.36
United Kingdom Atomic Energy Authority,United Kingdom Atomic Energy Authority,18/02/2015,BUILDING REPAIRS,FUSION,LORNE STEWART PLC,5100315548,-1232.74
United Kingdom Atomic Energy Authority,United Kingdom Atomic Energy Authority,18/02/2015,BUILDING REPAIRS,FUSION,LORNE STEWART PLC,5100315549,80.64
United Kingdom Atomic Energy Authority,United Kingdom Atomic Energy Authority,26/01/2015,PERSONAL PROTECTIVE EQUIPMENT,FUSION,ARCO LTD,5100315584,79.13
United Kingdom Atomic Energy Authority,United Kingdom Atomic Energy Authority,26/01/2015,PERSONAL PROTECTIVE EQUIPMENT,FUSION,ARCO LTD,5100315585,1185.21
United Kingdom Atomic Energy Authority,United Kingdom Atomic Energy Authority,26/01/2015,MATERIALS & SPARES,FUSION,OXFORD BOLTS & BEARINGS,5100315623,467.45
United Kingdom Atomic Energy Authority,United Kingdom Atomic Energy Authority,26/01/2015,BUILDING REPAIRS,FUSION,D CLOUGH LTD,5100315635,5066.14
United Kingdom Atomic Energy Authority,United Kingdom Atomic Energy Authority,26/01/2015,MATERIALS & SPARES,FUSION,OXFORD BOLTS & BEARINGS,5100315691,126.48
United Kingdom Atomic Energy Authority,United Kingdom Atomic Energy Authority,26/01/2015,MATERIALS & SPARES,FUSION,HOTCHKISS AIR SUPPLY,5100315766,104.12
United Kingdom Atomic Energy Authority,United Kingdom Atomic Energy Authority,09/02/2015,MATERIALS & SPARES,FUSION,ANIXTER (UK) LTD,5100315768,404.7
United Kingdom Atomic Energy Authority,United Kingdom Atomic Energy Authority,26/01/2015,MATERIALS & SPARES,FUSION,R&M Electrical Group Ltd,5100315770,600.5
United Kingdom Atomic Energy Authority,United Kingdom Atomic Energy Authority,26/01/2015,PLANT & EQUIPMENT,FUSION,FISHER SCIENTIFIC UK LTD,5100315815,533.77
United Kingdom Atomic Energy Authority,United Kingdom Atomic Energy Authority,26/01/2015,MATERIALS & SPARES,FUSION,CROMWELL LTD,5100315822,102.32
United Kingdom Atomic Energy Authority,United Kingdom Atomic Energy Authority,26/01/2015,MATERIALS & SPARES,FUSION,CROMWELL LTD,5100315823,-51.16
United Kingdom Atomic Energy Authority,United Kingdom Atomic Energy Authority,26/01/2015,MATERIALS & SPARES,FUSION,CROMWELL LTD,5100315829,545.63
United Kingdom Atomic Energy Authority,United Kingdom Atomic Energy Authority,26/01/2015,MATERIALS & SPARES,FUSION,CROMWELL LTD,5100315831,823.47
United Kingdom Atomic Energy Authority,United Kingdom Atomic Energy Authority,26/01/2015,MATERIALS & SPARES,FUSION,CROMWELL LTD,5100315833,26.1
United Kingdom Atomic Energy Authority,United Kingdom Atomic Energy Authority,26/01/2015,MATERIALS & SPARES,FUSION,Industrial Technical Ltd,5100315870,209.5
United Kingdom Atomic Energy Authority,United Kingdom Atomic Energy Authority,26/01/2015,MATERIALS & SPARES,FUSION,RS COMPONENTS LTD,5100315910,50.15
United Kingdom Atomic Energy Authority,United Kingdom Atomic Energy Authority,02/02/2015,MATERIALS & SPARES,FUSION,FARNELL ELECTRONIC,5100315959,119.4
United Kingdom Atomic Energy Authority,United Kingdom Atomic Energy Authority,28/01/2015,PERSONAL PROTECTIVE EQUIPMENT,FUSION,ARCO LTD,5100315992,2223
United Kingdom Atomic Energy Authority,United Kingdom Atomic Energy Authority,26/01/2015,MATERIALS & SPARES,FUSION,CROMWELL LTD,5100315998,163.76
United Kingdom Atomic Energy Authority,United Kingdom Atomic Energy Authority,28/01/2015,PERSONAL PROTECTIVE EQUIPMENT,FUSION,ARCO LTD,5100316000,42.72
United Kingdom Atomic Energy Authority,United Kingdom Atomic Energy Authority,28/01/2015,PERSONAL PROTECTIVE EQUIPMENT,FUSION,ARCO LTD,5100316002,1366.08
United Kingdom Atomic Energy Authority,United Kingdom Atomic Energy Authority,26/01/2015,MATERIALS & SPARES,FUSION,CROMWELL LTD,5100316003,40.94
United Kingdom Atomic Energy Authority,United Kingdom Atomic Energy Authority,28/01/2015,PERSONAL PROTECTIVE EQUIPMENT,FUSION,ARCO LTD,5100316005,326.62
United Kingdom Atomic Energy Authority,United Kingdom Atomic Energy Authority,28/01/2015,PERSONAL PROTECTIVE EQUIPMENT,FUSION,ARCO LTD,5100316006,825.01
United Kingdom Atomic Energy Authority,United Kingdom Atomic Energy Authority,26/01/2015,MATERIALS & SPARES,FUSION,PBSI Group Ltd,5100316039,8577
United Kingdom Atomic Energy Authority,United Kingdom Atomic Energy Authority,26/01/2015,MATERIALS & SPARES,FUSION,RS COMPONENTS LTD,5100316053,71.57
United Kingdom Atomic Energy Authority,United Kingdom Atomic Energy Authority,09/02/2015,MATERIALS & SPARES,FUSION,FARNELL ELECTRONIC,5100316085,150.46
United Kingdom Atomic Energy Authority,United Kingdom Atomic Energy Authority,02/02/2015,MATERIALS & SPARES,FUSION,FARNELL ELECTRONIC,5100316104,26.12
United Kingdom Atomic Energy Authority,United Kingdom Atomic Energy Authority,02/02/2015,PLANT & EQUIPMENT,FUSION,EDMUNDSON ELECTRICALS LTD,5100316108,24.45
United Kingdom Atomic Energy Authority,United Kingdom Atomic Energy Authority,02/02/2015,MATERIALS & SPARES,FUSION,SCREWFIX DIRECT LTD,5100316120,105.57
United Kingdom Atomic Energy Authority,United Kingdom Atomic Energy Authority,09/02/2015,COMPUTER REPAIRS,FUSION,LEVANT UPS LTD,5100316152,3150
United Kingdom Atomic Energy Authority,United Kingdom Atomic Energy Authority,02/02/2015,MATERIALS & SPARES,FUSION,RS COMPONENTS LTD,5100316159,15.2
United Kingdom Atomic Energy Authority,United Kingdom Atomic Energy Authority,02/02/2015,PLANT & EQUIPMENT,FUSION,EDMUNDSON ELECTRICALS LTD,5100316168,762.2
United Kingdom Atomic Energy Authority,United Kingdom Atomic Energy Authority,09/02/2015,PLANT & EQUIPMENT,FUSION,EDMUNDSON ELECTRICALS LTD,5100316170,103.18
United Kingdom Atomic Energy Authority,United Kingdom Atomic Energy Authority,02/02/2015,PERSONAL PROTECTIVE EQUIPMENT,FUSION,ARCO LTD,5100316174,224.2
United Kingdom Atomic Energy Authority,United Kingdom Atomic Energy Authority,02/02/2015,PERSONAL PROTECTIVE EQUIPMENT,FUSION,ARCO LTD,5100316184,1950
United Kingdom Atomic Energy Authority,United Kingdom Atomic Energy Authority,02/02/2015,PERSONAL PROTECTIVE EQUIPMENT,FUSION,ARCO LTD,5100316186,123.21
United Kingdom Atomic Energy Authority,United Kingdom Atomic Energy Authority,02/02/2015,MATERIALS & SPARES,FUSION,HOTCHKISS AIR SUPPLY,5100316189,264.16
United Kingdom Atomic Energy Authority,United Kingdom Atomic Energy Authority,02/02/2015,MATERIALS & SPARES,FUSION,RS COMPONENTS LTD,5100316200,64.5
United Kingdom Atomic Energy Authority,United Kingdom Atomic Energy Authority,09/02/2015,MATERIALS & SPARES,FUSION,RS COMPONENTS LTD,5100316202,230.6
United Kingdom Atomic Energy Authority,United Kingdom Atomic Energy Authority,02/02/2015,MATERIALS & SPARES,FUSION,ANIXTER (UK) LTD,5100316217,930
United Kingdom Atomic Energy Authority,United Kingdom Atomic Energy Authority,02/02/2015,MATERIALS & SPARES,FUSION,SETON,5100316237,163.4
United Kingdom Atomic Energy Authority,United Kingdom Atomic Energy Authority,02/02/2015,MATERIALS & SPARES,FUSION,BUDGET FORKTRUCKS LTD,5100316242,268.67
United Kingdom Atomic Energy Authority,United Kingdom Atomic Energy Authority,02/02/2015,MATERIALS & SPARES,FUSION,BUDGET FORKTRUCKS LTD,5100316249,342.33
United Kingdom Atomic Energy Authority,United Kingdom Atomic Energy Authority,02/02/2015,STATIONERY,FUSION,LYRECO UK LIMITED,5100316309,339.51
United Kingdom Atomic Energy Authority,United Kingdom Atomic Energy Authority,02/02/2015,STATIONERY,FUSION,LYRECO UK LIMITED,5100316311,583.93
United Kingdom Atomic Energy Authority,United Kingdom Atomic Energy Authority,02/02/2015,STATIONERY,FUSION,LYRECO UK LIMITED,5100316313,669.84
United Kingdom Atomic Energy Authority,United Kingdom Atomic Energy Authority,02/02/2015,PLANT & EQUIPMENT,FUSION,EDMUNDSON ELECTRICALS LTD,5100316321,1105.77
United Kingdom Atomic Energy Authority,United Kingdom Atomic Energy Authority,02/02/2015,PLANT & EQUIPMENT,FUSION,EDMUNDSON ELECTRICALS LTD,5100316408,62.84
United Kingdom Atomic Energy Authority,United Kingdom Atomic Energy Authority,02/02/2015,MATERIALS & SPARES,FUSION,OXFORD BOLTS & BEARINGS,5100316421,869.12
United Kingdom Atomic Energy Authority,United Kingdom Atomic Energy Authority,02/02/2015,MATERIALS & SPARES,FUSION,OXFORD BOLTS & BEARINGS,5100316424,112.6
United Kingdom Atomic Energy Authority,United Kingdom Atomic Energy Authority,02/02/2015,STATIONERY,FUSION,LYRECO UK LIMITED,5100316427,166.5
United Kingdom Atomic Energy Authority,United Kingdom Atomic Energy Authority,02/02/2015,STATIONERY,FUSION,LYRECO UK LIMITED,5100316428,132.33
United Kingdom Atomic Energy Authority,United Kingdom Atomic Energy Authority,02/02/2015,STATIONERY,FUSION,LYRECO UK LIMITED,5100316429,77.43
United Kingdom Atomic Energy Authority,United Kingdom Atomic Energy Authority,02/02/2015,MATERIALS & SPARES,FUSION,R&M Electrical Group Ltd,5100316438,122
United Kingdom Atomic Energy Authority,United Kingdom Atomic Energy Authority,02/02/2015,MATERIALS & SPARES,FUSION,R&M Electrical Group Ltd,5100316440,178.04
United Kingdom Atomic Energy Authority,United Kingdom Atomic Energy Authority,02/02/2015,MATERIALS & SPARES,FUSION,R&M Electrical Group Ltd,5100316441,16.3
United Kingdom Atomic Energy Authority,United Kingdom Atomic Energy Authority,02/02/2015,MATERIALS & SPARES,FUSION,R&M Electrical Group Ltd,5100316442,149.7
United Kingdom Atomic Energy Authority,United Kingdom Atomic Energy Authority,02/02/2015,MATERIALS & SPARES,FUSION,R&M Electrical Group Ltd,5100316443,495
United Kingdom Atomic Energy Authority,United Kingdom Atomic Energy Authority,02/02/2015,MATERIALS & SPARES,FUSION,R&M Electrical Group Ltd,5100316444,22.5
United Kingdom Atomic Energy Authority,United Kingdom Atomic Energy Authority,02/02/2015,PERSONAL PROTECTIVE EQUIPMENT,FUSION,ARCO LTD,5100316445,749.48
United Kingdom Atomic Energy Authority,United Kingdom Atomic Energy Authority,02/02/2015,PERSONAL PROTECTIVE EQUIPMENT,FUSION,ARCO LTD,5100316446,310.2
United Kingdom Atomic Energy Authority,United Kingdom Atomic Energy Authority,02/02/2015,PERSONAL PROTECTIVE EQUIPMENT,FUSION,ARCO LTD,5100316447,636.2
United Kingdom Atomic Energy Authority,United Kingdom Atomic Energy Authority,02/02/2015,PERSONAL PROTECTIVE EQUIPMENT,FUSION,ARCO LTD,5100316448,807.2
United Kingdom Atomic Energy Authority,United Kingdom Atomic Energy Authority,02/02/2015,PERSONAL PROTECTIVE EQUIPMENT,FUSION,ARCO LTD,5100316449,134.16
United Kingdom Atomic Energy Authority,United Kingdom Atomic Energy Authority,02/02/2015,MATERIALS & SPARES,FUSION,ALPHA PACKAGING,5100316486,440.06
United Kingdom Atomic Energy Authority,United Kingdom Atomic Energy Authority,04/02/2015,MATERIALS & SPARES,FUSION,SCREWFIX DIRECT LTD,5100316490,75.12
United Kingdom Atomic Energy Authority,United Kingdom Atomic Energy Authority,09/02/2015,MATERIALS & SPARES,FUSION,SCREWFIX DIRECT LTD,5100316493,44.26
United Kingdom Atomic Energy Authority,United Kingdom Atomic Energy Authority,04/02/2015,MATERIALS & SPARES,FUSION,Specialist Power Engineering Contracts Ltd.,5100316500,35955
United Kingdom Atomic Energy Authority,United Kingdom Atomic Energy Authority,02/02/2015,PLANT & EQUIPMENT,FUSION,REECE SAFETY PRODUCTS LTD,5100316501,24.52
United Kingdom Atomic Energy Authority,United Kingdom Atomic Energy Authority,11/02/2015,PERSONAL PROTECTIVE EQUIPMENT,FUSION,ARCO LTD,5100316537,298.2
United Kingdom Atomic Energy Authority,United Kingdom Atomic Energy Authority,09/02/2015,PLANT & EQUIPMENT,FUSION,EDMUNDSON ELECTRICALS LTD,5100316546,248.86
United Kingdom Atomic Energy Authority,United Kingdom Atomic Energy Authority,09/02/2015,PLANT & EQUIPMENT,FUSION,EDMUNDSON ELECTRICALS LTD,5100316547,598.5
United Kingdom Atomic Energy Authority,United Kingdom Atomic Energy Authority,09/02/2015,PLANT & EQUIPMENT,FUSION,EDMUNDSON ELECTRICALS LTD,5100316548,198.8
United Kingdom Atomic Energy Authority,United Kingdom Atomic Energy Authority,11/02/2015,PERSONAL PROTECTIVE EQUIPMENT,FUSION,ARCO LTD,5100316562,935
United Kingdom Atomic Energy Authority,United Kingdom Atomic Energy Authority,09/02/2015,MATERIALS & SPARES,FUSION,ELECTRICAL OIL SERVICES LTD,5100316563,124.42
United Kingdom Atomic Energy Authority,United Kingdom Atomic Energy Authority,09/02/2015,MATERIALS & SPARES,FUSION,Industrial Technical Ltd,5100316596,133.5
United Kingdom Atomic Energy Authority,United Kingdom Atomic Energy Authority,09/02/2015,MATERIALS & SPARES,FUSION,Industrial Technical Ltd,5100316659,96
United Kingdom Atomic Energy Authority,United Kingdom Atomic Energy Authority,09/02/2015,MATERIALS & SPARES,FUSION,RS COMPONENTS LTD,5100316667,142.83
United Kingdom Atomic Energy Authority,United Kingdom Atomic Energy Authority,09/02/2015,STATIONERY,FUSION,LYRECO UK LIMITED,5100316670,298.51
United Kingdom Atomic Energy Authority,United Kingdom Atomic Energy Authority,09/02/2015,STATIONERY,FUSION,LYRECO UK LIMITED,5100316672,9.87
United Kingdom Atomic Energy Authority,United Kingdom Atomic Energy Authority,09/02/2015,STATIONERY,FUSION,LYRECO UK LIMITED,5100316674,428.28
United Kingdom Atomic Energy Authority,United Kingdom Atomic Energy Authority,09/02/2015,MATERIALS & SPARES,FUSION,OXFORD BOLTS & BEARINGS,5100316680,196.1
United Kingdom Atomic Energy Authority,United Kingdom Atomic Energy Authority,09/02/2015,MATERIALS & SPARES,FUSION,RS COMPONENTS LTD,5100316726,72.17
United Kingdom Atomic Energy Authority,United Kingdom Atomic Energy Authority,11/02/2015,MATERIALS & SPARES,FUSION,RS COMPONENTS LTD,5100316730,970.57
United Kingdom Atomic Energy Authority,United Kingdom Atomic Energy Authority,09/02/2015,MATERIALS & SPARES,FUSION,SETON,5100316734,1309.6
United Kingdom Atomic Energy Authority,United Kingdom Atomic Energy Authority,09/02/2015,MATERIALS & SPARES,FUSION,OXFORD BOLTS & BEARINGS,5100316746,56.4
United Kingdom Atomic Energy Authority,United Kingdom Atomic Energy Authority,09/02/2015,MATERIALS & SPARES,FUSION,OXFORD BOLTS & BEARINGS,5100316747,819.12
United Kingdom Atomic Energy Authority,United Kingdom Atomic Energy Authority,11/02/2015,PERSONAL PROTECTIVE EQUIPMENT,FUSION,ARCO LTD,5100316749,132.6
United Kingdom Atomic Energy Authority,United Kingdom Atomic Energy Authority,11/02/2015,PERSONAL PROTECTIVE EQUIPMENT,FUSION,ARCO LTD,5100316750,103.44
United Kingdom Atomic Energy Authority,United Kingdom Atomic Energy Authority,11/02/2015,PERSONAL PROTECTIVE EQUIPMENT,FUSION,ARCO LTD,5100316751,437
United Kingdom Atomic Energy Authority,United Kingdom Atomic Energy Authority,11/02/2015,REPAIRS & MAINTENANCE,FUSION,HITEK LTD,5100316812,25
United Kingdom Atomic Energy Authority,United Kingdom Atomic Energy Authority,18/02/2015,MATERIALS & SPARES,FUSION,RS COMPONENTS LTD,5100316861,94.63
United Kingdom Atomic Energy Authority,United Kingdom Atomic Energy Authority,18/02/2015,PLANT & EQUIPMENT,FUSION,MILLHILL TOOLS LTD,5100316883,28.58
United Kingdom Atomic Energy Authority,United Kingdom Atomic Energy Authority,18/02/2015,PLANT & EQUIPMENT,FUSION,EDMUNDSON ELECTRICALS LTD,5100316924,287.2
United Kingdom Atomic Energy Authority,United Kingdom Atomic Energy Authority,18/02/2015,MATERIALS & SPARES,FUSION,OXFORD BOLTS & BEARINGS,5100316925,402.3
United Kingdom Atomic Energy Authority,United Kingdom Atomic Energy Authority,18/02/2015,MATERIALS & SPARES,FUSION,OXFORD BOLTS & BEARINGS,5100316929,3344
United Kingdom Atomic Energy Authority,United Kingdom Atomic Energy Authority,18/02/2015,MATERIALS & SPARES,FUSION,FLEXIBLE REINFORCEMENT LIMITED,5100316940,737.5
United Kingdom Atomic Energy Authority,United Kingdom Atomic Energy Authority,18/02/2015,MATERIALS & SPARES,FUSION,FLEXIBLE REINFORCEMENT LIMITED,5100316941,737.5
United Kingdom Atomic Energy Authority,United Kingdom Atomic Energy Authority,18/02/2015,LAUNDRY,FUSION,BLUEBELL LAUNDRY,5100316942,167.34
United Kingdom Atomic Energy Authority,United Kingdom Atomic Energy Authority,18/02/2015,PLANT & EQUIPMENT,FUSION,EDMUNDSON ELECTRICALS LTD,5100316987,39.57
United Kingdom Atomic Energy Authority,United Kingdom Atomic Energy Authority,18/02/2015,PLANT & EQUIPMENT,FUSION,EDMUNDSON ELECTRICALS LTD,5100316989,189.11
United Kingdom Atomic Energy Authority,United Kingdom Atomic Energy Authority,18/02/2015,PLANT & EQUIPMENT,FUSION,EDMUNDSON ELECTRICALS LTD,5100316997,1998
United Kingdom Atomic Energy Authority,United Kingdom Atomic Energy Authority,18/02/2015,PERSONAL PROTECTIVE EQUIPMENT,FUSION,ARCO LTD,5100317023,365.76
United Kingdom Atomic Energy Authority,United Kingdom Atomic Energy Authority,18/02/2015,PERSONAL PROTECTIVE EQUIPMENT,FUSION,ARCO LTD,5100317024,154.7
United Kingdom Atomic Energy Authority,United Kingdom Atomic Energy Authority,18/02/2015,PERSONAL PROTECTIVE EQUIPMENT,FUSION,ARCO LTD,5100317025,178.92
United Kingdom Atomic Energy Authority,United Kingdom Atomic Energy Authority,18/02/2015,PERSONAL PROTECTIVE EQUIPMENT,FUSION,ARCO LTD,5100317026,103.4
United Kingdom Atomic Energy Authority,United Kingdom Atomic Energy Authority,18/02/2015,BUILDING REPAIRS,FUSION,LORNE STEWART PLC,5100317054,19702.84
United Kingdom Atomic Energy Authority,United Kingdom Atomic Energy Authority,18/02/2015,BUILDING REPAIRS,FUSION,LORNE STEWART PLC,5100317055,6196.57
United Kingdom Atomic Energy Authority,United Kingdom Atomic Energy Authority,18/02/2015,BUILDING REPAIRS,FUSION,LORNE STEWART PLC,5100317074,2419.6
United Kingdom Atomic Energy Authority,United Kingdom Atomic Energy Authority,18/02/2015,BUILDING REPAIRS,FUSION,LORNE STEWART PLC,5100317076,6739.79
United Kingdom Atomic Energy Authority,United Kingdom Atomic Energy Authority,18/02/2015,BUILDING REPAIRS,FUSION,LORNE STEWART PLC,5100317079,6248.81
United Kingdom Atomic Energy Authority,United Kingdom Atomic Energy Authority,18/02/2015,STATIONERY,FUSION,LYRECO UK LIMITED,5100317164,14.4
United Kingdom Atomic Energy Authority,United Kingdom Atomic Energy Authority,18/02/2015,STATIONERY,FUSION,LYRECO UK LIMITED,5100317165,759.05
United Kingdom Atomic Energy Authority,United Kingdom Atomic Energy Authority,18/02/2015,STATIONERY,FUSION,LYRECO UK LIMITED,5100317166,160.44
United Kingdom Atomic Energy Authority,United Kingdom Atomic Energy Authority,18/02/2015,MATERIALS & SPARES,FUSION,CHANNEL SAFETY SERVICES LTD,5100317179,300
United Kingdom Atomic Energy Authority,United Kingdom Atomic Energy Authority,18/02/2015,PLANT & EQUIPMENT,FUSION,EDMUNDSON ELECTRICALS LTD,5100317181,432.75
United Kingdom Atomic Energy Authority,United Kingdom Atomic Energy Authority,18/02/2015,PLANT & EQUIPMENT,FUSION,EDMUNDSON ELECTRICALS LTD,5100317182,2007.83
United Kingdom Atomic Energy Authority,United Kingdom Atomic Energy Authority,18/02/2015,MATERIALS & SPARES,FUSION,FLEXIBLE REINFORCEMENT LIMITED,5100317221,737.5
United Kingdom Atomic Energy Authority,United Kingdom Atomic Energy Authority,18/02/2015,MATERIALS & SPARES,FUSION,FLEXIBLE REINFORCEMENT LIMITED,5100317222,737.5
United Kingdom Atomic Energy Authority,United Kingdom Atomic Energy Authority,18/02/2015,MATERIALS & SPARES,FUSION,MCT Brattberg Ltd,5100317258,1319.96
United Kingdom Atomic Energy Authority,United Kingdom Atomic Energy Authority,18/02/2015,MATERIALS & SPARES,FUSION,CROMWELL LTD,5100317265,39.9
United Kingdom Atomic Energy Authority,United Kingdom Atomic Energy Authority,18/02/2015,MATERIALS & SPARES,FUSION,RS COMPONENTS LTD,5100317287,64.28
United Kingdom Atomic Energy Authority,United Kingdom Atomic Energy Authority,18/02/2015,MATERIALS & SPARES,FUSION,OXFORD BOLTS & BEARINGS,5100317289,399.5
United Kingdom Atomic Energy Authority,United Kingdom Atomic Energy Authority,18/02/2015,STATIONERY,FUSION,LYRECO UK LIMITED,5100317292,244.02
United Kingdom Atomic Energy Authority,United Kingdom Atomic Energy Authority,18/02/2015,STATIONERY,FUSION,LYRECO UK LIMITED,5100317293,9.29
United Kingdom Atomic Energy Authority,United Kingdom Atomic Energy Authority,18/02/2015,MATERIALS & SPARES,FUSION,ALPHA PACKAGING,5100317330,143.84
United Kingdom Atomic Energy Authority,United Kingdom Atomic Energy Authority,18/02/2015,PLANT & EQUIPMENT,FUSION,EDMUNDSON ELECTRICALS LTD,5100317336,122.37
United Kingdom Atomic Energy Authority,United Kingdom Atomic Energy Authority,18/02/2015,PLANT & EQUIPMENT,FUSION,EDMUNDSON ELECTRICALS LTD,5100317342,113.98
United Kingdom Atomic Energy Authority,United Kingdom Atomic Energy Authority,18/02/2015,PLANT & EQUIPMENT,FUSION,EDMUNDSON ELECTRICALS LTD,5100317345,256.93
United Kingdom Atomic Energy Authority,United Kingdom Atomic Energy Authority,18/02/2015,STATIONERY,FUSION,LYRECO UK LIMITED,5100317357,-9.29
United Kingdom Atomic Energy Authority,United Kingdom Atomic Energy Authority,18/02/2015,MATERIALS & SPARES,FUSION,FARNELL ELECTRONIC,5100317407,187.26
United Kingdom Atomic Energy Authority,United Kingdom Atomic Energy Authority,18/02/2015,MATERIALS & SPARES,FUSION,RS COMPONENTS LTD,5100317424,132.3
United Kingdom Atomic Energy Authority,United Kingdom Atomic Energy Authority,31/01/2015,PROFESSIONAL SUBSCRIPTION,FUSION,EMPLOYEE EXPENSES,100754950,198
United Kingdom Atomic Energy Authority,United Kingdom Atomic Energy Authority,07/02/2015,PROFESSIONAL SUBSCRIPTION,FUSION,EMPLOYEE EXPENSES,100755044,233.7
United Kingdom Atomic Energy Authority,United Kingdom Atomic Energy Authority,22/02/2015,RAW MATERIALS & CONSUMABLES,FUSION,PURCHASECARDS,100758896,678
United Kingdom Atomic Energy Authority,United Kingdom Atomic Energy Authority,18/02/2015,PROFESSIONAL SERVICES,FUSION,NUCLEAR MANAGEMENT CONSULTANCE LTD,5100317130,840
United Kingdom Atomic Energy Authority,United Kingdom Atomic Energy Authority,26/01/2015,PROFESSIONAL SERVICES,FUSION,VT NUCLEAR SERVICES LTD,5100315557,648.39
United Kingdom Atomic Energy Authority,United Kingdom Atomic Energy Authority,26/01/2015,PROFESSIONAL SERVICES,FUSION,PERKIN ELMER LAS UK LTD,5100315620,2928
United Kingdom Atomic Energy Authority,United Kingdom Atomic Energy Authority,26/01/2015,PROFESSIONAL SERVICES,FUSION,VT NUCLEAR SERVICES LTD,5100315855,-648.39
United Kingdom Atomic Energy Authority,United Kingdom Atomic Energy Authority,02/02/2015,GASES,FUSION,BOC LTD,5100315856,-133.89
United Kingdom Atomic Energy Authority,United Kingdom Atomic Energy Authority,28/01/2015,MATERIALS & SPARES,FUSION,BERYLLIANT INC,5100315934,1303.54
United Kingdom Atomic Energy Authority,United Kingdom Atomic Energy Authority,26/01/2015,MATERIALS & SPARES,FUSION,RAMTUC,5100315995,3000
United Kingdom Atomic Energy Authority,United Kingdom Atomic Energy Authority,26/01/2015,PERSONAL PROTECTIVE EQUIPMENT,FUSION,ARCO LTD,5100316004,133.45
United Kingdom Atomic Energy Authority,United Kingdom Atomic Energy Authority,04/02/2015,PROFESSIONAL SERVICES,FUSION,SCIENTIFICS LTD,5100316127,594
United Kingdom Atomic Energy Authority,United Kingdom Atomic Energy Authority,02/02/2015,GASES,FUSION,BOC LTD,5100316134,1678.44
United Kingdom Atomic Energy Authority,United Kingdom Atomic Energy Authority,02/02/2015,PERSONAL PROTECTIVE EQUIPMENT,FUSION,ARCO LTD,5100316210,96.71
United Kingdom Atomic Energy Authority,United Kingdom Atomic Energy Authority,09/02/2015,PROFESSIONAL SERVICES,FUSION,SCIENTIFICS LTD,5100316302,888
United Kingdom Atomic Energy Authority,United Kingdom Atomic Energy Authority,02/02/2015,PLANT & EQUIPMENT,FUSION,FISHER SCIENTIFIC UK LTD,5100316330,229.3
United Kingdom Atomic Energy Authority,United Kingdom Atomic Energy Authority,02/02/2015,HEALTH PHYSICS,FUSION,NUVIA LIMITED,5100316458,23275.96
United Kingdom Atomic Energy Authority,United Kingdom Atomic Energy Authority,02/02/2015,MATERIALS & SPARES,FUSION,LABCAL LTD,5100316499,235
United Kingdom Atomic Energy Authority,United Kingdom Atomic Energy Authority,09/02/2015,PLANT & EQUIPMENT,FUSION,FISHER SCIENTIFIC UK LTD,5100316544,110.33
United Kingdom Atomic Energy Authority,United Kingdom Atomic Energy Authority,09/02/2015,PLANT & EQUIPMENT,FUSION,FISHER SCIENTIFIC UK LTD,5100316545,2452.76
United Kingdom Atomic Energy Authority,United Kingdom Atomic Energy Authority,09/02/2015,PROFESSIONAL SERVICES,FUSION,EUROPEAN INSTRUMENTS,5100316566,110.2
United Kingdom Atomic Energy Authority,United Kingdom Atomic Energy Authority,18/02/2015,PROFESSIONAL SERVICES,FUSION,RADIOCARBON DATING,5100316572,2038.6
United Kingdom Atomic Energy Authority,United Kingdom Atomic Energy Authority,09/02/2015,PROFESSIONAL SERVICES,FUSION,RADIOCARBON DATING,5100316575,17262.44
United Kingdom Atomic Energy Authority,United Kingdom Atomic Energy Authority,09/02/2015,PLANT & EQUIPMENT,FUSION,FISHER SCIENTIFIC UK LTD,5100316591,46.08
United Kingdom Atomic Energy Authority,United Kingdom Atomic Energy Authority,09/02/2015,PROFESSIONAL SERVICES,FUSION,SCIENTIFICS LTD,5100316608,594
United Kingdom Atomic Energy Authority,United Kingdom Atomic Energy Authority,09/02/2015,GASES,FUSION,BOC LTD,5100316634,298.2
United Kingdom Atomic Energy Authority,United Kingdom Atomic Energy Authority,09/02/2015,PLANT & EQUIPMENT,FUSION,FISHER SCIENTIFIC UK LTD,5100316752,508.82
United Kingdom Atomic Energy Authority,United Kingdom Atomic Energy Authority,09/02/2015,PLANT & EQUIPMENT,FUSION,FISHER SCIENTIFIC UK LTD,5100316753,961.44
United Kingdom Atomic Energy Authority,United Kingdom Atomic Energy Authority,09/02/2015,PLANT & EQUIPMENT,FUSION,FISHER SCIENTIFIC UK LTD,5100316755,375.44
United Kingdom Atomic Energy Authority,United Kingdom Atomic Energy Authority,09/02/2015,PLANT & EQUIPMENT,FUSION,FISHER SCIENTIFIC UK LTD,5100316762,991.53
United Kingdom Atomic Energy Authority,United Kingdom Atomic Energy Authority,18/02/2015,PROFESSIONAL SERVICES,FUSION,SCIENTIFICS LTD,5100316926,47.93
United Kingdom Atomic Energy Authority,United Kingdom Atomic Energy Authority,18/02/2015,PLANT & EQUIPMENT,FUSION,FISHER SCIENTIFIC UK LTD,5100316991,183.91
United Kingdom Atomic Energy Authority,United Kingdom Atomic Energy Authority,18/02/2015,PLANT & EQUIPMENT,FUSION,ARVAL UK LIMITED,5100317031,264.83
United Kingdom Atomic Energy Authority,United Kingdom Atomic Energy Authority,18/02/2015,PROFESSIONAL SERVICES,FUSION,PERKIN ELMER LAS UK LTD,5100317129,636.25
United Kingdom Atomic Energy Authority,United Kingdom Atomic Energy Authority,18/02/2015,PLANT & EQUIPMENT,FUSION,FISHER SCIENTIFIC UK LTD,5100317149,81.04
United Kingdom Atomic Energy Authority,United Kingdom Atomic Energy Authority,18/02/2015,PLANT & EQUIPMENT,FUSION,FISHER SCIENTIFIC UK LTD,5100317153,112.62
United Kingdom Atomic Energy Authority,United Kingdom Atomic Energy Authority,18/02/2015,CONSUMABLES,FUSION,ZINSSER ANALYTIC UK LTD,5100317207,104.22
United Kingdom Atomic Energy Authority,United Kingdom Atomic Energy Authority,18/02/2015,PERSONAL PROTECTIVE EQUIPMENT,FUSION,ARCO LTD,5100317225,46.4
United Kingdom Atomic Energy Authority,United Kingdom Atomic Energy Authority,18/02/2015,PLANT & EQUIPMENT,FUSION,FISHER SCIENTIFIC UK LTD,5100317239,375.44
United Kingdom Atomic Energy Authority,United Kingdom Atomic Energy Authority,18/02/2015,MATERIALS & SPARES,FUSION,RS COMPONENTS LTD,5100317376,136.78
United Kingdom Atomic Energy Authority,United Kingdom Atomic Energy Authority,18/02/2015,MATERIALS & SPARES,FUSION,CASELLA CEL LTD,5100317442,351
United Kingdom Atomic Energy Authority,United Kingdom Atomic Energy Authority,07/02/2015,MILEAGE ALLOWANCE,FUSION,EMPLOYEE EXPENSES,100755048,20.7
United Kingdom Atomic Energy Authority,United Kingdom Atomic Energy Authority,09/02/2015,INSPECTION SERVICES,FUSION,ROYAL & SUN ALLIANCE ENGINEERING LT,5100313398,2799.18
United Kingdom Atomic Energy Authority,United Kingdom Atomic Energy Authority,09/02/2015,INSPECTION SERVICES,FUSION,ROYAL & SUN ALLIANCE ENGINEERING LT,5100314362,1537.58
United Kingdom Atomic Energy Authority,United Kingdom Atomic Energy Authority,26/01/2015,PROFESSIONAL SERVICES,FUSION,MATERIAL MEASUREMENTS LTD.,5100315458,307.59
United Kingdom Atomic Energy Authority,United Kingdom Atomic Energy Authority,26/01/2015,PROFESSIONAL SERVICES,FUSION,MATERIAL MEASUREMENTS LTD.,5100315459,141.28
United Kingdom Atomic Energy Authority,United Kingdom Atomic Energy Authority,26/01/2015,PROFESSIONAL SERVICES,FUSION,MATERIAL MEASUREMENTS LTD.,5100315468,297.88
United Kingdom Atomic Energy Authority,United Kingdom Atomic Energy Authority,02/02/2015,PROFESSIONAL SERVICES,FUSION,MATERIAL MEASUREMENTS LTD.,5100316093,210.04
United Kingdom Atomic Energy Authority,United Kingdom Atomic Energy Authority,02/02/2015,PROFESSIONAL SERVICES,FUSION,MATERIAL MEASUREMENTS LTD.,5100316095,329.09
United Kingdom Atomic Energy Authority,United Kingdom Atomic Energy Authority,09/02/2015,INSPECTION SERVICES,FUSION,ROYAL & SUN ALLIANCE ENGINEERING LT,5100316796,-1537.58
United Kingdom Atomic Energy Authority,United Kingdom Atomic Energy Authority,09/02/2015,INSPECTION SERVICES,FUSION,ROYAL & SUN ALLIANCE ENGINEERING LT,5100316798,-2799.18
United Kingdom Atomic Energy Authority,United Kingdom Atomic Energy Authority,09/02/2015,INSPECTION SERVICES,FUSION,ROYAL & SUN ALLIANCE ENGINEERING LT,5100316799,551.95
United Kingdom Atomic Energy Authority,United Kingdom Atomic Energy Authority,09/02/2015,INSPECTION SERVICES,FUSION,ROYAL & SUN ALLIANCE ENGINEERING LT,5100316800,906.77
United Kingdom Atomic Energy Authority,United Kingdom Atomic Energy Authority,09/02/2015,INSPECTION SERVICES,FUSION,ROYAL & SUN ALLIANCE ENGINEERING LT,5100316802,1813.55
United Kingdom Atomic Energy Authority,United Kingdom Atomic Energy Authority,18/02/2015,PROFESSIONAL SERVICES,FUSION,MATERIAL MEASUREMENTS LTD.,5100316866,1889.02
United Kingdom Atomic Energy Authority,United Kingdom Atomic Energy Authority,18/02/2015,PROFESSIONAL SERVICES,FUSION,MATERIAL MEASUREMENTS LTD.,5100317300,55
United Kingdom Atomic Energy Authority,United Kingdom Atomic Energy Authority,18/02/2015,PROFESSIONAL SERVICES,FUSION,MATERIAL MEASUREMENTS LTD.,5100317303,538.25
United Kingdom Atomic Energy Authority,United Kingdom Atomic Energy Authority,02/02/2015,PROFESSIONAL SERVICES,FUSION,RESEARCH SITES RESTORATION LTD,5100316454,400
United Kingdom Atomic Energy Authority,United Kingdom Atomic Energy Authority,26/01/2015,BUILDING REPAIRS,FUSION,KNOWLES & SONS (OXFORD) LTD,5100315903,25
United Kingdom Atomic Energy Authority,United Kingdom Atomic Energy Authority,28/01/2015,UNIVERSITY PLACEMENT,FUSION,OPEN UNIVERSITY,5100315946,775
United Kingdom Atomic Energy Authority,United Kingdom Atomic Energy Authority,11/02/2015,UNIVERSITY PLACEMENT,FUSION,Southampton Solent University,5100316856,4500
United Kingdom Atomic Energy Authority,United Kingdom Atomic Energy Authority,26/01/2015,BUILDING REPAIRS,FUSION,KNOWLES & SONS (OXFORD) LTD,5100315875,25
United Kingdom Atomic Energy Authority,United Kingdom Atomic Energy Authority,26/01/2015,BUILDING REPAIRS,FUSION,KNOWLES & SONS (OXFORD) LTD,5100315891,66.3
United Kingdom Atomic Energy Authority,United Kingdom Atomic Energy Authority,18/02/2015,BUILDING REPAIRS,FUSION,KNOWLES & SONS (OXFORD) LTD,5100317114,58.63
United Kingdom Atomic Energy Authority,United Kingdom Atomic Energy Authority,02/02/2015,MATERIALS & SPARES,FUSION,WELLINGTON ENGINEERING,5100314561,5793
United Kingdom Atomic Energy Authority,United Kingdom Atomic Energy Authority,28/01/2015,MATERIALS & SPARES,FUSION,ACRONA ENGINEERING LTD,5100314917,4412.94
United Kingdom Atomic Energy Authority,United Kingdom Atomic Energy Authority,28/01/2015,MATERIALS & SPARES,FUSION,Industrial Technical Ltd,5100315007,1434.03
United Kingdom Atomic Energy Authority,United Kingdom Atomic Energy Authority,26/01/2015,PLANT & EQUIPMENT,FUSION,POWELL & CO,5100315618,1200
United Kingdom Atomic Energy Authority,United Kingdom Atomic Energy Authority,26/01/2015,PLANT SPARES,FUSION,CSE INDUSTRIAL ELECTRICAL DISTRIBUT,5100315777,2739.75
United Kingdom Atomic Energy Authority,United Kingdom Atomic Energy Authority,26/01/2015,PLANT SPARES,FUSION,CSE INDUSTRIAL ELECTRICAL DISTRIBUT,5100315778,8430
United Kingdom Atomic Energy Authority,United Kingdom Atomic Energy Authority,26/01/2015,PLANT & EQUIPMENT,FUSION,AALCO LIMITED,5100315863,438
United Kingdom Atomic Energy Authority,United Kingdom Atomic Energy Authority,26/01/2015,MATERIALS & SPARES,FUSION,CITY ENGINEERING LTD,5100315879,687.81
United Kingdom Atomic Energy Authority,United Kingdom Atomic Energy Authority,26/01/2015,MATERIALS & SPARES,FUSION,INTAKE ENGINEERING LTD,5100315912,2170
United Kingdom Atomic Energy Authority,United Kingdom Atomic Energy Authority,26/01/2015,MATERIALS & SPARES,FUSION,RS COMPONENTS LTD,5100316027,92.17
United Kingdom Atomic Energy Authority,United Kingdom Atomic Energy Authority,02/02/2015,MATERIALS & SPARES,FUSION,SCREWFIX DIRECT LTD,5100316117,99.83
United Kingdom Atomic Energy Authority,United Kingdom Atomic Energy Authority,02/02/2015,MATERIALS & SPARES,FUSION,RS COMPONENTS LTD,5100316139,181.34
United Kingdom Atomic Energy Authority,United Kingdom Atomic Energy Authority,02/02/2015,MATERIALS & SPARES,FUSION,RS COMPONENTS LTD,5100316188,438.2
United Kingdom Atomic Energy Authority,United Kingdom Atomic Energy Authority,02/02/2015,MATERIALS & SPARES,FUSION,RS COMPONENTS LTD,5100316199,156.27
United Kingdom Atomic Energy Authority,United Kingdom Atomic Energy Authority,02/02/2015,MATERIALS & SPARES,FUSION,RS COMPONENTS LTD,5100316219,154.61
United Kingdom Atomic Energy Authority,United Kingdom Atomic Energy Authority,02/02/2015,MATERIALS & SPARES,FUSION,AGILENT TECHNOLOGIES LDA UL LTD,5100316340,53339.2
United Kingdom Atomic Energy Authority,United Kingdom Atomic Energy Authority,04/02/2015,RESEARCH & DEVELOPMENT,FUSION,FRAZER NASH CONSULTANCY,5100316377,15000
United Kingdom Atomic Energy Authority,United Kingdom Atomic Energy Authority,02/02/2015,MATERIALS & SPARES,FUSION,BOA Flexible Solution,5100316393,1067.28
United Kingdom Atomic Energy Authority,United Kingdom Atomic Energy Authority,04/02/2015,PLANT & EQUIPMENT,FUSION,POWELL & CO,5100316431,1298.4
United Kingdom Atomic Energy Authority,United Kingdom Atomic Energy Authority,02/02/2015,PLANT & EQUIPMENT,FUSION,PFEIFFER VACUUM UK,5100316437,5063
United Kingdom Atomic Energy Authority,United Kingdom Atomic Energy Authority,02/02/2015,PLANT & EQUIPMENT,FUSION,PFEIFFER VACUUM UK,5100316506,3245.1
United Kingdom Atomic Energy Authority,United Kingdom Atomic Energy Authority,09/02/2015,PLANT & EQUIPMENT,FUSION,PFEIFFER VACUUM UK,5100316507,705.61
United Kingdom Atomic Energy Authority,United Kingdom Atomic Energy Authority,09/02/2015,MATERIALS & SPARES,FUSION,Industrial Technical Ltd,5100316595,75.84
United Kingdom Atomic Energy Authority,United Kingdom Atomic Energy Authority,18/02/2015,CAR HIRE,FUSION,LEASEDRIVE VELO,5100316949,36.44
United Kingdom Atomic Energy Authority,United Kingdom Atomic Energy Authority,18/02/2015,MATERIALS & SPARES,FUSION,WELLINGTON ENGINEERING,5100317035,10703.74
United Kingdom Atomic Energy Authority,United Kingdom Atomic Energy Authority,18/02/2015,PLANT & EQUIPMENT,FUSION,HT SERVO LTD,5100317127,14610
United Kingdom Atomic Energy Authority,United Kingdom Atomic Energy Authority,18/02/2015,PLANT & EQUIPMENT,FUSION,HT SERVO LTD,5100317128,11675
United Kingdom Atomic Energy Authority,United Kingdom Atomic Energy Authority,18/02/2015,PLANT & EQUIPMENT,FUSION,ACTIV_AIR AUTOMATION LTD,5100317131,1372.63
United Kingdom Atomic Energy Authority,United Kingdom Atomic Energy Authority,18/02/2015,MATERIALS & SPARES,FUSION,AC PRECISION ENGINEERING LTD,5100317323,2483
United Kingdom Atomic Energy Authority,United Kingdom Atomic Energy Authority,17/02/2015,MATERIALS & SPARES,FUSION,Industrial Technical Ltd,5100317413,-1434.03
United Kingdom Atomic Energy Authority,United Kingdom Atomic Energy Authority,17/02/2015,MATERIALS & SPARES,FUSION,Industrial Technical Ltd,5100317417,1434.03
United Kingdom Atomic Energy Authority,United Kingdom Atomic Energy Authority,18/02/2015,MATERIALS & SPARES,FUSION,RS COMPONENTS LTD,5100317432,195.68
United Kingdom Atomic Energy Authority,United Kingdom Atomic Energy Authority,19/02/2015,MATERIALS & SPARES,FUSION,OMSER (SCOTLAND) LTD,1900060738,329.69
United Kingdom Atomic Energy Authority,United Kingdom Atomic Energy Authority,07/02/2015,SUBSISTENCE,FUSION,EMPLOYEE EXPENSES,100755043,14.57
United Kingdom Atomic Energy Authority,United Kingdom Atomic Energy Authority,07/02/2015,ROAD TRAVEL,FUSION,EMPLOYEE EXPENSES,100755043,30.78
United Kingdom Atomic Energy Authority,United Kingdom Atomic Energy Authority,28/01/2015,PLANT SPARES,FUSION,A W CLARKE,5100309266,1516
United Kingdom Atomic Energy Authority,United Kingdom Atomic Energy Authority,26/01/2015,PLANT SPARES,FUSION,BRITE PRECISION,5100315780,1582
United Kingdom Atomic Energy Authority,United Kingdom Atomic Energy Authority,02/02/2015,PLANT & EQUIPMENT,FUSION,ERODEX UK LTD,5100316130,102.45
United Kingdom Atomic Energy Authority,United Kingdom Atomic Energy Authority,04/02/2015,PLANT SPARES,FUSION,BRITE PRECISION,5100316381,3810
United Kingdom Atomic Energy Authority,United Kingdom Atomic Energy Authority,04/02/2015,MATERIALS & SPARES,FUSION,Gear Cutting Ltd,5100316502,635
United Kingdom Atomic Energy Authority,United Kingdom Atomic Energy Authority,09/02/2015,MATERIALS & SPARES,FUSION,TR FASTENINGS LTD,5100316585,20.96
United Kingdom Atomic Energy Authority,United Kingdom Atomic Energy Authority,09/02/2015,PLANT & EQUIPMENT,FUSION,BELLEVILLE SPRINGS LTD,5100316600,1295.49
United Kingdom Atomic Energy Authority,United Kingdom Atomic Energy Authority,18/02/2015,PROFESSIONAL SERVICES,FUSION,M.G. SANDERS COMPANY LIMITED,5100316874,1414.4
United Kingdom Atomic Energy Authority,United Kingdom Atomic Energy Authority,18/02/2015,MATERIALS & SPARES,FUSION,RS COMPONENTS LTD,5100316927,32.67
United Kingdom Atomic Energy Authority,United Kingdom Atomic Energy Authority,18/02/2015,MATERIALS & SPARES,FUSION,EXOTEC PRECISION LTD,5100316946,1148
United Kingdom Atomic Energy Authority,United Kingdom Atomic Energy Authority,18/02/2015,MATERIALS & SPARES,FUSION,TECAN LTD,5100316981,580.95
United Kingdom Atomic Energy Authority,United Kingdom Atomic Energy Authority,18/02/2015,PLANT & EQUIPMENT,FUSION,ERODEX UK LTD,5100317193,38.65
United Kingdom Atomic Energy Authority,United Kingdom Atomic Energy Authority,18/02/2015,MATERIALS & SPARES,FUSION,General Dynamics Global Imaging,5100317204,2014.56
United Kingdom Atomic Energy Authority,United Kingdom Atomic Energy Authority,18/02/2015,MATERIALS & SPARES,FUSION,TR FASTENINGS LTD,5100317371,620.53
United Kingdom Atomic Energy Authority,United Kingdom Atomic Energy Authority,06/02/2015,PLANT SPARES,FUSION,ILF LTD,1900060715,4613.15
United Kingdom Atomic Energy Authority,United Kingdom Atomic Energy Authority,18/02/2015,MATERIALS & SPARES,FUSION,ILF LTD,1900060735,810
United Kingdom Atomic Energy Authority,United Kingdom Atomic Energy Authority,18/02/2015,MATERIALS & SPARES,FUSION,ILF LTD,1900060736,248
United Kingdom Atomic Energy Authority,United Kingdom Atomic Energy Authority,19/02/2015,MATERIALS & SPARES,FUSION,PK ENGINEERING LTD,1900060744,288
United Kingdom Atomic Energy Authority,United Kingdom Atomic Energy Authority,19/02/2015,ROAD TRAVEL,FUSION,EMPLOYEE EXPENSES,100758020,15.47
United Kingdom Atomic Energy Authority,United Kingdom Atomic Energy Authority,09/02/2015,PLANT & EQUIPMENT,FUSION,CRDM LIMITED,5100316694,1656.5
United Kingdom Atomic Energy Authority,United Kingdom Atomic Energy Authority,02/02/2015,SUBSISTENCE,FUSION,EMPLOYEE EXPENSES,1900060701,748.87
United Kingdom Atomic Energy Authority,United Kingdom Atomic Energy Authority,02/02/2015,SUBSISTENCE,FUSION,EMPLOYEE EXPENSES,1900060702,584.17
United Kingdom Atomic Energy Authority,United Kingdom Atomic Energy Authority,04/02/2015,SUBSISTENCE,FUSION,EMPLOYEE EXPENSES,1900060707,71.11
United Kingdom Atomic Energy Authority,United Kingdom Atomic Energy Authority,18/02/2015,PROFESSIONAL SERVICES,FUSION,RBH OPTICS,5100316592,2525
United Kingdom Atomic Energy Authority,United Kingdom Atomic Energy Authority,26/01/2015,MATERIALS & SPARES,FUSION,RS COMPONENTS LTD,5100315911,16.16
United Kingdom Atomic Energy Authority,United Kingdom Atomic Energy Authority,02/02/2015,MATERIALS & SPARES,FUSION,RS COMPONENTS LTD,5100316145,13.86
United Kingdom Atomic Energy Authority,United Kingdom Atomic Energy Authority,09/02/2015,MATERIALS & SPARES,FUSION,RS COMPONENTS LTD,5100316833,26.25
United Kingdom Atomic Energy Authority,United Kingdom Atomic Energy Authority,18/02/2015,MATERIALS & SPARES,FUSION,RS COMPONENTS LTD,5100316848,209.79
United Kingdom Atomic Energy Authority,United Kingdom Atomic Energy Authority,02/02/2015,PLANT SPARES,FUSION,WITZERNMAN UK LTD,1900060703,1575.54
United Kingdom Atomic Energy Authority,United Kingdom Atomic Energy Authority,09/02/2015,PROFESSIONAL SERVICES,FUSION,SCIENTIFIC MANUFACTURING,5100313038,725
United Kingdom Atomic Energy Authority,United Kingdom Atomic Energy Authority,28/01/2015,PROFESSIONAL SERVICES,FUSION,SCIENTIFIC MANUFACTURING,5100313039,472
United Kingdom Atomic Energy Authority,United Kingdom Atomic Energy Authority,09/02/2015,PROFESSIONAL SERVICES,FUSION,SCIENTIFIC MANUFACTURING,5100313050,3895
United Kingdom Atomic Energy Authority,United Kingdom Atomic Energy Authority,28/01/2015,PROFESSIONAL SERVICES,FUSION,SCIENTIFIC MANUFACTURING,5100313052,176
United Kingdom Atomic Energy Authority,United Kingdom Atomic Energy Authority,28/01/2015,PROFESSIONAL SERVICES,FUSION,SCIENTIFIC MANUFACTURING,5100313054,3540
United Kingdom Atomic Energy Authority,United Kingdom Atomic Energy Authority,28/01/2015,PROFESSIONAL SERVICES,FUSION,SCIENTIFIC MANUFACTURING,5100313057,179
United Kingdom Atomic Energy Authority,United Kingdom Atomic Energy Authority,28/01/2015,PROFESSIONAL SERVICES,FUSION,SCIENTIFIC MANUFACTURING,5100313059,395.34
United Kingdom Atomic Energy Authority,United Kingdom Atomic Energy Authority,28/01/2015,PROFESSIONAL SERVICES,FUSION,MACHINING TECHNOLOGY (MACH-TECH),5100313238,2478
United Kingdom Atomic Energy Authority,United Kingdom Atomic Energy Authority,28/01/2015,PLANT SPARES,FUSION,A W CLARKE,5100313247,200.16
United Kingdom Atomic Energy Authority,United Kingdom Atomic Energy Authority,28/01/2015,PLANT & EQUIPMENT,FUSION,TIVERTON FABRICATION LTD,5100313364,9987.04
United Kingdom Atomic Energy Authority,United Kingdom Atomic Energy Authority,09/02/2015,PLANT SPARES,FUSION,A W CLARKE,5100314498,399
United Kingdom Atomic Energy Authority,United Kingdom Atomic Energy Authority,09/02/2015,PLANT SPARES,FUSION,A W CLARKE,5100314499,5360
United Kingdom Atomic Energy Authority,United Kingdom Atomic Energy Authority,28/01/2015,MATERIALS & SPARES,FUSION,CITY ENGINEERING LTD,5100314635,560.24
United Kingdom Atomic Energy Authority,United Kingdom Atomic Energy Authority,04/02/2015,MATERIALS & SPARES,FUSION,WELLINGTON ENGINEERING,5100314661,2849.56
United Kingdom Atomic Energy Authority,United Kingdom Atomic Energy Authority,09/02/2015,MATERIALS & SPARES,FUSION,TECAN LTD,5100314742,1251.08
United Kingdom Atomic Energy Authority,United Kingdom Atomic Energy Authority,11/02/2015,PLANT & EQUIPMENT,FUSION,JEMA,5100314854,27170.92
United Kingdom Atomic Energy Authority,United Kingdom Atomic Energy Authority,11/02/2015,MATERIALS & SPARES,FUSION,HV WOODING LIMITED,5100314922,44735.86
United Kingdom Atomic Energy Authority,United Kingdom Atomic Energy Authority,04/02/2015,MATERIALS & SPARES,FUSION,TVH,5100315096,2329.81
United Kingdom Atomic Energy Authority,United Kingdom Atomic Energy Authority,09/02/2015,MATERIALS & SPARES,FUSION,TECAN LTD,5100315296,354.75
United Kingdom Atomic Energy Authority,United Kingdom Atomic Energy Authority,26/01/2015,CAR HIRE,FUSION,LEASEDRIVE VELO,5100315399,204.54
United Kingdom Atomic Energy Authority,United Kingdom Atomic Energy Authority,26/01/2015,MATERIALS & SPARES,FUSION,ALPHA ENGINEERING SUPPLIES,5100315619,326.4
United Kingdom Atomic Energy Authority,United Kingdom Atomic Energy Authority,26/01/2015,PLANT & EQUIPMENT,FUSION,NORBAR TORQUE TOOLS LTD,5100315628,66.53
United Kingdom Atomic Energy Authority,United Kingdom Atomic Energy Authority,26/01/2015,MATERIALS & SPARES,FUSION,ALLECTRA LTD,5100315688,6540.8
United Kingdom Atomic Energy Authority,United Kingdom Atomic Energy Authority,26/01/2015,MATERIALS & SPARES,FUSION,CROMWELL LTD,5100315708,165.03
United Kingdom Atomic Energy Authority,United Kingdom Atomic Energy Authority,09/02/2015,MATERIALS & SPARES,FUSION,TECAN LTD,5100315730,10.92
United Kingdom Atomic Energy Authority,United Kingdom Atomic Energy Authority,28/01/2015,MATERIALS & SPARES,FUSION,Hoverdale (UK) Ltd,5100315760,1888
United Kingdom Atomic Energy Authority,United Kingdom Atomic Energy Authority,26/01/2015,PLANT & EQUIPMENT,FUSION,MCDC VACCUUM LTD,5100315783,37.64
United Kingdom Atomic Energy Authority,United Kingdom Atomic Energy Authority,26/01/2015,PLANT & EQUIPMENT,FUSION,EDMUNDSON ELECTRICALS LTD,5100315795,466.07
United Kingdom Atomic Energy Authority,United Kingdom Atomic Energy Authority,26/01/2015,MATERIALS & SPARES,FUSION,Marker Tech ltd,5100315798,327.16
United Kingdom Atomic Energy Authority,United Kingdom Atomic Energy Authority,26/01/2015,RENT OF VEHICLE & EQUIPMENT,FUSION,KONSTRUCTA SITE ACCOMMODATION HIRE,5100315803,402
United Kingdom Atomic Energy Authority,United Kingdom Atomic Energy Authority,26/01/2015,MATERIALS & SPARES,FUSION,CROMWELL LTD,5100315821,83.58
United Kingdom Atomic Energy Authority,United Kingdom Atomic Energy Authority,26/01/2015,MATERIALS & SPARES,FUSION,CROMWELL LTD,5100315826,342.02
United Kingdom Atomic Energy Authority,United Kingdom Atomic Energy Authority,26/01/2015,MATERIALS & SPARES,FUSION,CROMWELL LTD,5100315830,79.57
United Kingdom Atomic Energy Authority,United Kingdom Atomic Energy Authority,09/02/2015,PLANT SPARES,FUSION,A W CLARKE,5100315845,5750
United Kingdom Atomic Energy Authority,United Kingdom Atomic Energy Authority,26/01/2015,MATERIALS & SPARES,FUSION,CITY ENGINEERING LTD,5100315878,3988.62
United Kingdom Atomic Energy Authority,United Kingdom Atomic Energy Authority,28/01/2015,CLEANING,FUSION,HYDROBLAST,5100315882,1379
United Kingdom Atomic Energy Authority,United Kingdom Atomic Energy Authority,28/01/2015,CLEANING,FUSION,HYDROBLAST,5100315884,200
United Kingdom Atomic Energy Authority,United Kingdom Atomic Energy Authority,26/01/2015,MATERIALS & SPARES,FUSION,MEDLINE SCIENTIFIC LTD,5100315890,278.9
United Kingdom Atomic Energy Authority,United Kingdom Atomic Energy Authority,26/01/2015,MATERIALS & SPARES,FUSION,RS COMPONENTS LTD,5100315918,52.31
United Kingdom Atomic Energy Authority,United Kingdom Atomic Energy Authority,26/01/2015,MATERIALS & SPARES,FUSION,TR FASTENINGS LTD,5100315932,129.85
United Kingdom Atomic Energy Authority,United Kingdom Atomic Energy Authority,26/01/2015,MATERIALS & SPARES,FUSION,RS COMPONENTS LTD,5100315947,22.82
United Kingdom Atomic Energy Authority,United Kingdom Atomic Energy Authority,26/01/2015,MATERIALS & SPARES,FUSION,RS COMPONENTS LTD,5100315948,194.32
United Kingdom Atomic Energy Authority,United Kingdom Atomic Energy Authority,26/01/2015,MATERIALS & SPARES,FUSION,RS COMPONENTS LTD,5100315951,84.96
United Kingdom Atomic Energy Authority,United Kingdom Atomic Energy Authority,26/01/2015,MATERIALS & SPARES,FUSION,RS COMPONENTS LTD,5100315952,75.13
United Kingdom Atomic Energy Authority,United Kingdom Atomic Energy Authority,26/01/2015,MATERIALS & SPARES,FUSION,RS COMPONENTS LTD,5100315954,301.37
United Kingdom Atomic Energy Authority,United Kingdom Atomic Energy Authority,26/01/2015,CAR HIRE,FUSION,LEASEDRIVE VELO,5100315978,58
United Kingdom Atomic Energy Authority,United Kingdom Atomic Energy Authority,02/02/2015,MATERIALS & SPARES,FUSION,CITY ENGINEERING LTD,5100315980,225.22
United Kingdom Atomic Energy Authority,United Kingdom Atomic Energy Authority,26/01/2015,MATERIALS & SPARES,FUSION,OXFORD BOLTS & BEARINGS,5100315987,155.1
United Kingdom Atomic Energy Authority,United Kingdom Atomic Energy Authority,18/02/2015,MATERIALS & SPARES,FUSION,CITY ENGINEERING LTD,5100315989,560.24
United Kingdom Atomic Energy Authority,United Kingdom Atomic Energy Authority,26/01/2015,MATERIALS & SPARES,FUSION,CROMWELL LTD,5100315996,80.19
United Kingdom Atomic Energy Authority,United Kingdom Atomic Energy Authority,28/01/2015,MATERIALS & SPARES,FUSION,RS COMPONENTS LTD,5100316019,852.35
United Kingdom Atomic Energy Authority,United Kingdom Atomic Energy Authority,28/01/2015,PLANT SPARES,FUSION,AVNET EMG LTD,5100316035,2822.6
United Kingdom Atomic Energy Authority,United Kingdom Atomic Energy Authority,28/01/2015,PLANT & EQUIPMENT,FUSION,ROUTECO,5100316040,53.9
United Kingdom Atomic Energy Authority,United Kingdom Atomic Energy Authority,26/01/2015,MATERIALS & SPARES,FUSION,FARNELL ELECTRONIC,5100316058,3571.4
United Kingdom Atomic Energy Authority,United Kingdom Atomic Energy Authority,28/01/2015,MATERIALS & SPARES,FUSION,FARNELL ELECTRONIC,5100316071,720
United Kingdom Atomic Energy Authority,United Kingdom Atomic Energy Authority,09/02/2015,MATERIALS & SPARES,FUSION,EJ Electronics Ltd,5100316079,315
United Kingdom Atomic Energy Authority,United Kingdom Atomic Energy Authority,02/02/2015,MATERIALS & SPARES,FUSION,FARNELL ELECTRONIC,5100316080,254.43
United Kingdom Atomic Energy Authority,United Kingdom Atomic Energy Authority,02/02/2015,PROFESSIONAL SERVICES,FUSION,SWAGELOK LONDON,5100316086,35.08
United Kingdom Atomic Energy Authority,United Kingdom Atomic Energy Authority,02/02/2015,MATERIALS & SPARES,FUSION,COMPLETE PCB SERVICES LTD,5100316091,837
United Kingdom Atomic Energy Authority,United Kingdom Atomic Energy Authority,02/02/2015,MATERIALS & SPARES,FUSION,TR FASTENINGS LTD,5100316097,494.58
United Kingdom Atomic Energy Authority,United Kingdom Atomic Energy Authority,02/02/2015,PLANT & EQUIPMENT,FUSION,EDMUNDSON ELECTRICALS LTD,5100316106,21.42
United Kingdom Atomic Energy Authority,United Kingdom Atomic Energy Authority,02/02/2015,PLANT & EQUIPMENT,FUSION,EDMUNDSON ELECTRICALS LTD,5100316107,128.25
United Kingdom Atomic Energy Authority,United Kingdom Atomic Energy Authority,02/02/2015,PLANT & EQUIPMENT,FUSION,EDMUNDSON ELECTRICALS LTD,5100316110,11.38
United Kingdom Atomic Energy Authority,United Kingdom Atomic Energy Authority,02/02/2015,PLANT & EQUIPMENT,FUSION,EDMUNDSON ELECTRICALS LTD,5100316111,76.94
United Kingdom Atomic Energy Authority,United Kingdom Atomic Energy Authority,02/02/2015,MATERIALS & SPARES,FUSION,ETS CABLE COMPONENTS,5100316114,37.09
United Kingdom Atomic Energy Authority,United Kingdom Atomic Energy Authority,02/02/2015,MATERIALS & SPARES,FUSION,ETS CABLE COMPONENTS,5100316115,43.09
United Kingdom Atomic Energy Authority,United Kingdom Atomic Energy Authority,02/02/2015,MATERIALS & SPARES,FUSION,SCREWFIX DIRECT LTD,5100316119,9.24
United Kingdom Atomic Energy Authority,United Kingdom Atomic Energy Authority,04/02/2015,MATERIALS & SPARES,FUSION,RS COMPONENTS LTD,5100316121,12.51
United Kingdom Atomic Energy Authority,United Kingdom Atomic Energy Authority,02/02/2015,PLANT & EQUIPMENT,FUSION,ERODEX UK LTD,5100316131,114.79
United Kingdom Atomic Energy Authority,United Kingdom Atomic Energy Authority,02/02/2015,MATERIALS & SPARES,FUSION,RS COMPONENTS LTD,5100316132,492.45
United Kingdom Atomic Energy Authority,United Kingdom Atomic Energy Authority,02/02/2015,MATERIALS & SPARES,FUSION,RS COMPONENTS LTD,5100316141,13.63
United Kingdom Atomic Energy Authority,United Kingdom Atomic Energy Authority,02/02/2015,PLANT & EQUIPMENT,FUSION,EDMUNDSON ELECTRICALS LTD,5100316142,2354.47
United Kingdom Atomic Energy Authority,United Kingdom Atomic Energy Authority,02/02/2015,PLANT & EQUIPMENT,FUSION,EDMUNDSON ELECTRICALS LTD,5100316147,233.3
United Kingdom Atomic Energy Authority,United Kingdom Atomic Energy Authority,02/02/2015,MATERIALS & SPARES,FUSION,RS COMPONENTS LTD,5100316150,55.02
United Kingdom Atomic Energy Authority,United Kingdom Atomic Energy Authority,02/02/2015,MATERIALS & SPARES,FUSION,RS COMPONENTS LTD,5100316154,28.83
United Kingdom Atomic Energy Authority,United Kingdom Atomic Energy Authority,02/02/2015,MATERIALS & SPARES,FUSION,ALLECTRA LTD,5100316171,2204
United Kingdom Atomic Energy Authority,United Kingdom Atomic Energy Authority,02/02/2015,MATERIALS & SPARES,FUSION,Marker Tech ltd,5100316179,98.12
United Kingdom Atomic Energy Authority,United Kingdom Atomic Energy Authority,02/02/2015,MATERIALS & SPARES,FUSION,RS COMPONENTS LTD,5100316182,249.86
United Kingdom Atomic Energy Authority,United Kingdom Atomic Energy Authority,02/02/2015,MATERIALS & SPARES,FUSION,Marker Tech ltd,5100316191,21.82
United Kingdom Atomic Energy Authority,United Kingdom Atomic Energy Authority,02/02/2015,MATERIALS & SPARES,FUSION,OXFORD BOLTS & BEARINGS,5100316193,1048.15
United Kingdom Atomic Energy Authority,United Kingdom Atomic Energy Authority,02/02/2015,MATERIALS & SPARES,FUSION,GATEHOUSE ENGINEERING,5100316194,726.91
United Kingdom Atomic Energy Authority,United Kingdom Atomic Energy Authority,02/02/2015,MATERIALS & SPARES,FUSION,ALLECTRA LTD,5100316201,456
United Kingdom Atomic Energy Authority,United Kingdom Atomic Energy Authority,02/02/2015,MATERIALS & SPARES,FUSION,ANIXTER (UK) LTD,5100316216,112.5
United Kingdom Atomic Energy Authority,United Kingdom Atomic Energy Authority,02/02/2015,MATERIALS & SPARES,FUSION,RS COMPONENTS LTD,5100316221,6.33
United Kingdom Atomic Energy Authority,United Kingdom Atomic Energy Authority,02/02/2015,MATERIALS & SPARES,FUSION,RS COMPONENTS LTD,5100316226,171.77
United Kingdom Atomic Energy Authority,United Kingdom Atomic Energy Authority,02/02/2015,MATERIALS & SPARES,FUSION,RS COMPONENTS LTD,5100316227,1401.16
United Kingdom Atomic Energy Authority,United Kingdom Atomic Energy Authority,02/02/2015,MATERIALS & SPARES,FUSION,RS COMPONENTS LTD,5100316228,64.7
United Kingdom Atomic Energy Authority,United Kingdom Atomic Energy Authority,02/02/2015,PLANT SPARES,FUSION,A W CLARKE,5100316231,123
United Kingdom Atomic Energy Authority,United Kingdom Atomic Energy Authority,02/02/2015,MATERIALS & SPARES,FUSION,TR FASTENINGS LTD,5100316235,132.63
United Kingdom Atomic Energy Authority,United Kingdom Atomic Energy Authority,02/02/2015,MATERIALS & SPARES,FUSION,RS COMPONENTS LTD,5100316248,202.9
United Kingdom Atomic Energy Authority,United Kingdom Atomic Energy Authority,02/02/2015,MATERIALS & SPARES,FUSION,RS COMPONENTS LTD,5100316260,74.76
United Kingdom Atomic Energy Authority,United Kingdom Atomic Energy Authority,02/02/2015,PROFESSIONAL SERVICES,FUSION,SWAGELOK LONDON,5100316272,221.93
United Kingdom Atomic Energy Authority,United Kingdom Atomic Energy Authority,02/02/2015,MATERIALS & SPARES,FUSION,TR FASTENINGS LTD,5100316276,55
United Kingdom Atomic Energy Authority,United Kingdom Atomic Energy Authority,04/02/2015,MATERIALS & SPARES,FUSION,RS COMPONENTS LTD,5100316277,12.51
United Kingdom Atomic Energy Authority,United Kingdom Atomic Energy Authority,04/02/2015,MATERIALS & SPARES,FUSION,Creotech Instruments SA,5100316290,18575.52
United Kingdom Atomic Energy Authority,United Kingdom Atomic Energy Authority,02/02/2015,PROFESSIONAL SERVICES,FUSION,MACHINING TECHNOLOGY (MACH-TECH),5100316300,377.4
United Kingdom Atomic Energy Authority,United Kingdom Atomic Energy Authority,02/02/2015,PLANT & EQUIPMENT,FUSION,EDMUNDSON ELECTRICALS LTD,5100316323,13.13
United Kingdom Atomic Energy Authority,United Kingdom Atomic Energy Authority,02/02/2015,MATERIALS & SPARES,FUSION,RS COMPONENTS LTD,5100316326,133.45
United Kingdom Atomic Energy Authority,United Kingdom Atomic Energy Authority,02/02/2015,PLANT & EQUIPMENT,FUSION,MCDC VACCUUM LTD,5100316338,1491.4
United Kingdom Atomic Energy Authority,United Kingdom Atomic Energy Authority,11/02/2015,PLANT SPARES,FUSION,IPT-Albrecht,5100316344,584.1
United Kingdom Atomic Energy Authority,United Kingdom Atomic Energy Authority,11/02/2015,PLANT SPARES,FUSION,IPT-Albrecht,5100316373,-584.1
United Kingdom Atomic Energy Authority,United Kingdom Atomic Energy Authority,02/02/2015,IT EQUIPMENT NON CAPITAL,FUSION,Probrand Limited,5100316394,730.3
United Kingdom Atomic Energy Authority,United Kingdom Atomic Energy Authority,02/02/2015,MATERIALS & SPARES,FUSION,CROMWELL LTD,5100316400,30.52
United Kingdom Atomic Energy Authority,United Kingdom Atomic Energy Authority,02/02/2015,MATERIALS & SPARES,FUSION,CROMWELL LTD,5100316401,59.8
United Kingdom Atomic Energy Authority,United Kingdom Atomic Energy Authority,02/02/2015,MATERIALS & SPARES,FUSION,BSS OXFORD,5100316404,62.15
United Kingdom Atomic Energy Authority,United Kingdom Atomic Energy Authority,02/02/2015,PLANT & EQUIPMENT,FUSION,EDMUNDSON ELECTRICALS LTD,5100316409,85.95
United Kingdom Atomic Energy Authority,United Kingdom Atomic Energy Authority,02/02/2015,CAR HIRE,FUSION,LEASEDRIVE VELO,5100316418,36.44
United Kingdom Atomic Energy Authority,United Kingdom Atomic Energy Authority,02/02/2015,MATERIALS & SPARES,FUSION,OXFORD BOLTS & BEARINGS,5100316422,26.56
United Kingdom Atomic Energy Authority,United Kingdom Atomic Energy Authority,02/02/2015,CLEANING,FUSION,HYDROBLAST,5100316456,810
United Kingdom Atomic Energy Authority,United Kingdom Atomic Energy Authority,02/02/2015,MATERIALS & SPARES,FUSION,RS COMPONENTS LTD,5100316466,43.52
United Kingdom Atomic Energy Authority,United Kingdom Atomic Energy Authority,02/02/2015,MATERIALS & SPARES,FUSION,RS COMPONENTS LTD,5100316467,19
United Kingdom Atomic Energy Authority,United Kingdom Atomic Energy Authority,09/02/2015,MATERIALS & SPARES,FUSION,RS COMPONENTS LTD,5100316471,29.4
United Kingdom Atomic Energy Authority,United Kingdom Atomic Energy Authority,09/02/2015,MATERIALS & SPARES,FUSION,RS COMPONENTS LTD,5100316472,29.28
United Kingdom Atomic Energy Authority,United Kingdom Atomic Energy Authority,09/02/2015,MATERIALS & SPARES,FUSION,RS COMPONENTS LTD,5100316479,22.57
United Kingdom Atomic Energy Authority,United Kingdom Atomic Energy Authority,02/02/2015,PLANT & EQUIPMENT,FUSION,ERODEX UK LTD,5100316488,7558.04
United Kingdom Atomic Energy Authority,United Kingdom Atomic Energy Authority,18/02/2015,PLANT SPARES,FUSION,A W CLARKE,5100316491,279.05
United Kingdom Atomic Energy Authority,United Kingdom Atomic Energy Authority,02/02/2015,MATERIALS & SPARES,FUSION,OXFORD BOLTS & BEARINGS,5100316496,100.1
United Kingdom Atomic Energy Authority,United Kingdom Atomic Energy Authority,09/02/2015,PLANT SPARES,FUSION,AVNET EMG LTD,5100316553,289
United Kingdom Atomic Energy Authority,United Kingdom Atomic Energy Authority,18/02/2015,MATERIALS & SPARES,FUSION,TR FASTENINGS LTD,5100316584,47.24
United Kingdom Atomic Energy Authority,United Kingdom Atomic Energy Authority,09/02/2015,MATERIALS & SPARES,FUSION,CITY ELECTRICAL FACTORS,5100316587,424.01
United Kingdom Atomic Energy Authority,United Kingdom Atomic Energy Authority,09/02/2015,PROFESSIONAL SERVICES,FUSION,MACHINING TECHNOLOGY (MACH-TECH),5100316599,686.65
United Kingdom Atomic Energy Authority,United Kingdom Atomic Energy Authority,09/02/2015,MATERIALS & SPARES,FUSION,B&M Engineering Ltd,5100316602,275
United Kingdom Atomic Energy Authority,United Kingdom Atomic Energy Authority,11/02/2015,PLANT SPARES,FUSION,IPT-Albrecht,5100316616,590.32
United Kingdom Atomic Energy Authority,United Kingdom Atomic Energy Authority,11/02/2015,PLANT SPARES,FUSION,IPT-Albrecht,5100316617,-590.32
United Kingdom Atomic Energy Authority,United Kingdom Atomic Energy Authority,09/02/2015,MATERIALS & SPARES,FUSION,Kaliber Ltd,5100316663,1641.6
United Kingdom Atomic Energy Authority,United Kingdom Atomic Energy Authority,09/02/2015,MATERIALS & SPARES,FUSION,THERMAL EXCHANGE LTD,5100316692,-1319.4
United Kingdom Atomic Energy Authority,United Kingdom Atomic Energy Authority,04/02/2015,MATERIALS & SPARES,FUSION,THERMAL EXCHANGE LTD,5100316693,1099.5
United Kingdom Atomic Energy Authority,United Kingdom Atomic Energy Authority,04/02/2015,MATERIALS & SPARES,FUSION,THERMAL EXCHANGE LTD,5100316698,-1099.5
United Kingdom Atomic Energy Authority,United Kingdom Atomic Energy Authority,09/02/2015,MATERIALS & SPARES,FUSION,THERMAL EXCHANGE LTD,5100316702,2199
United Kingdom Atomic Energy Authority,United Kingdom Atomic Energy Authority,09/02/2015,MATERIALS & SPARES,FUSION,RS COMPONENTS LTD,5100316703,100.02
United Kingdom Atomic Energy Authority,United Kingdom Atomic Energy Authority,09/02/2015,MATERIALS & SPARES,FUSION,RS COMPONENTS LTD,5100316706,607.39
United Kingdom Atomic Energy Authority,United Kingdom Atomic Energy Authority,11/02/2015,REPAIRS & MAINTENANCE,FUSION,BEAVER 84 LIMITED,5100316709,366.84
United Kingdom Atomic Energy Authority,United Kingdom Atomic Energy Authority,11/02/2015,REPAIRS & MAINTENANCE,FUSION,BEAVER 84 LIMITED,5100316710,166.64
United Kingdom Atomic Energy Authority,United Kingdom Atomic Energy Authority,11/02/2015,REPAIRS & MAINTENANCE,FUSION,BEAVER 84 LIMITED,5100316711,31.33
United Kingdom Atomic Energy Authority,United Kingdom Atomic Energy Authority,11/02/2015,REPAIRS & MAINTENANCE,FUSION,BEAVER 84 LIMITED,5100316713,96.8
United Kingdom Atomic Energy Authority,United Kingdom Atomic Energy Authority,18/02/2015,REPAIRS & MAINTENANCE,FUSION,BEAVER 84 LIMITED,5100316714,188.5
United Kingdom Atomic Energy Authority,United Kingdom Atomic Energy Authority,09/02/2015,PLANT & EQUIPMENT,FUSION,TESLA ENGINEERING LTD,5100316716,1000
United Kingdom Atomic Energy Authority,United Kingdom Atomic Energy Authority,11/02/2015,MATERIALS & SPARES,FUSION,RS COMPONENTS LTD,5100316723,271.16
United Kingdom Atomic Energy Authority,United Kingdom Atomic Energy Authority,09/02/2015,MATERIALS & SPARES,FUSION,RS COMPONENTS LTD,5100316729,58.52
United Kingdom Atomic Energy Authority,United Kingdom Atomic Energy Authority,18/02/2015,PLANT & EQUIPMENT,FUSION,MCDC VACCUUM LTD,5100316775,3230
United Kingdom Atomic Energy Authority,United Kingdom Atomic Energy Authority,09/02/2015,MATERIALS & SPARES,FUSION,NEWEY & EYRE LTD,5100316789,305.44
United Kingdom Atomic Energy Authority,United Kingdom Atomic Energy Authority,09/02/2015,MATERIALS & SPARES,FUSION,FARNELL ELECTRONIC,5100316792,16.45
United Kingdom Atomic Energy Authority,United Kingdom Atomic Energy Authority,09/02/2015,MATERIALS & SPARES,FUSION,FARNELL ELECTRONIC,5100316795,27.19
United Kingdom Atomic Energy Authority,United Kingdom Atomic Energy Authority,09/02/2015,MATERIALS & SPARES,FUSION,RS COMPONENTS LTD,5100316823,87.12
United Kingdom Atomic Energy Authority,United Kingdom Atomic Energy Authority,09/02/2015,MATERIALS & SPARES,FUSION,RS COMPONENTS LTD,5100316830,487.24
United Kingdom Atomic Energy Authority,United Kingdom Atomic Energy Authority,09/02/2015,MATERIALS & SPARES,FUSION,RS COMPONENTS LTD,5100316831,215.98
United Kingdom Atomic Energy Authority,United Kingdom Atomic Energy Authority,09/02/2015,MATERIALS & SPARES,FUSION,RS COMPONENTS LTD,5100316834,201.97
United Kingdom Atomic Energy Authority,United Kingdom Atomic Energy Authority,09/02/2015,MATERIALS & SPARES,FUSION,RS COMPONENTS LTD,5100316835,244.79
United Kingdom Atomic Energy Authority,United Kingdom Atomic Energy Authority,09/02/2015,MATERIALS & SPARES,FUSION,RS COMPONENTS LTD,5100316842,20.78
United Kingdom Atomic Energy Authority,United Kingdom Atomic Energy Authority,18/02/2015,MATERIALS & SPARES,FUSION,RS COMPONENTS LTD,5100316863,36.11
United Kingdom Atomic Energy Authority,United Kingdom Atomic Energy Authority,18/02/2015,PLANT & EQUIPMENT,FUSION,MILLHILL TOOLS LTD,5100316879,272.92
United Kingdom Atomic Energy Authority,United Kingdom Atomic Energy Authority,18/02/2015,PLANT & EQUIPMENT,FUSION,MILLHILL TOOLS LTD,5100316882,602.26
United Kingdom Atomic Energy Authority,United Kingdom Atomic Energy Authority,18/02/2015,MATERIALS & SPARES,FUSION,RS COMPONENTS LTD,5100316884,129.42
United Kingdom Atomic Energy Authority,United Kingdom Atomic Energy Authority,18/02/2015,MATERIALS & SPARES,FUSION,RS COMPONENTS LTD,5100316886,26.5
United Kingdom Atomic Energy Authority,United Kingdom Atomic Energy Authority,18/02/2015,MATERIALS & SPARES,FUSION,RS COMPONENTS LTD,5100316890,9.5
United Kingdom Atomic Energy Authority,United Kingdom Atomic Energy Authority,18/02/2015,MATERIALS & SPARES,FUSION,RS COMPONENTS LTD,5100316899,256.03
United Kingdom Atomic Energy Authority,United Kingdom Atomic Energy Authority,18/02/2015,MATERIALS & SPARES,FUSION,RS COMPONENTS LTD,5100316907,10.18
United Kingdom Atomic Energy Authority,United Kingdom Atomic Energy Authority,18/02/2015,CAR HIRE,FUSION,LEASEDRIVE VELO,5100316917,409.08
United Kingdom Atomic Energy Authority,United Kingdom Atomic Energy Authority,18/02/2015,MATERIALS & SPARES,FUSION,RS COMPONENTS LTD,5100316918,14.74
United Kingdom Atomic Energy Authority,United Kingdom Atomic Energy Authority,18/02/2015,PLANT & EQUIPMENT,FUSION,EDMUNDSON ELECTRICALS LTD,5100316921,6.95
United Kingdom Atomic Energy Authority,United Kingdom Atomic Energy Authority,18/02/2015,MATERIALS & SPARES,FUSION,RS COMPONENTS LTD,5100316923,14.66
United Kingdom Atomic Energy Authority,United Kingdom Atomic Energy Authority,18/02/2015,MATERIALS & SPARES,FUSION,OXFORD BOLTS & BEARINGS,5100316933,14.75
United Kingdom Atomic Energy Authority,United Kingdom Atomic Energy Authority,18/02/2015,MATERIALS & SPARES,FUSION,RS COMPONENTS LTD,5100316935,13.79
United Kingdom Atomic Energy Authority,United Kingdom Atomic Energy Authority,18/02/2015,MATERIALS & SPARES,FUSION,KURT J LESKER,5100316944,162.25
United Kingdom Atomic Energy Authority,United Kingdom Atomic Energy Authority,18/02/2015,PLANT & EQUIPMENT,FUSION,EDMUNDSON ELECTRICALS LTD,5100316988,140.12
United Kingdom Atomic Energy Authority,United Kingdom Atomic Energy Authority,18/02/2015,PLANT & EQUIPMENT,FUSION,EDMUNDSON ELECTRICALS LTD,5100316990,47.08
United Kingdom Atomic Energy Authority,United Kingdom Atomic Energy Authority,18/02/2015,PLANT & EQUIPMENT,FUSION,EDMUNDSON ELECTRICALS LTD,5100316993,308.31
United Kingdom Atomic Energy Authority,United Kingdom Atomic Energy Authority,18/02/2015,PLANT & EQUIPMENT,FUSION,EDMUNDSON ELECTRICALS LTD,5100316999,37.5
United Kingdom Atomic Energy Authority,United Kingdom Atomic Energy Authority,18/02/2015,RENT OF VEHICLE & EQUIPMENT,FUSION,KONSTRUCTA SITE ACCOMMODATION HIRE,5100317044,402
United Kingdom Atomic Energy Authority,United Kingdom Atomic Energy Authority,18/02/2015,PLANT SPARES,FUSION,A W CLARKE,5100317050,517.3
United Kingdom Atomic Energy Authority,United Kingdom Atomic Energy Authority,11/02/2015,MATERIALS & SPARES,FUSION,HV WOODING LIMITED,5100317052,-174.97
United Kingdom Atomic Energy Authority,United Kingdom Atomic Energy Authority,18/02/2015,MATERIALS & SPARES,FUSION,UNDERWOODS ELECTRICAL DISTRIBUTORS,5100317118,343
United Kingdom Atomic Energy Authority,United Kingdom Atomic Energy Authority,18/02/2015,MATERIALS & SPARES,FUSION,NEWEY & EYRE LTD,5100317124,185.46
United Kingdom Atomic Energy Authority,United Kingdom Atomic Energy Authority,18/02/2015,MATERIALS & SPARES,FUSION,GATEHOUSE ENGINEERING,5100317154,785
United Kingdom Atomic Energy Authority,United Kingdom Atomic Energy Authority,18/02/2015,PLANT & EQUIPMENT,FUSION,TESLA ENGINEERING LTD,5100317175,69517.14
United Kingdom Atomic Energy Authority,United Kingdom Atomic Energy Authority,18/02/2015,PLANT & EQUIPMENT,FUSION,TESLA ENGINEERING LTD,5100317176,9995.29
United Kingdom Atomic Energy Authority,United Kingdom Atomic Energy Authority,18/02/2015,PLANT & EQUIPMENT,FUSION,TESLA ENGINEERING LTD,5100317177,1375
United Kingdom Atomic Energy Authority,United Kingdom Atomic Energy Authority,18/02/2015,MATERIALS & SPARES,FUSION,Marker Tech ltd,5100317188,442.3
United Kingdom Atomic Energy Authority,United Kingdom Atomic Energy Authority,18/02/2015,MATERIALS & SPARES,FUSION,Marker Tech ltd,5100317189,31.38
United Kingdom Atomic Energy Authority,United Kingdom Atomic Energy Authority,18/02/2015,MATERIALS & SPARES,FUSION,TR FASTENINGS LTD,5100317208,75.42
